{"text_format":"1","workbook":"xlsx","n_sheets":41,"sheets":["Menu","Instructions","Majors","MajorsTime","DataEntry","MajorsDayofWeek","MajorsLocation","MajorsStudent","StudentDashboard","MajorsGrade","MajorsOthers","MajorsAdminDecision","TotalPerMonth","MotivationStudent","MajorsGender","MinorBehaviors","PermList","MinorsLocation","MinorsTime","MinorsStudent","MinorsMotivation","TotalDaysSusp","DrillDown","BehaviorStudent","DaysRaceEthnic","FluidList","TablesPerDayRace","MajorsStaff","RiskRatios","RiskIndex","RDR_ODRs","StudentDatabase","Triangle","PerDayPerMonth","RaceEthnicity","IEP","QuickBig5","MinorsPerDayPerMonth","MinorPerDayTable","MinorQuickBig5","Minor_Student"],"not_rendered":{"charts":79,"images":2,"macros":1,"external_links":0,"defined_names":38,"comments":0,"pivot_tables":4},"unopened":[{"sheet":"RiskRatios","index":28,"reason":"not_a_worksheet"},{"sheet":"RiskIndex","index":29,"reason":"not_a_worksheet"},{"sheet":"RDR_ODRs","index":30,"reason":"not_a_worksheet"},{"sheet":"PerDayPerMonth","index":33,"reason":"not_a_worksheet"},{"sheet":"RaceEthnicity","index":34,"reason":"not_a_worksheet"},{"sheet":"IEP","index":35,"reason":"not_a_worksheet"},{"sheet":"MinorsPerDayPerMonth","index":37,"reason":"not_a_worksheet"}],"bounds":{"document_bytes":16777216,"sheet_cells":100000,"rows_first":2000,"rows_last":500,"rows_between":2000,"halvings":0,"cell_chars":16384,"cell_head_chars":4096},"cells_cut":0,"cells_raw":0,"read":"whole","date_system":"1900"}

{"sheet":"Menu","index":0,"n_rows":47,"n_cols":13,"rows_kept":47,"cut":false,"hidden":false,"merged":[[0,4,0,11],[6,4,6,11],[39,5,39,10],[21,3,21,5],[21,11,21,13],[10,7,10,8],[11,5,11,10]]}
[null,null,null,null,"Paperless Data Collection Tool for PC"]
[]
[]
[]
[]
[]
[null,null,null,null,"Data  Entry"]
[]
[]
[]
[null,null,null,null,null,null,null,"Reports"]
[null,null,null,null,null,"Select Month and School Year of Reports"]
[]
[null,null,null,null,null,null,null,"Year","2021/2022"]
[]
[null,null,null,null,null,null,null,"FY",{"$f":"RIGHT(I14,FIND(\"/\",I14)-1)","v":"2022"}]
[]
[null,null,null,null,null,null,null,"Month","February"]
[]
[]
[null,null,null,null,"Majors",null,null,null,null,null,null,null,"Minors"]
[null,null,null,"School Dashboard",null,null,null,null,null,null,null,"School Dashboard"]
[]
[]
[]
[]
[]
[]
[]
[]
[]
[]
[]
[]
[]
[]
[]
[]
[]
[null,null,null,null,null,"Additional Reports"]
[]
[]
[]
[]
[]
[]
[null,null,null,null,null,null,null,null,null,null,null," "]

{"sheet":"Instructions","index":1,"n_rows":108,"n_cols":1,"rows_kept":108,"cut":false,"hidden":false,"merged":[]}
["Instructions (First Time Use): To set up the spreadsheet for use with an online Office Discipline Referral Form"]
["1                     Make sure you are logged into your Google Drive"]
["2                     Click the following link:  https://docs.google.com/forms/d/1kZnFfmf2zMn7uBn-kdVm811XF_cVofb9GcmkX7yjiIs/copy"]
["            a.       This is the ODR form"]
["3                     Click on \"Make a Copy\""]
["4                     Click on the \"Responses\" (top of form)"]
["5                     Click on the green Spreadsheet Icon"]
["6                     Select \"Create New Spreadsheet”"]
["7                     Click \"Create\""]
["8                     This spreadsheet will store confidential student information! Make sure to save the spreadsheet into a password Protected Google Drive; Limit sharing of this google spreadsheet on a “need to know” basis!"]
["9                     In the spreadsheet you just created, click on \"File\""]
["10                 Click on \"Share\""]
["11                 Click on \"Publish to Web\""]
["12                 Click on the Downward pointing arrow next to \"Web Page\" and then click on \"Comma-Separated Values (.csv)\""]
["13                 Click on the \"Publish\" button, then click \"OK\""]
["14                 Copy the URL hyperlink that appears"]
["15                 In the Paperless DCT excel spreadsheet, click on the \"Data\" tab on the menu ribbon"]
["16                 Click \"Queries & Connections\" in the “Queries and Connections” section of the data menu."]
["17                 A side menu will open with three queries; Click on the \"DataPull\" query"]
["18                 In the box that reads \"Current Value\" paste over the existing url with the url you just copied from the google sheet that you just created and published"]
["19                 Click \"Close and Load\" in upper left of menu ribbon"]
["20                 In the Google Form you just made, click on the \"Send\" button"]
["21                 Click the link icon"]
["22                 Copy the URL hyperlink that appears"]
["23                 Go to the Main Menu Page of this excel spreadsheet"]
["24                 Right Click on the \"Enter Referral\" button"]
["25                 Click on \"Link\" and paste the url for the Google form in the space next to \"Address:\""]
["26                 Click “OK”"]
["            a.       You will also share this hyperlink with staff for writing ODRs"]
["27                 Go to your google sheet"]
["28                 Click on “Share”"]
["29                 Click on “Copy Link”"]
["30                 On the main menu of the Paperless DCT, right click on “View Referrals”"]
["31                 Click “Link”"]
["32                 Paste the link to the google sheet in the box next to “Address:”"]
["33                 Click “OK”"]
[]
["Optional: Email Confirmation"]
["1                     Create two Google folders in a password protected Google Drive; Label one “ODRs” and the other “Resolved ODRs”"]
["2              Click on the following link https://docs.google.com/document/d/1nC9WjaoxsWeEvYK5prLtTf8cRGkEr6kX_HVd7Z2Z3zM/copy"]
["3                     Click \"Make Copy\""]
["            a.       This is the template for the ODR that will be filled in and emailed to staff and the administrator on submit"]
["4                     Open the Google Sheet where the ODR form dumps into"]
["5                     Click on \"Extensions\" on the menu ribbon"]
["6                     Mouse over \"Add ons\" then click on \"Get Add on\""]
["7                     Search for Autocrat"]
["8                     Click on Autocrat"]
["9                     Click on Install"]
["10                 On your Google Sheet, Click Extensions and click on Autocrat"]
["11                 Click on \"Launch\""]
["12                 Click on \"New Job\""]
["13                 Step 1 Name your merge job: Name the Job \"ODR Notification\""]
["14                 Click Next"]
["15                 Step 2: Choose Template click search and search for \"ODR Template\""]
["16                 Click on \"Use\" to the left of \"ODR Template\" (It may say \"Copy of ODR Template\")"]
["17                 Click \"Next\""]
["18                 Step 3 Map Source to Template: scroll down through the list and make sure that none of the text boxes in the column at the right are blank. If they are, use the drop down menu in the text box to select"]
["            a.       The middle column that contains items with <<>> around them are the tags in the template that the column headers in the google sheet maps to;"]
["            b.       The right hand column refers to the column headers in your google sheet. "]
["19                 Click Next"]
["20                 Step 4 File settings: Name the file name \"ODR for <<Student Number>> on <<Date of Incident>> at <<Time>>\""]
["21                 For \"Type\" select \"PDF\""]
["22                 Leave radial dial on \"multiple output mode (classic mode)\""]
["23                 Select \"Next\""]
["24                 Step 5 Choose destination folder(s): select the “ODR” folder you just created"]
["25                 Click \"Next\""]
["26                 Step 6 Add dynamic folder reference (optional): click \"Next\" without doing anything else"]
["27                 Step 7 Set merge condition (optional): click \"add condition\"; Leave this at \"Time Stamp equals Not Null\""]
["28                 Click Next"]
["29                 Step 8 Share Docs & Send Emails: click \"Yes\" next to \"Share Doc\""]
["30                 Leave \"allow Collaborators to Reshare\" marked as Yes; this will allow the admin to forward to the referring staff member"]
["31                 Leave \"Send from Generic No reply Email marked \"No\""]
["32                 In the \"To\" enter <<Your Email Address>>"]
["33                 In the subject line, copy and paste the following: \"Notification of incident for <<Student Number>> on <<Date of Incident>> at <<Time>>\""]
["34                 In the body of the email, copy and paste the following: \"Student Incident Report CONFIDENTIAL\""]
["35                 Click \"Next\""]
["36                 Step 9 Add/remove job triggers: mark \"Yes\"; Leave \"Run on Time Trigger\" Marked \"No\""]
["37                 Click Save"]
[]
["ODR Resolution Email Notification"]
["1                     Launch Autocrat (if you closed it before)"]
["2                     Click \"New Job\""]
["3                     Step 1 Name your merge job: Name the New Job \"ODR Resolution\""]
["4                     Click \"Next\""]
["5                     Step 2 Choose Template: click search and search for \"ODR Template\""]
["6                     Click on \"Use\" to the left of \"ODR Template\" (It may say \"Copy of ODR Template\")"]
["7                     Click \"Next\""]
["8                     Step 3 Map source data to template:  \"Map Source to Template\" page, scroll down through the list and make sure that none of the text boxes in the column at the right are blank. If they are, use the drop down menu in the text box to select"]
["9                     Click Next"]
["10                 Step 4 File settings: Name the file name \"Resolution of ODR for <<Student Number>> on <<Date of Incident>> at <<Time>>\""]
["11                 For \"Type\" select \"PDF\""]
["12                 Leave radial dial on \"multiple output mode (classic mode)\""]
["13                 Select \"Next\""]
["14                 Step 5 Choose destination folder(s): select the “ODR” folder you just created (you may have to use the search feature)"]
["15                 Click \"Next\""]
["16                 Step 6. Add dynamic folder reference (optional): click \"Next\" without doing anything else"]
["17                 Step 7 Set merge condition (optional): click \"add condition\";"]
["18                 Use the dropdown arrows to change “Timestamp” to \"Administrative Decision\"; Leave the condition set as \"Not Null\""]
["19                 Click Next"]
["20                 Step 8 Share Docs & Send Emails: Share Docs & Send Emails\" click \"Yes\" next to \"Share Doc\""]
["21                 Leave \"allow Collaborators to Reshare\" marked as Yes"]
["22                 Leave \"Send from Generic No reply Email marked \"No\""]
["23                 In the \"To\" paste “<<Your Email Address>>"]
["24                 In the subject line, copy and paste the following: \"Notification of resolution of ODR for <<Student Number>> on <<Date of Incident>> at <<Time>>\""]
["25                 In the body of the email, copy and paste the following: \"Student Incident Report CONFIDENTIAL\""]
["26                 Click \"Next\""]
["27                 Step 9 Add/remove job triggers: Leave “Run on Form Trigger” marked no, and mark \"Run on Time Trigger\" marked \"Yes\""]
["28                 Click Save"]

{"sheet":"Majors","index":2,"n_rows":32,"n_cols":9,"rows_kept":32,"cut":false,"hidden":false,"merged":[]}
["Behaviors","ODRs for ",{"$f":"Menu!I18","v":"February"},{"$f":"Menu!I16","v":"2022"},"by Behaviors"]
[{"$f":"PermList!$G2","v":"Abusive/Inappropriate Language"},{"$f":"COUNTIFS(Data_Entry[Major Behavior],A2,Data_Entry[Month Name],$C$1,Data_Entry[Year],$D$1)","v":0},{"$f":"COUNTIFS(Data_Entry[Major Behavior],A2,Data_Entry[Year],$D$1)","v":0}]
[{"$f":"PermList!$G3","v":"Arson"},{"$f":"COUNTIFS(Data_Entry[Major Behavior],A3,Data_Entry[Month Name],$C$1,Data_Entry[Year],$D$1)","v":0},{"$f":"COUNTIFS(Data_Entry[Major Behavior],A3,Data_Entry[Year],$D$1)","v":0}]
[{"$f":"PermList!$G4","v":"Bomb Threat/False Alarm"},{"$f":"COUNTIFS(Data_Entry[Major Behavior],A4,Data_Entry[Month Name],$C$1,Data_Entry[Year],$D$1)","v":0},{"$f":"COUNTIFS(Data_Entry[Major Behavior],A4,Data_Entry[Year],$D$1)","v":0}]
[{"$f":"PermList!$G5","v":"Defiance/Disrespect/Insubordination/Non-Compliance"},{"$f":"COUNTIFS(Data_Entry[Major Behavior],A5,Data_Entry[Month Name],$C$1,Data_Entry[Year],$D$1)","v":0},{"$f":"COUNTIFS(Data_Entry[Major Behavior],A5,Data_Entry[Year],$D$1)","v":0}]
[{"$f":"PermList!$G6","v":"Disruption"},{"$f":"COUNTIFS(Data_Entry[Major Behavior],A6,Data_Entry[Month Name],$C$1,Data_Entry[Year],$D$1)","v":0},{"$f":"COUNTIFS(Data_Entry[Major Behavior],A6,Data_Entry[Year],$D$1)","v":0}]
[{"$f":"PermList!$G7","v":"Dress Code Violation"},{"$f":"COUNTIFS(Data_Entry[Major Behavior],A7,Data_Entry[Month Name],$C$1,Data_Entry[Year],$D$1)","v":0},{"$f":"COUNTIFS(Data_Entry[Major Behavior],A7,Data_Entry[Year],$D$1)","v":0}]
[{"$f":"PermList!$G8","v":"Fighting/Physical Aggression"},{"$f":"COUNTIFS(Data_Entry[Major Behavior],A8,Data_Entry[Month Name],$C$1,Data_Entry[Year],$D$1)","v":0},{"$f":"COUNTIFS(Data_Entry[Major Behavior],A8,Data_Entry[Year],$D$1)","v":0}]
[{"$f":"PermList!$G9","v":"Forgery/Theft"},{"$f":"COUNTIFS(Data_Entry[Major Behavior],A9,Data_Entry[Month Name],$C$1,Data_Entry[Year],$D$1)","v":0},{"$f":"COUNTIFS(Data_Entry[Major Behavior],A9,Data_Entry[Year],$D$1)","v":0}]
[{"$f":"PermList!$G10","v":"Gang Affiliation Display"},{"$f":"COUNTIFS(Data_Entry[Major Behavior],A10,Data_Entry[Month Name],$C$1,Data_Entry[Year],$D$1)","v":0},{"$f":"COUNTIFS(Data_Entry[Major Behavior],A10,Data_Entry[Year],$D$1)","v":0}]
[{"$f":"PermList!$G11","v":"Harassment/Bullying"},{"$f":"COUNTIFS(Data_Entry[Major Behavior],A11,Data_Entry[Month Name],$C$1,Data_Entry[Year],$D$1)","v":0},{"$f":"COUNTIFS(Data_Entry[Major Behavior],A11,Data_Entry[Year],$D$1)","v":0}]
[{"$f":"PermList!$G12","v":"Sexual Harassment"},{"$f":"COUNTIFS(Data_Entry[Major Behavior],A12,Data_Entry[Month Name],$C$1,Data_Entry[Year],$D$1)","v":0},{"$f":"COUNTIFS(Data_Entry[Major Behavior],A12,Data_Entry[Year],$D$1)","v":0}]
[{"$f":"PermList!$G13","v":"Inappropriate Display of Affection"},{"$f":"COUNTIFS(Data_Entry[Major Behavior],A13,Data_Entry[Month Name],$C$1,Data_Entry[Year],$D$1)","v":0},{"$f":"COUNTIFS(Data_Entry[Major Behavior],A13,Data_Entry[Year],$D$1)","v":0}]
[{"$f":"PermList!$G14","v":"Inappropriate Location/Out of Bounds Area"},{"$f":"COUNTIFS(Data_Entry[Major Behavior],A14,Data_Entry[Month Name],$C$1,Data_Entry[Year],$D$1)","v":0},{"$f":"COUNTIFS(Data_Entry[Major Behavior],A14,Data_Entry[Year],$D$1)","v":0}]
[{"$f":"PermList!$G15","v":"Lying/Cheating"},{"$f":"COUNTIFS(Data_Entry[Major Behavior],A15,Data_Entry[Month Name],$C$1,Data_Entry[Year],$D$1)","v":0},{"$f":"COUNTIFS(Data_Entry[Major Behavior],A15,Data_Entry[Year],$D$1)","v":0}]
[{"$f":"PermList!$G16","v":"Other Behavior"},{"$f":"COUNTIFS(Data_Entry[Major Behavior],A16,Data_Entry[Month Name],$C$1,Data_Entry[Year],$D$1)","v":0},{"$f":"COUNTIFS(Data_Entry[Major Behavior],A16,Data_Entry[Year],$D$1)","v":0}]
[{"$f":"PermList!$G17","v":"Property Damage/Vandalism"},{"$f":"COUNTIFS(Data_Entry[Major Behavior],A17,Data_Entry[Month Name],$C$1,Data_Entry[Year],$D$1)","v":0},{"$f":"COUNTIFS(Data_Entry[Major Behavior],A17,Data_Entry[Year],$D$1)","v":0}]
[{"$f":"PermList!$G18","v":"Skip Class"},{"$f":"COUNTIFS(Data_Entry[Major Behavior],A18,Data_Entry[Month Name],$C$1,Data_Entry[Year],$D$1)","v":0},{"$f":"COUNTIFS(Data_Entry[Major Behavior],A18,Data_Entry[Year],$D$1)","v":0}]
[{"$f":"PermList!$G19","v":"Truancy"},{"$f":"COUNTIFS(Data_Entry[Major Behavior],A19,Data_Entry[Month Name],$C$1,Data_Entry[Year],$D$1)","v":0},{"$f":"COUNTIFS(Data_Entry[Major Behavior],A19,Data_Entry[Year],$D$1)","v":0}]
[{"$f":"PermList!$G20","v":"Tardy"},{"$f":"COUNTIFS(Data_Entry[Major Behavior],A20,Data_Entry[Month Name],$C$1,Data_Entry[Year],$D$1)","v":0},{"$f":"COUNTIFS(Data_Entry[Major Behavior],A20,Data_Entry[Year],$D$1)","v":0}]
[{"$f":"PermList!$G21","v":"Technology Violation"},{"$f":"COUNTIFS(Data_Entry[Major Behavior],A21,Data_Entry[Month Name],$C$1,Data_Entry[Year],$D$1)","v":0},{"$f":"COUNTIFS(Data_Entry[Major Behavior],A21,Data_Entry[Year],$D$1)","v":0}]
[{"$f":"PermList!$G22","v":"Use/Possession of Alcohol"},{"$f":"COUNTIFS(Data_Entry[Major Behavior],A22,Data_Entry[Month Name],$C$1,Data_Entry[Year],$D$1)","v":0},{"$f":"COUNTIFS(Data_Entry[Major Behavior],A22,Data_Entry[Year],$D$1)","v":0}]
[{"$f":"PermList!$G23","v":"Use/Possession of Combustibles"},{"$f":"COUNTIFS(Data_Entry[Major Behavior],A23,Data_Entry[Month Name],$C$1,Data_Entry[Year],$D$1)","v":0},{"$f":"COUNTIFS(Data_Entry[Major Behavior],A23,Data_Entry[Year],$D$1)","v":0}]
[{"$f":"PermList!$G24","v":"Use/Possession of Drugs"},{"$f":"COUNTIFS(Data_Entry[Major Behavior],A24,Data_Entry[Month Name],$C$1,Data_Entry[Year],$D$1)","v":0},{"$f":"COUNTIFS(Data_Entry[Major Behavior],A24,Data_Entry[Year],$D$1)","v":0}]
[{"$f":"PermList!$G25","v":"Use/Possession of Tobacco"},{"$f":"COUNTIFS(Data_Entry[Major Behavior],A25,Data_Entry[Month Name],$C$1,Data_Entry[Year],$D$1)","v":0},{"$f":"COUNTIFS(Data_Entry[Major Behavior],A25,Data_Entry[Year],$D$1)","v":0}]
[{"$f":"PermList!$G26","v":"Use/Possession of Weapons"},{"$f":"COUNTIFS(Data_Entry[Major Behavior],A26,Data_Entry[Month Name],$C$1,Data_Entry[Year],$D$1)","v":0},{"$f":"COUNTIFS(Data_Entry[Major Behavior],A26,Data_Entry[Year],$D$1)","v":0}]
[]
[]
[]
[]
[]
[null,null,null,null,null,null,null,"Cumulative Chart by Major Behavior: ",{"$f":"D1","v":"2022"}]

{"sheet":"MajorsTime","index":3,"n_rows":46,"n_cols":10,"rows_kept":46,"cut":false,"hidden":false,"merged":[]}
["Time","ODRs for",{"$f":"Menu!I18","v":"February"},{"$f":"Menu!I16","v":"2022"},"by Time of  Day"]
[{"$f":"PermList!E2","v":"07:00:00"},{"$f":"COUNTIFS(Data_Entry[Time],A2,Data_Entry[Month Name],$C$1,Data_Entry[Year],$D$1,Data_Entry[Major Behavior],\"*\")","v":0},{"$f":"COUNTIFS(Data_Entry[Time],A2,Data_Entry[Year],$D$1,Data_Entry[Major Behavior],\"*\")","v":0}]
[{"$f":"PermList!E3","v":"07:15:00"},{"$f":"COUNTIFS(Data_Entry[Time],A3,Data_Entry[Month Name],$C$1,Data_Entry[Year],$D$1,Data_Entry[Major Behavior],\"*\")","v":0},{"$f":"COUNTIFS(Data_Entry[Time],A3,Data_Entry[Year],$D$1,Data_Entry[Major Behavior],\"*\")","v":0}]
[{"$f":"PermList!E4","v":"07:30:00"},{"$f":"COUNTIFS(Data_Entry[Time],A4,Data_Entry[Month Name],$C$1,Data_Entry[Year],$D$1,Data_Entry[Major Behavior],\"*\")","v":0},{"$f":"COUNTIFS(Data_Entry[Time],A4,Data_Entry[Year],$D$1,Data_Entry[Major Behavior],\"*\")","v":0}]
[{"$f":"PermList!E5","v":"07:45:00"},{"$f":"COUNTIFS(Data_Entry[Time],A5,Data_Entry[Month Name],$C$1,Data_Entry[Year],$D$1,Data_Entry[Major Behavior],\"*\")","v":0},{"$f":"COUNTIFS(Data_Entry[Time],A5,Data_Entry[Year],$D$1,Data_Entry[Major Behavior],\"*\")","v":0}]
[{"$f":"PermList!E6","v":"08:00:00"},{"$f":"COUNTIFS(Data_Entry[Time],A6,Data_Entry[Month Name],$C$1,Data_Entry[Year],$D$1,Data_Entry[Major Behavior],\"*\")","v":0},{"$f":"COUNTIFS(Data_Entry[Time],A6,Data_Entry[Year],$D$1,Data_Entry[Major Behavior],\"*\")","v":0}]
[{"$f":"PermList!E7","v":"08:15:00"},{"$f":"COUNTIFS(Data_Entry[Time],A7,Data_Entry[Month Name],$C$1,Data_Entry[Year],$D$1,Data_Entry[Major Behavior],\"*\")","v":0},{"$f":"COUNTIFS(Data_Entry[Time],A7,Data_Entry[Year],$D$1,Data_Entry[Major Behavior],\"*\")","v":0}]
[{"$f":"PermList!E8","v":"08:30:00"},{"$f":"COUNTIFS(Data_Entry[Time],A8,Data_Entry[Month Name],$C$1,Data_Entry[Year],$D$1,Data_Entry[Major Behavior],\"*\")","v":0},{"$f":"COUNTIFS(Data_Entry[Time],A8,Data_Entry[Year],$D$1,Data_Entry[Major Behavior],\"*\")","v":0}]
[{"$f":"PermList!E9","v":"08:45:00"},{"$f":"COUNTIFS(Data_Entry[Time],A9,Data_Entry[Month Name],$C$1,Data_Entry[Year],$D$1,Data_Entry[Major Behavior],\"*\")","v":0},{"$f":"COUNTIFS(Data_Entry[Time],A9,Data_Entry[Year],$D$1,Data_Entry[Major Behavior],\"*\")","v":0}]
[{"$f":"PermList!E10","v":"09:00:00"},{"$f":"COUNTIFS(Data_Entry[Time],A10,Data_Entry[Month Name],$C$1,Data_Entry[Year],$D$1,Data_Entry[Major Behavior],\"*\")","v":0},{"$f":"COUNTIFS(Data_Entry[Time],A10,Data_Entry[Year],$D$1,Data_Entry[Major Behavior],\"*\")","v":0}]
[{"$f":"PermList!E11","v":"09:15:00"},{"$f":"COUNTIFS(Data_Entry[Time],A11,Data_Entry[Month Name],$C$1,Data_Entry[Year],$D$1,Data_Entry[Major Behavior],\"*\")","v":0},{"$f":"COUNTIFS(Data_Entry[Time],A11,Data_Entry[Year],$D$1,Data_Entry[Major Behavior],\"*\")","v":0}]
[{"$f":"PermList!E12","v":"09:30:00"},{"$f":"COUNTIFS(Data_Entry[Time],A12,Data_Entry[Month Name],$C$1,Data_Entry[Year],$D$1,Data_Entry[Major Behavior],\"*\")","v":0},{"$f":"COUNTIFS(Data_Entry[Time],A12,Data_Entry[Year],$D$1,Data_Entry[Major Behavior],\"*\")","v":0}]
[{"$f":"PermList!E13","v":"09:45:00"},{"$f":"COUNTIFS(Data_Entry[Time],A13,Data_Entry[Month Name],$C$1,Data_Entry[Year],$D$1,Data_Entry[Major Behavior],\"*\")","v":0},{"$f":"COUNTIFS(Data_Entry[Time],A13,Data_Entry[Year],$D$1,Data_Entry[Major Behavior],\"*\")","v":0}]
[{"$f":"PermList!E14","v":"10:00:00"},{"$f":"COUNTIFS(Data_Entry[Time],A14,Data_Entry[Month Name],$C$1,Data_Entry[Year],$D$1,Data_Entry[Major Behavior],\"*\")","v":0},{"$f":"COUNTIFS(Data_Entry[Time],A14,Data_Entry[Year],$D$1,Data_Entry[Major Behavior],\"*\")","v":0}]
[{"$f":"PermList!E15","v":"10:15:00"},{"$f":"COUNTIFS(Data_Entry[Time],A15,Data_Entry[Month Name],$C$1,Data_Entry[Year],$D$1,Data_Entry[Major Behavior],\"*\")","v":0},{"$f":"COUNTIFS(Data_Entry[Time],A15,Data_Entry[Year],$D$1,Data_Entry[Major Behavior],\"*\")","v":0}]
[{"$f":"PermList!E16","v":"10:30:00"},{"$f":"COUNTIFS(Data_Entry[Time],A16,Data_Entry[Month Name],$C$1,Data_Entry[Year],$D$1,Data_Entry[Major Behavior],\"*\")","v":0},{"$f":"COUNTIFS(Data_Entry[Time],A16,Data_Entry[Year],$D$1,Data_Entry[Major Behavior],\"*\")","v":0}]
[{"$f":"PermList!E17","v":"10:45:00"},{"$f":"COUNTIFS(Data_Entry[Time],A17,Data_Entry[Month Name],$C$1,Data_Entry[Year],$D$1,Data_Entry[Major Behavior],\"*\")","v":0},{"$f":"COUNTIFS(Data_Entry[Time],A17,Data_Entry[Year],$D$1,Data_Entry[Major Behavior],\"*\")","v":0}]
[{"$f":"PermList!E18","v":"11:00:00"},{"$f":"COUNTIFS(Data_Entry[Time],A18,Data_Entry[Month Name],$C$1,Data_Entry[Year],$D$1,Data_Entry[Major Behavior],\"*\")","v":0},{"$f":"COUNTIFS(Data_Entry[Time],A18,Data_Entry[Year],$D$1,Data_Entry[Major Behavior],\"*\")","v":0}]
[{"$f":"PermList!E19","v":"11:15:00"},{"$f":"COUNTIFS(Data_Entry[Time],A19,Data_Entry[Month Name],$C$1,Data_Entry[Year],$D$1,Data_Entry[Major Behavior],\"*\")","v":0},{"$f":"COUNTIFS(Data_Entry[Time],A19,Data_Entry[Year],$D$1,Data_Entry[Major Behavior],\"*\")","v":0}]
[{"$f":"PermList!E20","v":"11:30:00"},{"$f":"COUNTIFS(Data_Entry[Time],A20,Data_Entry[Month Name],$C$1,Data_Entry[Year],$D$1,Data_Entry[Major Behavior],\"*\")","v":0},{"$f":"COUNTIFS(Data_Entry[Time],A20,Data_Entry[Year],$D$1,Data_Entry[Major Behavior],\"*\")","v":0}]
[{"$f":"PermList!E21","v":"11:45:00"},{"$f":"COUNTIFS(Data_Entry[Time],A21,Data_Entry[Month Name],$C$1,Data_Entry[Year],$D$1,Data_Entry[Major Behavior],\"*\")","v":0},{"$f":"COUNTIFS(Data_Entry[Time],A21,Data_Entry[Year],$D$1,Data_Entry[Major Behavior],\"*\")","v":0}]
[{"$f":"PermList!E22","v":"12:00:00"},{"$f":"COUNTIFS(Data_Entry[Time],A22,Data_Entry[Month Name],$C$1,Data_Entry[Year],$D$1,Data_Entry[Major Behavior],\"*\")","v":0},{"$f":"COUNTIFS(Data_Entry[Time],A22,Data_Entry[Year],$D$1,Data_Entry[Major Behavior],\"*\")","v":0},null,null,null,null,null,"Cumulative ODRs by Time of Day for ",{"$f":"D1","v":"2022"}]
[{"$f":"PermList!E23","v":"12:15:00"},{"$f":"COUNTIFS(Data_Entry[Time],A23,Data_Entry[Month Name],$C$1,Data_Entry[Year],$D$1,Data_Entry[Major Behavior],\"*\")","v":0},{"$f":"COUNTIFS(Data_Entry[Time],A23,Data_Entry[Year],$D$1,Data_Entry[Major Behavior],\"*\")","v":0}]
[{"$f":"PermList!E24","v":"12:30:00"},{"$f":"COUNTIFS(Data_Entry[Time],A24,Data_Entry[Month Name],$C$1,Data_Entry[Year],$D$1,Data_Entry[Major Behavior],\"*\")","v":0},{"$f":"COUNTIFS(Data_Entry[Time],A24,Data_Entry[Year],$D$1,Data_Entry[Major Behavior],\"*\")","v":0}]
[{"$f":"PermList!E25","v":"12:45:00"},{"$f":"COUNTIFS(Data_Entry[Time],A25,Data_Entry[Month Name],$C$1,Data_Entry[Year],$D$1,Data_Entry[Major Behavior],\"*\")","v":0},{"$f":"COUNTIFS(Data_Entry[Time],A25,Data_Entry[Year],$D$1,Data_Entry[Major Behavior],\"*\")","v":0}]
[{"$f":"PermList!E26","v":"13:00:00"},{"$f":"COUNTIFS(Data_Entry[Time],A26,Data_Entry[Month Name],$C$1,Data_Entry[Year],$D$1,Data_Entry[Major Behavior],\"*\")","v":0},{"$f":"COUNTIFS(Data_Entry[Time],A26,Data_Entry[Year],$D$1,Data_Entry[Major Behavior],\"*\")","v":0}]
[{"$f":"PermList!E27","v":"13:15:00"},{"$f":"COUNTIFS(Data_Entry[Time],A27,Data_Entry[Month Name],$C$1,Data_Entry[Year],$D$1,Data_Entry[Major Behavior],\"*\")","v":0},{"$f":"COUNTIFS(Data_Entry[Time],A27,Data_Entry[Year],$D$1,Data_Entry[Major Behavior],\"*\")","v":0}]
[{"$f":"PermList!E28","v":"13:30:00"},{"$f":"COUNTIFS(Data_Entry[Time],A28,Data_Entry[Month Name],$C$1,Data_Entry[Year],$D$1,Data_Entry[Major Behavior],\"*\")","v":0},{"$f":"COUNTIFS(Data_Entry[Time],A28,Data_Entry[Year],$D$1,Data_Entry[Major Behavior],\"*\")","v":0}]
[{"$f":"PermList!E29","v":"13:45:00"},{"$f":"COUNTIFS(Data_Entry[Time],A29,Data_Entry[Month Name],$C$1,Data_Entry[Year],$D$1,Data_Entry[Major Behavior],\"*\")","v":0},{"$f":"COUNTIFS(Data_Entry[Time],A29,Data_Entry[Year],$D$1,Data_Entry[Major Behavior],\"*\")","v":0}]
[{"$f":"PermList!E30","v":"14:00:00"},{"$f":"COUNTIFS(Data_Entry[Time],A30,Data_Entry[Month Name],$C$1,Data_Entry[Year],$D$1,Data_Entry[Major Behavior],\"*\")","v":0},{"$f":"COUNTIFS(Data_Entry[Time],A30,Data_Entry[Year],$D$1,Data_Entry[Major Behavior],\"*\")","v":0}]
[{"$f":"PermList!E31","v":"14:15:00"},{"$f":"COUNTIFS(Data_Entry[Time],A31,Data_Entry[Month Name],$C$1,Data_Entry[Year],$D$1,Data_Entry[Major Behavior],\"*\")","v":0},{"$f":"COUNTIFS(Data_Entry[Time],A31,Data_Entry[Year],$D$1,Data_Entry[Major Behavior],\"*\")","v":0}]
[{"$f":"PermList!E32","v":"14:30:00"},{"$f":"COUNTIFS(Data_Entry[Time],A32,Data_Entry[Month Name],$C$1,Data_Entry[Year],$D$1,Data_Entry[Major Behavior],\"*\")","v":0},{"$f":"COUNTIFS(Data_Entry[Time],A32,Data_Entry[Year],$D$1,Data_Entry[Major Behavior],\"*\")","v":0}]
[{"$f":"PermList!E33","v":"14:45:00"},{"$f":"COUNTIFS(Data_Entry[Time],A33,Data_Entry[Month Name],$C$1,Data_Entry[Year],$D$1,Data_Entry[Major Behavior],\"*\")","v":0},{"$f":"COUNTIFS(Data_Entry[Time],A33,Data_Entry[Year],$D$1,Data_Entry[Major Behavior],\"*\")","v":0}]
[{"$f":"PermList!E34","v":"15:00:00"},{"$f":"COUNTIFS(Data_Entry[Time],A34,Data_Entry[Month Name],$C$1,Data_Entry[Year],$D$1,Data_Entry[Major Behavior],\"*\")","v":0},{"$f":"COUNTIFS(Data_Entry[Time],A34,Data_Entry[Year],$D$1,Data_Entry[Major Behavior],\"*\")","v":0}]
[{"$f":"PermList!E35","v":"15:15:00"},{"$f":"COUNTIFS(Data_Entry[Time],A35,Data_Entry[Month Name],$C$1,Data_Entry[Year],$D$1,Data_Entry[Major Behavior],\"*\")","v":0},{"$f":"COUNTIFS(Data_Entry[Time],A35,Data_Entry[Year],$D$1,Data_Entry[Major Behavior],\"*\")","v":0}]
[{"$f":"PermList!E36","v":"15:30:00"},{"$f":"COUNTIFS(Data_Entry[Time],A36,Data_Entry[Month Name],$C$1,Data_Entry[Year],$D$1,Data_Entry[Major Behavior],\"*\")","v":0},{"$f":"COUNTIFS(Data_Entry[Time],A36,Data_Entry[Year],$D$1,Data_Entry[Major Behavior],\"*\")","v":0}]
[{"$f":"PermList!E37","v":"15:45:00"},{"$f":"COUNTIFS(Data_Entry[Time],A37,Data_Entry[Month Name],$C$1,Data_Entry[Year],$D$1,Data_Entry[Major Behavior],\"*\")","v":0},{"$f":"COUNTIFS(Data_Entry[Time],A37,Data_Entry[Year],$D$1,Data_Entry[Major Behavior],\"*\")","v":0}]
[{"$f":"PermList!E38","v":"16:00:00"},{"$f":"COUNTIFS(Data_Entry[Time],A38,Data_Entry[Month Name],$C$1,Data_Entry[Year],$D$1,Data_Entry[Major Behavior],\"*\")","v":0},{"$f":"COUNTIFS(Data_Entry[Time],A38,Data_Entry[Year],$D$1,Data_Entry[Major Behavior],\"*\")","v":0}]
[{"$f":"PermList!E39","v":"16:15:00"},{"$f":"COUNTIFS(Data_Entry[Time],A39,Data_Entry[Month Name],$C$1,Data_Entry[Year],$D$1,Data_Entry[Major Behavior],\"*\")","v":0},{"$f":"COUNTIFS(Data_Entry[Time],A39,Data_Entry[Year],$D$1,Data_Entry[Major Behavior],\"*\")","v":0}]
[{"$f":"PermList!E40","v":"16:30:00"},{"$f":"COUNTIFS(Data_Entry[Time],A40,Data_Entry[Month Name],$C$1,Data_Entry[Year],$D$1,Data_Entry[Major Behavior],\"*\")","v":0},{"$f":"COUNTIFS(Data_Entry[Time],A40,Data_Entry[Year],$D$1,Data_Entry[Major Behavior],\"*\")","v":0}]
[{"$f":"PermList!E41","v":"16:45:00"},{"$f":"COUNTIFS(Data_Entry[Time],A41,Data_Entry[Month Name],$C$1,Data_Entry[Year],$D$1,Data_Entry[Major Behavior],\"*\")","v":0},{"$f":"COUNTIFS(Data_Entry[Time],A41,Data_Entry[Year],$D$1,Data_Entry[Major Behavior],\"*\")","v":0}]
[{"$f":"PermList!E42","v":"17:00:00"},{"$f":"COUNTIFS(Data_Entry[Time],A42,Data_Entry[Month Name],$C$1,Data_Entry[Year],$D$1,Data_Entry[Major Behavior],\"*\")","v":0},{"$f":"COUNTIFS(Data_Entry[Time],A42,Data_Entry[Year],$D$1,Data_Entry[Major Behavior],\"*\")","v":0}]
[{"$f":"PermList!E43","v":"17:15:00"},{"$f":"COUNTIFS(Data_Entry[Time],A43,Data_Entry[Month Name],$C$1,Data_Entry[Year],$D$1,Data_Entry[Major Behavior],\"*\")","v":0},{"$f":"COUNTIFS(Data_Entry[Time],A43,Data_Entry[Year],$D$1,Data_Entry[Major Behavior],\"*\")","v":0}]
[{"$f":"PermList!E44","v":"17:30:00"},{"$f":"COUNTIFS(Data_Entry[Time],A44,Data_Entry[Month Name],$C$1,Data_Entry[Year],$D$1,Data_Entry[Major Behavior],\"*\")","v":0},{"$f":"COUNTIFS(Data_Entry[Time],A44,Data_Entry[Year],$D$1,Data_Entry[Major Behavior],\"*\")","v":0}]
[{"$f":"PermList!E45","v":"17:45:00"},{"$f":"COUNTIFS(Data_Entry[Time],A45,Data_Entry[Month Name],$C$1,Data_Entry[Year],$D$1,Data_Entry[Major Behavior],\"*\")","v":0},{"$f":"COUNTIFS(Data_Entry[Time],A45,Data_Entry[Year],$D$1,Data_Entry[Major Behavior],\"*\")","v":0}]
[{"$f":"PermList!E46","v":"18:00:00"},{"$f":"COUNTIFS(Data_Entry[Time],A46,Data_Entry[Month Name],$C$1,Data_Entry[Year],$D$1,Data_Entry[Major Behavior],\"*\")","v":0},{"$f":"COUNTIFS(Data_Entry[Time],A46,Data_Entry[Year],$D$1,Data_Entry[Major Behavior],\"*\")","v":0}]

{"sheet":"DataEntry","index":4,"n_rows":2,"n_cols":23,"rows_kept":2,"cut":false,"hidden":false,"merged":[]}
[]
["Student_Demographics.Enter a unique student number, below.","Student_Demographics.Last Name","Student_Demographics.First Name","Student_Demographics.Gender","Student_Demographics.IEP","Student_Demographics.Ethnicity","Student_Demographics.Race","Grade","Referring Staff Member","Date of Incident","Month Name","Day Name","Year","Time","Location","Major Behavior","Minor Behavior","Others Involved","Possible Motivation","Administrative Decision","Days of Suspension","Additional Information","At Least 1 ODR for Year"]

{"sheet":"MajorsDayofWeek","index":5,"n_rows":21,"n_cols":8,"rows_kept":21,"cut":false,"hidden":false,"merged":[]}
["Day of Week","ODRs for",{"$f":"Menu!I18","v":"February"},{"$f":"Menu!I16","v":"2022"},"by Day of Week"]
["Monday",{"$f":"COUNTIFS(Data_Entry[Day Name],A2,Data_Entry[Month Name],$C$1,Data_Entry[Year],$D$1,Data_Entry[Major Behavior],\"*\")","v":0},{"$f":"COUNTIFS(Data_Entry[Day Name],A2,Data_Entry[Year],$D$1,Data_Entry[Major Behavior],\"*\")","v":0}]
["Tuesday",{"$f":"COUNTIFS(Data_Entry[Day Name],A3,Data_Entry[Month Name],$C$1,Data_Entry[Year],$D$1,Data_Entry[Major Behavior],\"*\")","v":0},{"$f":"COUNTIFS(Data_Entry[Day Name],A3,Data_Entry[Year],$D$1,Data_Entry[Major Behavior],\"*\")","v":0}]
["Wednesday",{"$f":"COUNTIFS(Data_Entry[Day Name],A4,Data_Entry[Month Name],$C$1,Data_Entry[Year],$D$1,Data_Entry[Major Behavior],\"*\")","v":0},{"$f":"COUNTIFS(Data_Entry[Day Name],A4,Data_Entry[Year],$D$1,Data_Entry[Major Behavior],\"*\")","v":0}]
["Thursday",{"$f":"COUNTIFS(Data_Entry[Day Name],A5,Data_Entry[Month Name],$C$1,Data_Entry[Year],$D$1,Data_Entry[Major Behavior],\"*\")","v":0},{"$f":"COUNTIFS(Data_Entry[Day Name],A5,Data_Entry[Year],$D$1,Data_Entry[Major Behavior],\"*\")","v":0}]
["Friday",{"$f":"COUNTIFS(Data_Entry[Day Name],A6,Data_Entry[Month Name],$C$1,Data_Entry[Year],$D$1,Data_Entry[Major Behavior],\"*\")","v":0},{"$f":"COUNTIFS(Data_Entry[Day Name],A6,Data_Entry[Year],$D$1,Data_Entry[Major Behavior],\"*\")","v":0}]
[]
[]
[]
[]
[]
[]
[]
[]
[]
[]
[]
[]
[]
[]
[null,null,null,null,null,null,"Cumulative ODRs by Day of Week for ",{"$f":"D1","v":"2022"}]

{"sheet":"MajorsLocation","index":6,"n_rows":22,"n_cols":8,"rows_kept":22,"cut":false,"hidden":false,"merged":[]}
["Location","ODRs for",{"$f":"Menu!I18","v":"February"},{"$f":"Menu!I16","v":"2022"},"by Location"]
[{"$f":"PermList!$F2","v":"Classroom"},{"$f":"COUNTIFS(Data_Entry[Location],A2,Data_Entry[Month Name],$C$1,Data_Entry[Year],$D$1,Data_Entry[Major Behavior],\"*\")","v":0},{"$f":"COUNTIFS(Data_Entry[Location],A2,Data_Entry[Year],$D$1,Data_Entry[Major Behavior],\"*\")","v":0}]
[{"$f":"PermList!$F3","v":"Playground"},{"$f":"COUNTIFS(Data_Entry[Location],A3,Data_Entry[Month Name],$C$1,Data_Entry[Year],$D$1,Data_Entry[Major Behavior],\"*\")","v":0},{"$f":"COUNTIFS(Data_Entry[Location],A3,Data_Entry[Year],$D$1,Data_Entry[Major Behavior],\"*\")","v":0}]
[{"$f":"PermList!$F4","v":"Commons/Common Areas"},{"$f":"COUNTIFS(Data_Entry[Location],A4,Data_Entry[Month Name],$C$1,Data_Entry[Year],$D$1,Data_Entry[Major Behavior],\"*\")","v":0},{"$f":"COUNTIFS(Data_Entry[Location],A4,Data_Entry[Year],$D$1,Data_Entry[Major Behavior],\"*\")","v":0}]
[{"$f":"PermList!$F5","v":"Hall/Breeze way"},{"$f":"COUNTIFS(Data_Entry[Location],A5,Data_Entry[Month Name],$C$1,Data_Entry[Year],$D$1,Data_Entry[Major Behavior],\"*\")","v":0},{"$f":"COUNTIFS(Data_Entry[Location],A5,Data_Entry[Year],$D$1,Data_Entry[Major Behavior],\"*\")","v":0}]
[{"$f":"PermList!$F6","v":"Cafeteria"},{"$f":"COUNTIFS(Data_Entry[Location],A6,Data_Entry[Month Name],$C$1,Data_Entry[Year],$D$1,Data_Entry[Major Behavior],\"*\")","v":0},{"$f":"COUNTIFS(Data_Entry[Location],A6,Data_Entry[Year],$D$1,Data_Entry[Major Behavior],\"*\")","v":0}]
[{"$f":"PermList!$F7","v":"Bathroom/Restroom"},{"$f":"COUNTIFS(Data_Entry[Location],A7,Data_Entry[Month Name],$C$1,Data_Entry[Year],$D$1,Data_Entry[Major Behavior],\"*\")","v":0},{"$f":"COUNTIFS(Data_Entry[Location],A7,Data_Entry[Year],$D$1,Data_Entry[Major Behavior],\"*\")","v":0}]
[{"$f":"PermList!$F8","v":"Gym"},{"$f":"COUNTIFS(Data_Entry[Location],A8,Data_Entry[Month Name],$C$1,Data_Entry[Year],$D$1,Data_Entry[Major Behavior],\"*\")","v":0},{"$f":"COUNTIFS(Data_Entry[Location],A8,Data_Entry[Year],$D$1,Data_Entry[Major Behavior],\"*\")","v":0}]
[{"$f":"PermList!$F9","v":"Library"},{"$f":"COUNTIFS(Data_Entry[Location],A9,Data_Entry[Month Name],$C$1,Data_Entry[Year],$D$1,Data_Entry[Major Behavior],\"*\")","v":0},{"$f":"COUNTIFS(Data_Entry[Location],A9,Data_Entry[Year],$D$1,Data_Entry[Major Behavior],\"*\")","v":0}]
[{"$f":"PermList!$F10","v":"Bus Loading Zone"},{"$f":"COUNTIFS(Data_Entry[Location],A10,Data_Entry[Month Name],$C$1,Data_Entry[Year],$D$1,Data_Entry[Major Behavior],\"*\")","v":0},{"$f":"COUNTIFS(Data_Entry[Location],A10,Data_Entry[Year],$D$1,Data_Entry[Major Behavior],\"*\")","v":0}]
[{"$f":"PermList!$F11","v":"Parking Lot"},{"$f":"COUNTIFS(Data_Entry[Location],A11,Data_Entry[Month Name],$C$1,Data_Entry[Year],$D$1,Data_Entry[Major Behavior],\"*\")","v":0},{"$f":"COUNTIFS(Data_Entry[Location],A11,Data_Entry[Year],$D$1,Data_Entry[Major Behavior],\"*\")","v":0}]
[{"$f":"PermList!$F12","v":"Bus"},{"$f":"COUNTIFS(Data_Entry[Location],A12,Data_Entry[Month Name],$C$1,Data_Entry[Year],$D$1,Data_Entry[Major Behavior],\"*\")","v":0},{"$f":"COUNTIFS(Data_Entry[Location],A12,Data_Entry[Year],$D$1,Data_Entry[Major Behavior],\"*\")","v":0}]
[{"$f":"PermList!$F13","v":"Special Event/Assembly/Field trip"},{"$f":"COUNTIFS(Data_Entry[Location],A13,Data_Entry[Month Name],$C$1,Data_Entry[Year],$D$1,Data_Entry[Major Behavior],\"*\")","v":0},{"$f":"COUNTIFS(Data_Entry[Location],A13,Data_Entry[Year],$D$1,Data_Entry[Major Behavior],\"*\")","v":0}]
[{"$f":"PermList!$F14","v":"Other Location"},{"$f":"COUNTIFS(Data_Entry[Location],A14,Data_Entry[Month Name],$C$1,Data_Entry[Year],$D$1,Data_Entry[Major Behavior],\"*\")","v":0},{"$f":"COUNTIFS(Data_Entry[Location],A14,Data_Entry[Year],$D$1,Data_Entry[Major Behavior],\"*\")","v":0}]
[{"$f":"PermList!$F15","v":"Unknown Location"},{"$f":"COUNTIFS(Data_Entry[Location],A15,Data_Entry[Month Name],$C$1,Data_Entry[Year],$D$1,Data_Entry[Major Behavior],\"*\")","v":0},{"$f":"COUNTIFS(Data_Entry[Location],A15,Data_Entry[Year],$D$1,Data_Entry[Major Behavior],\"*\")","v":0}]
[{"$f":"PermList!$F16","v":"Office"},{"$f":"COUNTIFS(Data_Entry[Location],A16,Data_Entry[Month Name],$C$1,Data_Entry[Year],$D$1,Data_Entry[Major Behavior],\"*\")","v":0},{"$f":"COUNTIFS(Data_Entry[Location],A16,Data_Entry[Year],$D$1,Data_Entry[Major Behavior],\"*\")","v":0}]
[{"$f":"PermList!$F17","v":"Locker Room"},{"$f":"COUNTIFS(Data_Entry[Location],A17,Data_Entry[Month Name],$C$1,Data_Entry[Year],$D$1,Data_Entry[Major Behavior],\"*\")","v":0},{"$f":"COUNTIFS(Data_Entry[Location],A17,Data_Entry[Year],$D$1,Data_Entry[Major Behavior],\"*\")","v":0}]
[{"$f":"PermList!$F18","v":"Off-Campus"},{"$f":"COUNTIFS(Data_Entry[Location],A18,Data_Entry[Month Name],$C$1,Data_Entry[Year],$D$1,Data_Entry[Major Behavior],\"*\")","v":0},{"$f":"COUNTIFS(Data_Entry[Location],A18,Data_Entry[Year],$D$1,Data_Entry[Major Behavior],\"*\")","v":0}]
[{"$f":"PermList!$F19","v":"Stadium"},{"$f":"COUNTIFS(Data_Entry[Location],A19,Data_Entry[Month Name],$C$1,Data_Entry[Year],$D$1,Data_Entry[Major Behavior],\"*\")","v":0},{"$f":"COUNTIFS(Data_Entry[Location],A19,Data_Entry[Year],$D$1,Data_Entry[Major Behavior],\"*\")","v":0},null,null,null,"Cumulative ODRs by Location for ",{"$f":"D1","v":"2022"}]
[{"$f":"PermList!$F20","v":"Music Room"},{"$f":"COUNTIFS(Data_Entry[Location],A20,Data_Entry[Month Name],$C$1,Data_Entry[Year],$D$1,Data_Entry[Major Behavior],\"*\")","v":0},{"$f":"COUNTIFS(Data_Entry[Location],A20,Data_Entry[Year],$D$1,Data_Entry[Major Behavior],\"*\")","v":0}]
[{"$f":"PermList!$F21","v":"Computer Lab"},{"$f":"COUNTIFS(Data_Entry[Location],A21,Data_Entry[Month Name],$C$1,Data_Entry[Year],$D$1,Data_Entry[Major Behavior],\"*\")","v":0},{"$f":"COUNTIFS(Data_Entry[Location],A21,Data_Entry[Year],$D$1,Data_Entry[Major Behavior],\"*\")","v":0}]
[{"$f":"PermList!$F22","v":"Art Room"},{"$f":"COUNTIFS(Data_Entry[Location],A22,Data_Entry[Month Name],$C$1,Data_Entry[Year],$D$1,Data_Entry[Major Behavior],\"*\")","v":0},{"$f":"COUNTIFS(Data_Entry[Location],A22,Data_Entry[Year],$D$1,Data_Entry[Major Behavior],\"*\")","v":0}]

{"sheet":"MajorsStudent","index":7,"n_rows":49,"n_cols":17,"rows_kept":49,"cut":false,"hidden":false,"merged":[]}
["Student Number","First  Name","Last Name","Month","Year"]
[{"$f":"StudentDashboard!A4","v":0},{"$f":"VLOOKUP($A$2,StudentDatabase!A:L,3,FALSE)","v":{"$error":"#N/A"}},{"$f":"VLOOKUP(A2,StudentDatabase!A:L,2,FALSE)","v":{"$error":"#N/A"}},{"$f":"Menu!I18","v":"February"},{"$f":"Menu!I16","v":"2022"}]
[null,null,null,null,null,null,null,null,null,null,null,null,null,null,null,"Total Days Suspended"]
["Majors","Majors Count","Cumulative Majors Count","Location","Location Count","Cumulative  Location Count","Time","Time Count","Cumulative Time  Couny","Motivation","Motivation Count","Cumulative Motivation","Others ","Others Count","Cumulative Others Count","Month","Count"]
[{"$f":"PermList!$G2","v":"Abusive/Inappropriate Language"},{"$f":"COUNTIFS(Data_Entry[Major Behavior],A5,Data_Entry[Month Name],$D$2,Data_Entry[Student_Demographics.Enter a unique student number, below.],$A$2,Data_Entry[Year],$E$2)","v":0},{"$f":"COUNTIFS(Data_Entry[Major Behavior],A5,Data_Entry[Student_Demographics.Enter a unique student number, below.],$A$2,Data_Entry[Year],$E$2)","v":0},{"$f":"PermList!$F2","v":"Classroom"},{"$f":"COUNTIFS(Data_Entry[Location],D5,Data_Entry[Month Name],$D$2,Data_Entry[Student_Demographics.Enter a unique student number, below.],$A$2,Data_Entry[Year],$E$2,Data_Entry[Major Behavior],\"*\")","v":0},{"$f":"COUNTIFS(Data_Entry[Location],D5,Data_Entry[Student_Demographics.Enter a unique student number, below.],$A$2,Data_Entry[Year],$E$2,Data_Entry[Major Behavior],\"*\")","v":0},"07:00:00",{"$f":"COUNTIFS(Data_Entry[Time],G5,Data_Entry[Month Name],$D$2,Data_Entry[Student_Demographics.Enter a unique student number, below.],$A$2,Data_Entry[Year],$E$2,Data_Entry[Major Behavior],\"*\")","v":0},{"$f":"COUNTIFS(Data_Entry[Time],G5,Data_Entry[Student_Demographics.Enter a unique student number, below.],$A$2,Data_Entry[Year],$E$2,Data_Entry[Major Behavior],\"*\")","v":0},{"$f":"PermList!$J2","v":"Gain Peer Attention"},{"$f":"COUNTIFS(Data_Entry[Possible Motivation],J5,Data_Entry[Month Name],$D$2,Data_Entry[Student_Demographics.Enter a unique student number, below.],$A$2,Data_Entry[Year],$E$2,Data_Entry[Major Behavior],\"*\")","v":0},{"$f":"COUNTIFS(Data_Entry[Possible Motivation],J5,Data_Entry[Student_Demographics.Enter a unique student number, below.],$A$2,Data_Entry[Year],$E$2,Data_Entry[Major Behavior],\"*\")","v":0},"None",{"$f":"COUNTIFS(Data_Entry[Others Involved],M5,Data_Entry[Month Name],$D$2,Data_Entry[Student_Demographics.Enter a unique student number, below.],$A$2,Data_Entry[Year],$E$2,Data_Entry[Major Behavior],\"*\")","v":0},{"$f":"COUNTIFS(Data_Entry[Others Involved],M5,Data_Entry[Student_Demographics.Enter a unique student number, below.],$A$2,Data_Entry[Year],$E$2,Data_Entry[Major Behavior],\"*\")","v":0},"July",{"$f":"COUNTIFS(Data_Entry[Month Name],P5,Data_Entry[Student_Demographics.Enter a unique student number, below.],$A$2,Data_Entry[Year],$E$2,Data_Entry[Major Behavior],\"*\")","v":0}]
[{"$f":"PermList!$G3","v":"Arson"},{"$f":"COUNTIFS(Data_Entry[Major Behavior],A6,Data_Entry[Month Name],$D$2,Data_Entry[Student_Demographics.Enter a unique student number, below.],$A$2,Data_Entry[Year],$E$2)","v":0},{"$f":"COUNTIFS(Data_Entry[Major Behavior],A6,Data_Entry[Student_Demographics.Enter a unique student number, below.],$A$2,Data_Entry[Year],$E$2)","v":0},{"$f":"PermList!$F3","v":"Playground"},{"$f":"COUNTIFS(Data_Entry[Location],D6,Data_Entry[Month Name],$D$2,Data_Entry[Student_Demographics.Enter a unique student number, below.],$A$2,Data_Entry[Year],$E$2,Data_Entry[Major Behavior],\"*\")","v":0},{"$f":"COUNTIFS(Data_Entry[Location],D6,Data_Entry[Student_Demographics.Enter a unique student number, below.],$A$2,Data_Entry[Year],$E$2,Data_Entry[Major Behavior],\"*\")","v":0},"07:15:00",{"$f":"COUNTIFS(Data_Entry[Time],G6,Data_Entry[Month Name],$D$2,Data_Entry[Student_Demographics.Enter a unique student number, below.],$A$2,Data_Entry[Year],$E$2,Data_Entry[Major Behavior],\"*\")","v":0},{"$f":"COUNTIFS(Data_Entry[Time],G6,Data_Entry[Student_Demographics.Enter a unique student number, below.],$A$2,Data_Entry[Year],$E$2,Data_Entry[Major Behavior],\"*\")","v":0},{"$f":"PermList!$J3","v":"Gain Adult Attention"},{"$f":"COUNTIFS(Data_Entry[Possible Motivation],J6,Data_Entry[Month Name],$D$2,Data_Entry[Student_Demographics.Enter a unique student number, below.],$A$2,Data_Entry[Year],$E$2,Data_Entry[Major Behavior],\"*\")","v":0},{"$f":"COUNTIFS(Data_Entry[Possible Motivation],J6,Data_Entry[Student_Demographics.Enter a unique student number, below.],$A$2,Data_Entry[Year],$E$2,Data_Entry[Major Behavior],\"*\")","v":0},"Peers",{"$f":"COUNTIFS(Data_Entry[Others Involved],M6,Data_Entry[Month Name],$D$2,Data_Entry[Student_Demographics.Enter a unique student number, below.],$A$2,Data_Entry[Year],$E$2,Data_Entry[Major Behavior],\"*\")","v":0},{"$f":"COUNTIFS(Data_Entry[Others Involved],M6,Data_Entry[Student_Demographics.Enter a unique student number, below.],$A$2,Data_Entry[Year],$E$2,Data_Entry[Major Behavior],\"*\")","v":0},"August",{"$f":"COUNTIFS(Data_Entry[Month Name],P6,Data_Entry[Student_Demographics.Enter a unique student number, below.],$A$2,Data_Entry[Year],$E$2,Data_Entry[Major Behavior],\"*\")","v":0}]
[{"$f":"PermList!$G4","v":"Bomb Threat/False Alarm"},{"$f":"COUNTIFS(Data_Entry[Major Behavior],A7,Data_Entry[Month Name],$D$2,Data_Entry[Student_Demographics.Enter a unique student number, below.],$A$2,Data_Entry[Year],$E$2)","v":0},{"$f":"COUNTIFS(Data_Entry[Major Behavior],A7,Data_Entry[Student_Demographics.Enter a unique student number, below.],$A$2,Data_Entry[Year],$E$2)","v":0},{"$f":"PermList!$F4","v":"Commons/Common Areas"},{"$f":"COUNTIFS(Data_Entry[Location],D7,Data_Entry[Month Name],$D$2,Data_Entry[Student_Demographics.Enter a unique student number, below.],$A$2,Data_Entry[Year],$E$2,Data_Entry[Major Behavior],\"*\")","v":0},{"$f":"COUNTIFS(Data_Entry[Location],D7,Data_Entry[Student_Demographics.Enter a unique student number, below.],$A$2,Data_Entry[Year],$E$2,Data_Entry[Major Behavior],\"*\")","v":0},"07:30:00",{"$f":"COUNTIFS(Data_Entry[Time],G7,Data_Entry[Month Name],$D$2,Data_Entry[Student_Demographics.Enter a unique student number, below.],$A$2,Data_Entry[Year],$E$2,Data_Entry[Major Behavior],\"*\")","v":0},{"$f":"COUNTIFS(Data_Entry[Time],G7,Data_Entry[Student_Demographics.Enter a unique student number, below.],$A$2,Data_Entry[Year],$E$2,Data_Entry[Major Behavior],\"*\")","v":0},{"$f":"PermList!$J4","v":"Gain Object"},{"$f":"COUNTIFS(Data_Entry[Possible Motivation],J7,Data_Entry[Month Name],$D$2,Data_Entry[Student_Demographics.Enter a unique student number, below.],$A$2,Data_Entry[Year],$E$2,Data_Entry[Major Behavior],\"*\")","v":0},{"$f":"COUNTIFS(Data_Entry[Possible Motivation],J7,Data_Entry[Student_Demographics.Enter a unique student number, below.],$A$2,Data_Entry[Year],$E$2,Data_Entry[Major Behavior],\"*\")","v":0},"Staff",{"$f":"COUNTIFS(Data_Entry[Others Involved],M7,Data_Entry[Month Name],$D$2,Data_Entry[Student_Demographics.Enter a unique student number, below.],$A$2,Data_Entry[Year],$E$2,Data_Entry[Major Behavior],\"*\")","v":0},{"$f":"COUNTIFS(Data_Entry[Others Involved],M7,Data_Entry[Student_Demographics.Enter a unique student number, below.],$A$2,Data_Entry[Year],$E$2,Data_Entry[Major Behavior],\"*\")","v":0},"September",{"$f":"COUNTIFS(Data_Entry[Month Name],P7,Data_Entry[Student_Demographics.Enter a unique student number, below.],$A$2,Data_Entry[Year],$E$2,Data_Entry[Major Behavior],\"*\")","v":0}]
[{"$f":"PermList!$G5","v":"Defiance/Disrespect/Insubordination/Non-Compliance"},{"$f":"COUNTIFS(Data_Entry[Major Behavior],A8,Data_Entry[Month Name],$D$2,Data_Entry[Student_Demographics.Enter a unique student number, below.],$A$2,Data_Entry[Year],$E$2)","v":0},{"$f":"COUNTIFS(Data_Entry[Major Behavior],A8,Data_Entry[Student_Demographics.Enter a unique student number, below.],$A$2,Data_Entry[Year],$E$2)","v":0},{"$f":"PermList!$F5","v":"Hall/Breeze way"},{"$f":"COUNTIFS(Data_Entry[Location],D8,Data_Entry[Month Name],$D$2,Data_Entry[Student_Demographics.Enter a unique student number, below.],$A$2,Data_Entry[Year],$E$2,Data_Entry[Major Behavior],\"*\")","v":0},{"$f":"COUNTIFS(Data_Entry[Location],D8,Data_Entry[Student_Demographics.Enter a unique student number, below.],$A$2,Data_Entry[Year],$E$2,Data_Entry[Major Behavior],\"*\")","v":0},"07:45:00",{"$f":"COUNTIFS(Data_Entry[Time],G8,Data_Entry[Month Name],$D$2,Data_Entry[Student_Demographics.Enter a unique student number, below.],$A$2,Data_Entry[Year],$E$2,Data_Entry[Major Behavior],\"*\")","v":0},{"$f":"COUNTIFS(Data_Entry[Time],G8,Data_Entry[Student_Demographics.Enter a unique student number, below.],$A$2,Data_Entry[Year],$E$2,Data_Entry[Major Behavior],\"*\")","v":0},{"$f":"PermList!$J5","v":"Avoid Peer Attention"},{"$f":"COUNTIFS(Data_Entry[Possible Motivation],J8,Data_Entry[Month Name],$D$2,Data_Entry[Student_Demographics.Enter a unique student number, below.],$A$2,Data_Entry[Year],$E$2,Data_Entry[Major Behavior],\"*\")","v":0},{"$f":"COUNTIFS(Data_Entry[Possible Motivation],J8,Data_Entry[Student_Demographics.Enter a unique student number, below.],$A$2,Data_Entry[Year],$E$2,Data_Entry[Major Behavior],\"*\")","v":0},"Teacher",{"$f":"COUNTIFS(Data_Entry[Others Involved],M8,Data_Entry[Month Name],$D$2,Data_Entry[Student_Demographics.Enter a unique student number, below.],$A$2,Data_Entry[Year],$E$2,Data_Entry[Major Behavior],\"*\")","v":0},{"$f":"COUNTIFS(Data_Entry[Others Involved],M8,Data_Entry[Student_Demographics.Enter a unique student number, below.],$A$2,Data_Entry[Year],$E$2,Data_Entry[Major Behavior],\"*\")","v":0},"October",{"$f":"COUNTIFS(Data_Entry[Month Name],P8,Data_Entry[Student_Demographics.Enter a unique student number, below.],$A$2,Data_Entry[Year],$E$2,Data_Entry[Major Behavior],\"*\")","v":0}]
[{"$f":"PermList!$G6","v":"Disruption"},{"$f":"COUNTIFS(Data_Entry[Major Behavior],A9,Data_Entry[Month Name],$D$2,Data_Entry[Student_Demographics.Enter a unique student number, below.],$A$2,Data_Entry[Year],$E$2)","v":0},{"$f":"COUNTIFS(Data_Entry[Major Behavior],A9,Data_Entry[Student_Demographics.Enter a unique student number, below.],$A$2,Data_Entry[Year],$E$2)","v":0},{"$f":"PermList!$F6","v":"Cafeteria"},{"$f":"COUNTIFS(Data_Entry[Location],D9,Data_Entry[Month Name],$D$2,Data_Entry[Student_Demographics.Enter a unique student number, below.],$A$2,Data_Entry[Year],$E$2,Data_Entry[Major Behavior],\"*\")","v":0},{"$f":"COUNTIFS(Data_Entry[Location],D9,Data_Entry[Student_Demographics.Enter a unique student number, below.],$A$2,Data_Entry[Year],$E$2,Data_Entry[Major Behavior],\"*\")","v":0},"08:00:00",{"$f":"COUNTIFS(Data_Entry[Time],G9,Data_Entry[Month Name],$D$2,Data_Entry[Student_Demographics.Enter a unique student number, below.],$A$2,Data_Entry[Year],$E$2,Data_Entry[Major Behavior],\"*\")","v":0},{"$f":"COUNTIFS(Data_Entry[Time],G9,Data_Entry[Student_Demographics.Enter a unique student number, below.],$A$2,Data_Entry[Year],$E$2,Data_Entry[Major Behavior],\"*\")","v":0},{"$f":"PermList!$J6","v":"Avoid Adult Attention"},{"$f":"COUNTIFS(Data_Entry[Possible Motivation],J9,Data_Entry[Month Name],$D$2,Data_Entry[Student_Demographics.Enter a unique student number, below.],$A$2,Data_Entry[Year],$E$2,Data_Entry[Major Behavior],\"*\")","v":0},{"$f":"COUNTIFS(Data_Entry[Possible Motivation],J9,Data_Entry[Student_Demographics.Enter a unique student number, below.],$A$2,Data_Entry[Year],$E$2,Data_Entry[Major Behavior],\"*\")","v":0},"Substitute",{"$f":"COUNTIFS(Data_Entry[Others Involved],M9,Data_Entry[Month Name],$D$2,Data_Entry[Student_Demographics.Enter a unique student number, below.],$A$2,Data_Entry[Year],$E$2,Data_Entry[Major Behavior],\"*\")","v":0},{"$f":"COUNTIFS(Data_Entry[Others Involved],M9,Data_Entry[Student_Demographics.Enter a unique student number, below.],$A$2,Data_Entry[Year],$E$2,Data_Entry[Major Behavior],\"*\")","v":0},"November",{"$f":"COUNTIFS(Data_Entry[Month Name],P9,Data_Entry[Student_Demographics.Enter a unique student number, below.],$A$2,Data_Entry[Year],$E$2,Data_Entry[Major Behavior],\"*\")","v":0}]
[{"$f":"PermList!$G7","v":"Dress Code Violation"},{"$f":"COUNTIFS(Data_Entry[Major Behavior],A10,Data_Entry[Month Name],$D$2,Data_Entry[Student_Demographics.Enter a unique student number, below.],$A$2,Data_Entry[Year],$E$2)","v":0},{"$f":"COUNTIFS(Data_Entry[Major Behavior],A10,Data_Entry[Student_Demographics.Enter a unique student number, below.],$A$2,Data_Entry[Year],$E$2)","v":0},{"$f":"PermList!$F7","v":"Bathroom/Restroom"},{"$f":"COUNTIFS(Data_Entry[Location],D10,Data_Entry[Month Name],$D$2,Data_Entry[Student_Demographics.Enter a unique student number, below.],$A$2,Data_Entry[Year],$E$2,Data_Entry[Major Behavior],\"*\")","v":0},{"$f":"COUNTIFS(Data_Entry[Location],D10,Data_Entry[Student_Demographics.Enter a unique student number, below.],$A$2,Data_Entry[Year],$E$2,Data_Entry[Major Behavior],\"*\")","v":0},"08:15:00",{"$f":"COUNTIFS(Data_Entry[Time],G10,Data_Entry[Month Name],$D$2,Data_Entry[Student_Demographics.Enter a unique student number, below.],$A$2,Data_Entry[Year],$E$2,Data_Entry[Major Behavior],\"*\")","v":0},{"$f":"COUNTIFS(Data_Entry[Time],G10,Data_Entry[Student_Demographics.Enter a unique student number, below.],$A$2,Data_Entry[Year],$E$2,Data_Entry[Major Behavior],\"*\")","v":0},{"$f":"PermList!$J7","v":"Avoid Activity"},{"$f":"COUNTIFS(Data_Entry[Possible Motivation],J10,Data_Entry[Month Name],$D$2,Data_Entry[Student_Demographics.Enter a unique student number, below.],$A$2,Data_Entry[Year],$E$2,Data_Entry[Major Behavior],\"*\")","v":0},{"$f":"COUNTIFS(Data_Entry[Possible Motivation],J10,Data_Entry[Student_Demographics.Enter a unique student number, below.],$A$2,Data_Entry[Year],$E$2,Data_Entry[Major Behavior],\"*\")","v":0},"Unknown",{"$f":"COUNTIFS(Data_Entry[Others Involved],M10,Data_Entry[Month Name],$D$2,Data_Entry[Student_Demographics.Enter a unique student number, below.],$A$2,Data_Entry[Year],$E$2,Data_Entry[Major Behavior],\"*\")","v":0},{"$f":"COUNTIFS(Data_Entry[Others Involved],M10,Data_Entry[Student_Demographics.Enter a unique student number, below.],$A$2,Data_Entry[Year],$E$2,Data_Entry[Major Behavior],\"*\")","v":0},"December",{"$f":"COUNTIFS(Data_Entry[Month Name],P10,Data_Entry[Student_Demographics.Enter a unique student number, below.],$A$2,Data_Entry[Year],$E$2,Data_Entry[Major Behavior],\"*\")","v":0}]
[{"$f":"PermList!$G8","v":"Fighting/Physical Aggression"},{"$f":"COUNTIFS(Data_Entry[Major Behavior],A11,Data_Entry[Month Name],$D$2,Data_Entry[Student_Demographics.Enter a unique student number, below.],$A$2,Data_Entry[Year],$E$2)","v":0},{"$f":"COUNTIFS(Data_Entry[Major Behavior],A11,Data_Entry[Student_Demographics.Enter a unique student number, below.],$A$2,Data_Entry[Year],$E$2)","v":0},{"$f":"PermList!$F8","v":"Gym"},{"$f":"COUNTIFS(Data_Entry[Location],D11,Data_Entry[Month Name],$D$2,Data_Entry[Student_Demographics.Enter a unique student number, below.],$A$2,Data_Entry[Year],$E$2,Data_Entry[Major Behavior],\"*\")","v":0},{"$f":"COUNTIFS(Data_Entry[Location],D11,Data_Entry[Student_Demographics.Enter a unique student number, below.],$A$2,Data_Entry[Year],$E$2,Data_Entry[Major Behavior],\"*\")","v":0},"08:30:00",{"$f":"COUNTIFS(Data_Entry[Time],G11,Data_Entry[Month Name],$D$2,Data_Entry[Student_Demographics.Enter a unique student number, below.],$A$2,Data_Entry[Year],$E$2,Data_Entry[Major Behavior],\"*\")","v":0},{"$f":"COUNTIFS(Data_Entry[Time],G11,Data_Entry[Student_Demographics.Enter a unique student number, below.],$A$2,Data_Entry[Year],$E$2,Data_Entry[Major Behavior],\"*\")","v":0},null,null,null,"Other",{"$f":"COUNTIFS(Data_Entry[Others Involved],M11,Data_Entry[Month Name],$D$2,Data_Entry[Student_Demographics.Enter a unique student number, below.],$A$2,Data_Entry[Year],$E$2,Data_Entry[Major Behavior],\"*\")","v":0},{"$f":"COUNTIFS(Data_Entry[Others Involved],M11,Data_Entry[Student_Demographics.Enter a unique student number, below.],$A$2,Data_Entry[Year],$E$2,Data_Entry[Major Behavior],\"*\")","v":0},"January",{"$f":"COUNTIFS(Data_Entry[Month Name],P11,Data_Entry[Student_Demographics.Enter a unique student number, below.],$A$2,Data_Entry[Year],$E$2,Data_Entry[Major Behavior],\"*\")","v":0}]
[{"$f":"PermList!$G9","v":"Forgery/Theft"},{"$f":"COUNTIFS(Data_Entry[Major Behavior],A12,Data_Entry[Month Name],$D$2,Data_Entry[Student_Demographics.Enter a unique student number, below.],$A$2,Data_Entry[Year],$E$2)","v":0},{"$f":"COUNTIFS(Data_Entry[Major Behavior],A12,Data_Entry[Student_Demographics.Enter a unique student number, below.],$A$2,Data_Entry[Year],$E$2)","v":0},{"$f":"PermList!$F9","v":"Library"},{"$f":"COUNTIFS(Data_Entry[Location],D12,Data_Entry[Month Name],$D$2,Data_Entry[Student_Demographics.Enter a unique student number, below.],$A$2,Data_Entry[Year],$E$2,Data_Entry[Major Behavior],\"*\")","v":0},{"$f":"COUNTIFS(Data_Entry[Location],D12,Data_Entry[Student_Demographics.Enter a unique student number, below.],$A$2,Data_Entry[Year],$E$2,Data_Entry[Major Behavior],\"*\")","v":0},"08:45:00",{"$f":"COUNTIFS(Data_Entry[Time],G12,Data_Entry[Month Name],$D$2,Data_Entry[Student_Demographics.Enter a unique student number, below.],$A$2,Data_Entry[Year],$E$2,Data_Entry[Major Behavior],\"*\")","v":0},{"$f":"COUNTIFS(Data_Entry[Time],G12,Data_Entry[Student_Demographics.Enter a unique student number, below.],$A$2,Data_Entry[Year],$E$2,Data_Entry[Major Behavior],\"*\")","v":0},null,null,null,null,null,null,"February",{"$f":"COUNTIFS(Data_Entry[Month Name],P12,Data_Entry[Student_Demographics.Enter a unique student number, below.],$A$2,Data_Entry[Year],$E$2,Data_Entry[Major Behavior],\"*\")","v":0}]
[{"$f":"PermList!$G10","v":"Gang Affiliation Display"},{"$f":"COUNTIFS(Data_Entry[Major Behavior],A13,Data_Entry[Month Name],$D$2,Data_Entry[Student_Demographics.Enter a unique student number, below.],$A$2,Data_Entry[Year],$E$2)","v":0},{"$f":"COUNTIFS(Data_Entry[Major Behavior],A13,Data_Entry[Student_Demographics.Enter a unique student number, below.],$A$2,Data_Entry[Year],$E$2)","v":0},{"$f":"PermList!$F10","v":"Bus Loading Zone"},{"$f":"COUNTIFS(Data_Entry[Location],D13,Data_Entry[Month Name],$D$2,Data_Entry[Student_Demographics.Enter a unique student number, below.],$A$2,Data_Entry[Year],$E$2,Data_Entry[Major Behavior],\"*\")","v":0},{"$f":"COUNTIFS(Data_Entry[Location],D13,Data_Entry[Student_Demographics.Enter a unique student number, below.],$A$2,Data_Entry[Year],$E$2,Data_Entry[Major Behavior],\"*\")","v":0},"09:00:00",{"$f":"COUNTIFS(Data_Entry[Time],G13,Data_Entry[Month Name],$D$2,Data_Entry[Student_Demographics.Enter a unique student number, below.],$A$2,Data_Entry[Year],$E$2,Data_Entry[Major Behavior],\"*\")","v":0},{"$f":"COUNTIFS(Data_Entry[Time],G13,Data_Entry[Student_Demographics.Enter a unique student number, below.],$A$2,Data_Entry[Year],$E$2,Data_Entry[Major Behavior],\"*\")","v":0},null,null,null,null,null,null,"March",{"$f":"COUNTIFS(Data_Entry[Month Name],P13,Data_Entry[Student_Demographics.Enter a unique student number, below.],$A$2,Data_Entry[Year],$E$2,Data_Entry[Major Behavior],\"*\")","v":0}]
[{"$f":"PermList!$G11","v":"Harassment/Bullying"},{"$f":"COUNTIFS(Data_Entry[Major Behavior],A14,Data_Entry[Month Name],$D$2,Data_Entry[Student_Demographics.Enter a unique student number, below.],$A$2,Data_Entry[Year],$E$2)","v":0},{"$f":"COUNTIFS(Data_Entry[Major Behavior],A14,Data_Entry[Student_Demographics.Enter a unique student number, below.],$A$2,Data_Entry[Year],$E$2)","v":0},{"$f":"PermList!$F11","v":"Parking Lot"},{"$f":"COUNTIFS(Data_Entry[Location],D14,Data_Entry[Month Name],$D$2,Data_Entry[Student_Demographics.Enter a unique student number, below.],$A$2,Data_Entry[Year],$E$2,Data_Entry[Major Behavior],\"*\")","v":0},{"$f":"COUNTIFS(Data_Entry[Location],D14,Data_Entry[Student_Demographics.Enter a unique student number, below.],$A$2,Data_Entry[Year],$E$2,Data_Entry[Major Behavior],\"*\")","v":0},"09:15:00",{"$f":"COUNTIFS(Data_Entry[Time],G14,Data_Entry[Month Name],$D$2,Data_Entry[Student_Demographics.Enter a unique student number, below.],$A$2,Data_Entry[Year],$E$2,Data_Entry[Major Behavior],\"*\")","v":0},{"$f":"COUNTIFS(Data_Entry[Time],G14,Data_Entry[Student_Demographics.Enter a unique student number, below.],$A$2,Data_Entry[Year],$E$2,Data_Entry[Major Behavior],\"*\")","v":0},null,null,null,null,null,null,"April",{"$f":"COUNTIFS(Data_Entry[Month Name],P14,Data_Entry[Student_Demographics.Enter a unique student number, below.],$A$2,Data_Entry[Year],$E$2,Data_Entry[Major Behavior],\"*\")","v":0}]
[{"$f":"PermList!$G12","v":"Sexual Harassment"},{"$f":"COUNTIFS(Data_Entry[Major Behavior],A15,Data_Entry[Month Name],$D$2,Data_Entry[Student_Demographics.Enter a unique student number, below.],$A$2,Data_Entry[Year],$E$2)","v":0},{"$f":"COUNTIFS(Data_Entry[Major Behavior],A15,Data_Entry[Student_Demographics.Enter a unique student number, below.],$A$2,Data_Entry[Year],$E$2)","v":0},{"$f":"PermList!$F12","v":"Bus"},{"$f":"COUNTIFS(Data_Entry[Location],D15,Data_Entry[Month Name],$D$2,Data_Entry[Student_Demographics.Enter a unique student number, below.],$A$2,Data_Entry[Year],$E$2,Data_Entry[Major Behavior],\"*\")","v":0},{"$f":"COUNTIFS(Data_Entry[Location],D15,Data_Entry[Student_Demographics.Enter a unique student number, below.],$A$2,Data_Entry[Year],$E$2,Data_Entry[Major Behavior],\"*\")","v":0},"09:30:00",{"$f":"COUNTIFS(Data_Entry[Time],G15,Data_Entry[Month Name],$D$2,Data_Entry[Student_Demographics.Enter a unique student number, below.],$A$2,Data_Entry[Year],$E$2,Data_Entry[Major Behavior],\"*\")","v":0},{"$f":"COUNTIFS(Data_Entry[Time],G15,Data_Entry[Student_Demographics.Enter a unique student number, below.],$A$2,Data_Entry[Year],$E$2,Data_Entry[Major Behavior],\"*\")","v":0},null,null,null,null,null,null,"May",{"$f":"COUNTIFS(Data_Entry[Month Name],P15,Data_Entry[Student_Demographics.Enter a unique student number, below.],$A$2,Data_Entry[Year],$E$2,Data_Entry[Major Behavior],\"*\")","v":0}]
[{"$f":"PermList!$G13","v":"Inappropriate Display of Affection"},{"$f":"COUNTIFS(Data_Entry[Major Behavior],A16,Data_Entry[Month Name],$D$2,Data_Entry[Student_Demographics.Enter a unique student number, below.],$A$2,Data_Entry[Year],$E$2)","v":0},{"$f":"COUNTIFS(Data_Entry[Major Behavior],A16,Data_Entry[Student_Demographics.Enter a unique student number, below.],$A$2,Data_Entry[Year],$E$2)","v":0},{"$f":"PermList!$F13","v":"Special Event/Assembly/Field trip"},{"$f":"COUNTIFS(Data_Entry[Location],D16,Data_Entry[Month Name],$D$2,Data_Entry[Student_Demographics.Enter a unique student number, below.],$A$2,Data_Entry[Year],$E$2,Data_Entry[Major Behavior],\"*\")","v":0},{"$f":"COUNTIFS(Data_Entry[Location],D16,Data_Entry[Student_Demographics.Enter a unique student number, below.],$A$2,Data_Entry[Year],$E$2,Data_Entry[Major Behavior],\"*\")","v":0},"09:45:00",{"$f":"COUNTIFS(Data_Entry[Time],G16,Data_Entry[Month Name],$D$2,Data_Entry[Student_Demographics.Enter a unique student number, below.],$A$2,Data_Entry[Year],$E$2,Data_Entry[Major Behavior],\"*\")","v":0},{"$f":"COUNTIFS(Data_Entry[Time],G16,Data_Entry[Student_Demographics.Enter a unique student number, below.],$A$2,Data_Entry[Year],$E$2,Data_Entry[Major Behavior],\"*\")","v":0},null,null,null,null,null,null,"June",{"$f":"COUNTIFS(Data_Entry[Month Name],P16,Data_Entry[Student_Demographics.Enter a unique student number, below.],$A$2,Data_Entry[Year],$E$2,Data_Entry[Major Behavior],\"*\")","v":0}]
[{"$f":"PermList!$G14","v":"Inappropriate Location/Out of Bounds Area"},{"$f":"COUNTIFS(Data_Entry[Major Behavior],A17,Data_Entry[Month Name],$D$2,Data_Entry[Student_Demographics.Enter a unique student number, below.],$A$2,Data_Entry[Year],$E$2)","v":0},{"$f":"COUNTIFS(Data_Entry[Major Behavior],A17,Data_Entry[Student_Demographics.Enter a unique student number, below.],$A$2,Data_Entry[Year],$E$2)","v":0},{"$f":"PermList!$F14","v":"Other Location"},{"$f":"COUNTIFS(Data_Entry[Location],D17,Data_Entry[Month Name],$D$2,Data_Entry[Student_Demographics.Enter a unique student number, below.],$A$2,Data_Entry[Year],$E$2,Data_Entry[Major Behavior],\"*\")","v":0},{"$f":"COUNTIFS(Data_Entry[Location],D17,Data_Entry[Student_Demographics.Enter a unique student number, below.],$A$2,Data_Entry[Year],$E$2,Data_Entry[Major Behavior],\"*\")","v":0},"10:00:00",{"$f":"COUNTIFS(Data_Entry[Time],G17,Data_Entry[Month Name],$D$2,Data_Entry[Student_Demographics.Enter a unique student number, below.],$A$2,Data_Entry[Year],$E$2,Data_Entry[Major Behavior],\"*\")","v":0},{"$f":"COUNTIFS(Data_Entry[Time],G17,Data_Entry[Student_Demographics.Enter a unique student number, below.],$A$2,Data_Entry[Year],$E$2,Data_Entry[Major Behavior],\"*\")","v":0}]
[{"$f":"PermList!$G15","v":"Lying/Cheating"},{"$f":"COUNTIFS(Data_Entry[Major Behavior],A18,Data_Entry[Month Name],$D$2,Data_Entry[Student_Demographics.Enter a unique student number, below.],$A$2,Data_Entry[Year],$E$2)","v":0},{"$f":"COUNTIFS(Data_Entry[Major Behavior],A18,Data_Entry[Student_Demographics.Enter a unique student number, below.],$A$2,Data_Entry[Year],$E$2)","v":0},{"$f":"PermList!$F15","v":"Unknown Location"},{"$f":"COUNTIFS(Data_Entry[Location],D18,Data_Entry[Month Name],$D$2,Data_Entry[Student_Demographics.Enter a unique student number, below.],$A$2,Data_Entry[Year],$E$2,Data_Entry[Major Behavior],\"*\")","v":0},{"$f":"COUNTIFS(Data_Entry[Location],D18,Data_Entry[Student_Demographics.Enter a unique student number, below.],$A$2,Data_Entry[Year],$E$2,Data_Entry[Major Behavior],\"*\")","v":0},"10:15:00",{"$f":"COUNTIFS(Data_Entry[Time],G18,Data_Entry[Month Name],$D$2,Data_Entry[Student_Demographics.Enter a unique student number, below.],$A$2,Data_Entry[Year],$E$2,Data_Entry[Major Behavior],\"*\")","v":0},{"$f":"COUNTIFS(Data_Entry[Time],G18,Data_Entry[Student_Demographics.Enter a unique student number, below.],$A$2,Data_Entry[Year],$E$2,Data_Entry[Major Behavior],\"*\")","v":0}]
[{"$f":"PermList!$G16","v":"Other Behavior"},{"$f":"COUNTIFS(Data_Entry[Major Behavior],A19,Data_Entry[Month Name],$D$2,Data_Entry[Student_Demographics.Enter a unique student number, below.],$A$2,Data_Entry[Year],$E$2)","v":0},{"$f":"COUNTIFS(Data_Entry[Major Behavior],A19,Data_Entry[Student_Demographics.Enter a unique student number, below.],$A$2,Data_Entry[Year],$E$2)","v":0},{"$f":"PermList!$F16","v":"Office"},{"$f":"COUNTIFS(Data_Entry[Location],D19,Data_Entry[Month Name],$D$2,Data_Entry[Student_Demographics.Enter a unique student number, below.],$A$2,Data_Entry[Year],$E$2,Data_Entry[Major Behavior],\"*\")","v":0},{"$f":"COUNTIFS(Data_Entry[Location],D19,Data_Entry[Student_Demographics.Enter a unique student number, below.],$A$2,Data_Entry[Year],$E$2,Data_Entry[Major Behavior],\"*\")","v":0},"10:30:00",{"$f":"COUNTIFS(Data_Entry[Time],G19,Data_Entry[Month Name],$D$2,Data_Entry[Student_Demographics.Enter a unique student number, below.],$A$2,Data_Entry[Year],$E$2,Data_Entry[Major Behavior],\"*\")","v":0},{"$f":"COUNTIFS(Data_Entry[Time],G19,Data_Entry[Student_Demographics.Enter a unique student number, below.],$A$2,Data_Entry[Year],$E$2,Data_Entry[Major Behavior],\"*\")","v":0}]
[{"$f":"PermList!$G17","v":"Property Damage/Vandalism"},{"$f":"COUNTIFS(Data_Entry[Major Behavior],A20,Data_Entry[Month Name],$D$2,Data_Entry[Student_Demographics.Enter a unique student number, below.],$A$2,Data_Entry[Year],$E$2)","v":0},{"$f":"COUNTIFS(Data_Entry[Major Behavior],A20,Data_Entry[Student_Demographics.Enter a unique student number, below.],$A$2,Data_Entry[Year],$E$2)","v":0},{"$f":"PermList!$F17","v":"Locker Room"},{"$f":"COUNTIFS(Data_Entry[Location],D20,Data_Entry[Month Name],$D$2,Data_Entry[Student_Demographics.Enter a unique student number, below.],$A$2,Data_Entry[Year],$E$2,Data_Entry[Major Behavior],\"*\")","v":0},{"$f":"COUNTIFS(Data_Entry[Location],D20,Data_Entry[Student_Demographics.Enter a unique student number, below.],$A$2,Data_Entry[Year],$E$2,Data_Entry[Major Behavior],\"*\")","v":0},"10:45:00",{"$f":"COUNTIFS(Data_Entry[Time],G20,Data_Entry[Month Name],$D$2,Data_Entry[Student_Demographics.Enter a unique student number, below.],$A$2,Data_Entry[Year],$E$2,Data_Entry[Major Behavior],\"*\")","v":0},{"$f":"COUNTIFS(Data_Entry[Time],G20,Data_Entry[Student_Demographics.Enter a unique student number, below.],$A$2,Data_Entry[Year],$E$2,Data_Entry[Major Behavior],\"*\")","v":0}]
[{"$f":"PermList!$G18","v":"Skip Class"},{"$f":"COUNTIFS(Data_Entry[Major Behavior],A21,Data_Entry[Month Name],$D$2,Data_Entry[Student_Demographics.Enter a unique student number, below.],$A$2,Data_Entry[Year],$E$2)","v":0},{"$f":"COUNTIFS(Data_Entry[Major Behavior],A21,Data_Entry[Student_Demographics.Enter a unique student number, below.],$A$2,Data_Entry[Year],$E$2)","v":0},{"$f":"PermList!$F18","v":"Off-Campus"},{"$f":"COUNTIFS(Data_Entry[Location],D21,Data_Entry[Month Name],$D$2,Data_Entry[Student_Demographics.Enter a unique student number, below.],$A$2,Data_Entry[Year],$E$2,Data_Entry[Major Behavior],\"*\")","v":0},{"$f":"COUNTIFS(Data_Entry[Location],D21,Data_Entry[Student_Demographics.Enter a unique student number, below.],$A$2,Data_Entry[Year],$E$2,Data_Entry[Major Behavior],\"*\")","v":0},"11:00:00",{"$f":"COUNTIFS(Data_Entry[Time],G21,Data_Entry[Month Name],$D$2,Data_Entry[Student_Demographics.Enter a unique student number, below.],$A$2,Data_Entry[Year],$E$2,Data_Entry[Major Behavior],\"*\")","v":0},{"$f":"COUNTIFS(Data_Entry[Time],G21,Data_Entry[Student_Demographics.Enter a unique student number, below.],$A$2,Data_Entry[Year],$E$2,Data_Entry[Major Behavior],\"*\")","v":0}]
[{"$f":"PermList!$G19","v":"Truancy"},{"$f":"COUNTIFS(Data_Entry[Major Behavior],A22,Data_Entry[Month Name],$D$2,Data_Entry[Student_Demographics.Enter a unique student number, below.],$A$2,Data_Entry[Year],$E$2)","v":0},{"$f":"COUNTIFS(Data_Entry[Major Behavior],A22,Data_Entry[Student_Demographics.Enter a unique student number, below.],$A$2,Data_Entry[Year],$E$2)","v":0},{"$f":"PermList!$F19","v":"Stadium"},{"$f":"COUNTIFS(Data_Entry[Location],D22,Data_Entry[Month Name],$D$2,Data_Entry[Student_Demographics.Enter a unique student number, below.],$A$2,Data_Entry[Year],$E$2,Data_Entry[Major Behavior],\"*\")","v":0},{"$f":"COUNTIFS(Data_Entry[Location],D22,Data_Entry[Student_Demographics.Enter a unique student number, below.],$A$2,Data_Entry[Year],$E$2,Data_Entry[Major Behavior],\"*\")","v":0},"11:15:00",{"$f":"COUNTIFS(Data_Entry[Time],G22,Data_Entry[Month Name],$D$2,Data_Entry[Student_Demographics.Enter a unique student number, below.],$A$2,Data_Entry[Year],$E$2,Data_Entry[Major Behavior],\"*\")","v":0},{"$f":"COUNTIFS(Data_Entry[Time],G22,Data_Entry[Student_Demographics.Enter a unique student number, below.],$A$2,Data_Entry[Year],$E$2,Data_Entry[Major Behavior],\"*\")","v":0}]
[{"$f":"PermList!$G20","v":"Tardy"},{"$f":"COUNTIFS(Data_Entry[Major Behavior],A23,Data_Entry[Month Name],$D$2,Data_Entry[Student_Demographics.Enter a unique student number, below.],$A$2,Data_Entry[Year],$E$2)","v":0},{"$f":"COUNTIFS(Data_Entry[Major Behavior],A23,Data_Entry[Student_Demographics.Enter a unique student number, below.],$A$2,Data_Entry[Year],$E$2)","v":0},{"$f":"PermList!$F20","v":"Music Room"},{"$f":"COUNTIFS(Data_Entry[Location],D23,Data_Entry[Month Name],$D$2,Data_Entry[Student_Demographics.Enter a unique student number, below.],$A$2,Data_Entry[Year],$E$2,Data_Entry[Major Behavior],\"*\")","v":0},{"$f":"COUNTIFS(Data_Entry[Location],D23,Data_Entry[Student_Demographics.Enter a unique student number, below.],$A$2,Data_Entry[Year],$E$2,Data_Entry[Major Behavior],\"*\")","v":0},"11:30:00",{"$f":"COUNTIFS(Data_Entry[Time],G23,Data_Entry[Month Name],$D$2,Data_Entry[Student_Demographics.Enter a unique student number, below.],$A$2,Data_Entry[Year],$E$2,Data_Entry[Major Behavior],\"*\")","v":0},{"$f":"COUNTIFS(Data_Entry[Time],G23,Data_Entry[Student_Demographics.Enter a unique student number, below.],$A$2,Data_Entry[Year],$E$2,Data_Entry[Major Behavior],\"*\")","v":0}]
[{"$f":"PermList!$G21","v":"Technology Violation"},{"$f":"COUNTIFS(Data_Entry[Major Behavior],A24,Data_Entry[Month Name],$D$2,Data_Entry[Student_Demographics.Enter a unique student number, below.],$A$2,Data_Entry[Year],$E$2)","v":0},{"$f":"COUNTIFS(Data_Entry[Major Behavior],A24,Data_Entry[Student_Demographics.Enter a unique student number, below.],$A$2,Data_Entry[Year],$E$2)","v":0},{"$f":"PermList!$F21","v":"Computer Lab"},{"$f":"COUNTIFS(Data_Entry[Location],D24,Data_Entry[Month Name],$D$2,Data_Entry[Student_Demographics.Enter a unique student number, below.],$A$2,Data_Entry[Year],$E$2,Data_Entry[Major Behavior],\"*\")","v":0},{"$f":"COUNTIFS(Data_Entry[Location],D24,Data_Entry[Student_Demographics.Enter a unique student number, below.],$A$2,Data_Entry[Year],$E$2,Data_Entry[Major Behavior],\"*\")","v":0},"11:45:00",{"$f":"COUNTIFS(Data_Entry[Time],G24,Data_Entry[Month Name],$D$2,Data_Entry[Student_Demographics.Enter a unique student number, below.],$A$2,Data_Entry[Year],$E$2,Data_Entry[Major Behavior],\"*\")","v":0},{"$f":"COUNTIFS(Data_Entry[Time],G24,Data_Entry[Student_Demographics.Enter a unique student number, below.],$A$2,Data_Entry[Year],$E$2,Data_Entry[Major Behavior],\"*\")","v":0}]
[{"$f":"PermList!$G22","v":"Use/Possession of Alcohol"},{"$f":"COUNTIFS(Data_Entry[Major Behavior],A25,Data_Entry[Month Name],$D$2,Data_Entry[Student_Demographics.Enter a unique student number, below.],$A$2,Data_Entry[Year],$E$2)","v":0},{"$f":"COUNTIFS(Data_Entry[Major Behavior],A25,Data_Entry[Student_Demographics.Enter a unique student number, below.],$A$2,Data_Entry[Year],$E$2)","v":0},{"$f":"PermList!$F22","v":"Art Room"},{"$f":"COUNTIFS(Data_Entry[Location],D25,Data_Entry[Month Name],$D$2,Data_Entry[Student_Demographics.Enter a unique student number, below.],$A$2,Data_Entry[Year],$E$2,Data_Entry[Major Behavior],\"*\")","v":0},{"$f":"COUNTIFS(Data_Entry[Location],D25,Data_Entry[Student_Demographics.Enter a unique student number, below.],$A$2,Data_Entry[Year],$E$2,Data_Entry[Major Behavior],\"*\")","v":0},"12:00:00",{"$f":"COUNTIFS(Data_Entry[Time],G25,Data_Entry[Month Name],$D$2,Data_Entry[Student_Demographics.Enter a unique student number, below.],$A$2,Data_Entry[Year],$E$2,Data_Entry[Major Behavior],\"*\")","v":0},{"$f":"COUNTIFS(Data_Entry[Time],G25,Data_Entry[Student_Demographics.Enter a unique student number, below.],$A$2,Data_Entry[Year],$E$2,Data_Entry[Major Behavior],\"*\")","v":0}]
[{"$f":"PermList!$G23","v":"Use/Possession of Combustibles"},{"$f":"COUNTIFS(Data_Entry[Major Behavior],A26,Data_Entry[Month Name],$D$2,Data_Entry[Student_Demographics.Enter a unique student number, below.],$A$2,Data_Entry[Year],$E$2)","v":0},{"$f":"COUNTIFS(Data_Entry[Major Behavior],A26,Data_Entry[Student_Demographics.Enter a unique student number, below.],$A$2,Data_Entry[Year],$E$2)","v":0},null,null,null,"12:15:00",{"$f":"COUNTIFS(Data_Entry[Time],G26,Data_Entry[Month Name],$D$2,Data_Entry[Student_Demographics.Enter a unique student number, below.],$A$2,Data_Entry[Year],$E$2,Data_Entry[Major Behavior],\"*\")","v":0},{"$f":"COUNTIFS(Data_Entry[Time],G26,Data_Entry[Student_Demographics.Enter a unique student number, below.],$A$2,Data_Entry[Year],$E$2,Data_Entry[Major Behavior],\"*\")","v":0}]
[{"$f":"PermList!$G24","v":"Use/Possession of Drugs"},{"$f":"COUNTIFS(Data_Entry[Major Behavior],A27,Data_Entry[Month Name],$D$2,Data_Entry[Student_Demographics.Enter a unique student number, below.],$A$2,Data_Entry[Year],$E$2)","v":0},{"$f":"COUNTIFS(Data_Entry[Major Behavior],A27,Data_Entry[Student_Demographics.Enter a unique student number, below.],$A$2,Data_Entry[Year],$E$2)","v":0},null,null,null,"12:30:00",{"$f":"COUNTIFS(Data_Entry[Time],G27,Data_Entry[Month Name],$D$2,Data_Entry[Student_Demographics.Enter a unique student number, below.],$A$2,Data_Entry[Year],$E$2,Data_Entry[Major Behavior],\"*\")","v":0},{"$f":"COUNTIFS(Data_Entry[Time],G27,Data_Entry[Student_Demographics.Enter a unique student number, below.],$A$2,Data_Entry[Year],$E$2,Data_Entry[Major Behavior],\"*\")","v":0}]
[{"$f":"PermList!$G25","v":"Use/Possession of Tobacco"},{"$f":"COUNTIFS(Data_Entry[Major Behavior],A28,Data_Entry[Month Name],$D$2,Data_Entry[Student_Demographics.Enter a unique student number, below.],$A$2,Data_Entry[Year],$E$2)","v":0},{"$f":"COUNTIFS(Data_Entry[Major Behavior],A28,Data_Entry[Student_Demographics.Enter a unique student number, below.],$A$2,Data_Entry[Year],$E$2)","v":0},null,null,null,"12:45:00",{"$f":"COUNTIFS(Data_Entry[Time],G28,Data_Entry[Month Name],$D$2,Data_Entry[Student_Demographics.Enter a unique student number, below.],$A$2,Data_Entry[Year],$E$2,Data_Entry[Major Behavior],\"*\")","v":0},{"$f":"COUNTIFS(Data_Entry[Time],G28,Data_Entry[Student_Demographics.Enter a unique student number, below.],$A$2,Data_Entry[Year],$E$2,Data_Entry[Major Behavior],\"*\")","v":0}]
[{"$f":"PermList!$G26","v":"Use/Possession of Weapons"},{"$f":"COUNTIFS(Data_Entry[Major Behavior],A29,Data_Entry[Month Name],$D$2,Data_Entry[Student_Demographics.Enter a unique student number, below.],$A$2,Data_Entry[Year],$E$2)","v":0},{"$f":"COUNTIFS(Data_Entry[Major Behavior],A29,Data_Entry[Student_Demographics.Enter a unique student number, below.],$A$2,Data_Entry[Year],$E$2)","v":0},null,null,null,"13:00:00",{"$f":"COUNTIFS(Data_Entry[Time],G29,Data_Entry[Month Name],$D$2,Data_Entry[Student_Demographics.Enter a unique student number, below.],$A$2,Data_Entry[Year],$E$2,Data_Entry[Major Behavior],\"*\")","v":0},{"$f":"COUNTIFS(Data_Entry[Time],G29,Data_Entry[Student_Demographics.Enter a unique student number, below.],$A$2,Data_Entry[Year],$E$2,Data_Entry[Major Behavior],\"*\")","v":0}]
[null,null,null,null,null,null,"13:15:00",{"$f":"COUNTIFS(Data_Entry[Time],G30,Data_Entry[Month Name],$D$2,Data_Entry[Student_Demographics.Enter a unique student number, below.],$A$2,Data_Entry[Year],$E$2,Data_Entry[Major Behavior],\"*\")","v":0},{"$f":"COUNTIFS(Data_Entry[Time],G30,Data_Entry[Student_Demographics.Enter a unique student number, below.],$A$2,Data_Entry[Year],$E$2,Data_Entry[Major Behavior],\"*\")","v":0}]
[null,null,null,null,null,null,"13:30:00",{"$f":"COUNTIFS(Data_Entry[Time],G31,Data_Entry[Month Name],$D$2,Data_Entry[Student_Demographics.Enter a unique student number, below.],$A$2,Data_Entry[Year],$E$2,Data_Entry[Major Behavior],\"*\")","v":0},{"$f":"COUNTIFS(Data_Entry[Time],G31,Data_Entry[Student_Demographics.Enter a unique student number, below.],$A$2,Data_Entry[Year],$E$2,Data_Entry[Major Behavior],\"*\")","v":0}]
[null,null,null,null,null,null,"13:45:00",{"$f":"COUNTIFS(Data_Entry[Time],G32,Data_Entry[Month Name],$D$2,Data_Entry[Student_Demographics.Enter a unique student number, below.],$A$2,Data_Entry[Year],$E$2,Data_Entry[Major Behavior],\"*\")","v":0},{"$f":"COUNTIFS(Data_Entry[Time],G32,Data_Entry[Student_Demographics.Enter a unique student number, below.],$A$2,Data_Entry[Year],$E$2,Data_Entry[Major Behavior],\"*\")","v":0}]
[null,null,null,null,null,null,"14:00:00",{"$f":"COUNTIFS(Data_Entry[Time],G33,Data_Entry[Month Name],$D$2,Data_Entry[Student_Demographics.Enter a unique student number, below.],$A$2,Data_Entry[Year],$E$2,Data_Entry[Major Behavior],\"*\")","v":0},{"$f":"COUNTIFS(Data_Entry[Time],G33,Data_Entry[Student_Demographics.Enter a unique student number, below.],$A$2,Data_Entry[Year],$E$2,Data_Entry[Major Behavior],\"*\")","v":0}]
[null,null,null,null,null,null,"14:15:00",{"$f":"COUNTIFS(Data_Entry[Time],G34,Data_Entry[Month Name],$D$2,Data_Entry[Student_Demographics.Enter a unique student number, below.],$A$2,Data_Entry[Year],$E$2,Data_Entry[Major Behavior],\"*\")","v":0},{"$f":"COUNTIFS(Data_Entry[Time],G34,Data_Entry[Student_Demographics.Enter a unique student number, below.],$A$2,Data_Entry[Year],$E$2,Data_Entry[Major Behavior],\"*\")","v":0}]
[null,null,null,null,null,null,"14:30:00",{"$f":"COUNTIFS(Data_Entry[Time],G35,Data_Entry[Month Name],$D$2,Data_Entry[Student_Demographics.Enter a unique student number, below.],$A$2,Data_Entry[Year],$E$2,Data_Entry[Major Behavior],\"*\")","v":0},{"$f":"COUNTIFS(Data_Entry[Time],G35,Data_Entry[Student_Demographics.Enter a unique student number, below.],$A$2,Data_Entry[Year],$E$2,Data_Entry[Major Behavior],\"*\")","v":0}]
[null,null,null,null,null,null,"14:45:00",{"$f":"COUNTIFS(Data_Entry[Time],G36,Data_Entry[Month Name],$D$2,Data_Entry[Student_Demographics.Enter a unique student number, below.],$A$2,Data_Entry[Year],$E$2,Data_Entry[Major Behavior],\"*\")","v":0},{"$f":"COUNTIFS(Data_Entry[Time],G36,Data_Entry[Student_Demographics.Enter a unique student number, below.],$A$2,Data_Entry[Year],$E$2,Data_Entry[Major Behavior],\"*\")","v":0}]
[null,null,null,null,null,null,"15:00:00",{"$f":"COUNTIFS(Data_Entry[Time],G37,Data_Entry[Month Name],$D$2,Data_Entry[Student_Demographics.Enter a unique student number, below.],$A$2,Data_Entry[Year],$E$2,Data_Entry[Major Behavior],\"*\")","v":0},{"$f":"COUNTIFS(Data_Entry[Time],G37,Data_Entry[Student_Demographics.Enter a unique student number, below.],$A$2,Data_Entry[Year],$E$2,Data_Entry[Major Behavior],\"*\")","v":0}]
[null,null,null,null,null,null,"15:15:00",{"$f":"COUNTIFS(Data_Entry[Time],G38,Data_Entry[Month Name],$D$2,Data_Entry[Student_Demographics.Enter a unique student number, below.],$A$2,Data_Entry[Year],$E$2,Data_Entry[Major Behavior],\"*\")","v":0},{"$f":"COUNTIFS(Data_Entry[Time],G38,Data_Entry[Student_Demographics.Enter a unique student number, below.],$A$2,Data_Entry[Year],$E$2,Data_Entry[Major Behavior],\"*\")","v":0}]
[null,null,null,null,null,null,"15:30:00",{"$f":"COUNTIFS(Data_Entry[Time],G39,Data_Entry[Month Name],$D$2,Data_Entry[Student_Demographics.Enter a unique student number, below.],$A$2,Data_Entry[Year],$E$2,Data_Entry[Major Behavior],\"*\")","v":0},{"$f":"COUNTIFS(Data_Entry[Time],G39,Data_Entry[Student_Demographics.Enter a unique student number, below.],$A$2,Data_Entry[Year],$E$2,Data_Entry[Major Behavior],\"*\")","v":0}]
[null,null,null,null,null,null,"15:45:00",{"$f":"COUNTIFS(Data_Entry[Time],G40,Data_Entry[Month Name],$D$2,Data_Entry[Student_Demographics.Enter a unique student number, below.],$A$2,Data_Entry[Year],$E$2,Data_Entry[Major Behavior],\"*\")","v":0},{"$f":"COUNTIFS(Data_Entry[Time],G40,Data_Entry[Student_Demographics.Enter a unique student number, below.],$A$2,Data_Entry[Year],$E$2,Data_Entry[Major Behavior],\"*\")","v":0}]
[null,null,null,null,null,null,"16:00:00",{"$f":"COUNTIFS(Data_Entry[Time],G41,Data_Entry[Month Name],$D$2,Data_Entry[Student_Demographics.Enter a unique student number, below.],$A$2,Data_Entry[Year],$E$2,Data_Entry[Major Behavior],\"*\")","v":0},{"$f":"COUNTIFS(Data_Entry[Time],G41,Data_Entry[Student_Demographics.Enter a unique student number, below.],$A$2,Data_Entry[Year],$E$2,Data_Entry[Major Behavior],\"*\")","v":0}]
[null,null,null,null,null,null,"16:15:00",{"$f":"COUNTIFS(Data_Entry[Time],G42,Data_Entry[Month Name],$D$2,Data_Entry[Student_Demographics.Enter a unique student number, below.],$A$2,Data_Entry[Year],$E$2,Data_Entry[Major Behavior],\"*\")","v":0},{"$f":"COUNTIFS(Data_Entry[Time],G42,Data_Entry[Student_Demographics.Enter a unique student number, below.],$A$2,Data_Entry[Year],$E$2,Data_Entry[Major Behavior],\"*\")","v":0}]
[null,null,null,null,null,null,"16:30:00",{"$f":"COUNTIFS(Data_Entry[Time],G43,Data_Entry[Month Name],$D$2,Data_Entry[Student_Demographics.Enter a unique student number, below.],$A$2,Data_Entry[Year],$E$2,Data_Entry[Major Behavior],\"*\")","v":0},{"$f":"COUNTIFS(Data_Entry[Time],G43,Data_Entry[Student_Demographics.Enter a unique student number, below.],$A$2,Data_Entry[Year],$E$2,Data_Entry[Major Behavior],\"*\")","v":0}]
[null,null,null,null,null,null,"16:45:00",{"$f":"COUNTIFS(Data_Entry[Time],G44,Data_Entry[Month Name],$D$2,Data_Entry[Student_Demographics.Enter a unique student number, below.],$A$2,Data_Entry[Year],$E$2,Data_Entry[Major Behavior],\"*\")","v":0},{"$f":"COUNTIFS(Data_Entry[Time],G44,Data_Entry[Student_Demographics.Enter a unique student number, below.],$A$2,Data_Entry[Year],$E$2,Data_Entry[Major Behavior],\"*\")","v":0}]
[null,null,null,null,null,null,"17:00:00",{"$f":"COUNTIFS(Data_Entry[Time],G45,Data_Entry[Month Name],$D$2,Data_Entry[Student_Demographics.Enter a unique student number, below.],$A$2,Data_Entry[Year],$E$2,Data_Entry[Major Behavior],\"*\")","v":0},{"$f":"COUNTIFS(Data_Entry[Time],G45,Data_Entry[Student_Demographics.Enter a unique student number, below.],$A$2,Data_Entry[Year],$E$2,Data_Entry[Major Behavior],\"*\")","v":0}]
[null,null,null,null,null,null,"17:15:00",{"$f":"COUNTIFS(Data_Entry[Time],G46,Data_Entry[Month Name],$D$2,Data_Entry[Student_Demographics.Enter a unique student number, below.],$A$2,Data_Entry[Year],$E$2,Data_Entry[Major Behavior],\"*\")","v":0},{"$f":"COUNTIFS(Data_Entry[Time],G46,Data_Entry[Student_Demographics.Enter a unique student number, below.],$A$2,Data_Entry[Year],$E$2,Data_Entry[Major Behavior],\"*\")","v":0}]
[null,null,null,null,null,null,"17:30:00",{"$f":"COUNTIFS(Data_Entry[Time],G47,Data_Entry[Month Name],$D$2,Data_Entry[Student_Demographics.Enter a unique student number, below.],$A$2,Data_Entry[Year],$E$2,Data_Entry[Major Behavior],\"*\")","v":0},{"$f":"COUNTIFS(Data_Entry[Time],G47,Data_Entry[Student_Demographics.Enter a unique student number, below.],$A$2,Data_Entry[Year],$E$2,Data_Entry[Major Behavior],\"*\")","v":0}]
[null,null,null,null,null,null,"17:45:00",{"$f":"COUNTIFS(Data_Entry[Time],G48,Data_Entry[Month Name],$D$2,Data_Entry[Student_Demographics.Enter a unique student number, below.],$A$2,Data_Entry[Year],$E$2,Data_Entry[Major Behavior],\"*\")","v":0},{"$f":"COUNTIFS(Data_Entry[Time],G48,Data_Entry[Student_Demographics.Enter a unique student number, below.],$A$2,Data_Entry[Year],$E$2,Data_Entry[Major Behavior],\"*\")","v":0}]
[null,null,null,null,null,null,"18:00:00",{"$f":"COUNTIFS(Data_Entry[Time],G49,Data_Entry[Month Name],$D$2,Data_Entry[Student_Demographics.Enter a unique student number, below.],$A$2,Data_Entry[Year],$E$2,Data_Entry[Major Behavior],\"*\")","v":0},{"$f":"COUNTIFS(Data_Entry[Time],G49,Data_Entry[Student_Demographics.Enter a unique student number, below.],$A$2,Data_Entry[Year],$E$2,Data_Entry[Major Behavior],\"*\")","v":0}]

{"sheet":"StudentDashboard","index":8,"n_rows":7,"n_cols":18,"rows_kept":7,"cut":false,"hidden":false,"merged":[[6,14,6,16],[5,3,5,5],[0,0,1,4]]}
["Enter student's number , below, to run student's charts; Change month and year on Main Menu"]
[]
["Student Number","First  Name","Last Name","Month","Year","IEP/Non-IEP"]
[null,{"$f":"VLOOKUP($A$4,StudentDatabase!A:L,3,FALSE)","v":{"$error":"#N/A"}},{"$f":"VLOOKUP($A$4,StudentDatabase!A:L,2,FALSE)","v":{"$error":"#N/A"}},{"$f":"Menu!$I$18","v":"February"},{"$f":"Menu!I16","v":"2022"},{"$f":"VLOOKUP($A$4,DataEntry!$A:$G,5,FALSE)","v":{"$error":"#N/A"}}]
[]
[null,null,null,"Month"]
[null,null,null,{"$f":"D4","v":"February"},{"$f":"E4","v":"2022"},null,null,null,null,null,null,null,null,null,"Cumulative Report",null,null,{"$f":"E4","v":"2022"}]

{"sheet":"MajorsGrade","index":9,"n_rows":25,"n_cols":9,"rows_kept":25,"cut":false,"hidden":false,"merged":[]}
["Grade","ODRS for",{"$f":"Menu!$I$18","v":"February"},{"$f":"Menu!I16","v":"2022"},"by Grade Level"]
[{"$f":"PermList!A2","v":"P3"},{"$f":"COUNTIFS(Data_Entry[Grade],A2,Data_Entry[Month Name],$C$1,Data_Entry[Year],$D$1,Data_Entry[Major Behavior],\"*\")","v":0},{"$f":"COUNTIFS(Data_Entry[Grade],A2,Data_Entry[Year],$D$1,Data_Entry[Major Behavior],\"*\")","v":0}]
[{"$f":"PermList!A3","v":"P4"},{"$f":"COUNTIFS(Data_Entry[Grade],A3,Data_Entry[Month Name],$C$1,Data_Entry[Year],$D$1,Data_Entry[Major Behavior],\"*\")","v":0},{"$f":"COUNTIFS(Data_Entry[Grade],A3,Data_Entry[Year],$D$1,Data_Entry[Major Behavior],\"*\")","v":0}]
[{"$f":"PermList!A4","v":"K"},{"$f":"COUNTIFS(Data_Entry[Grade],A4,Data_Entry[Month Name],$C$1,Data_Entry[Year],$D$1,Data_Entry[Major Behavior],\"*\")","v":0},{"$f":"COUNTIFS(Data_Entry[Grade],A4,Data_Entry[Year],$D$1,Data_Entry[Major Behavior],\"*\")","v":0}]
[{"$f":"PermList!A5","v":1},{"$f":"COUNTIFS(Data_Entry[Grade],A5,Data_Entry[Month Name],$C$1,Data_Entry[Year],$D$1,Data_Entry[Major Behavior],\"*\")","v":0},{"$f":"COUNTIFS(Data_Entry[Grade],A5,Data_Entry[Year],$D$1,Data_Entry[Major Behavior],\"*\")","v":0}]
[{"$f":"PermList!A6","v":2},{"$f":"COUNTIFS(Data_Entry[Grade],A6,Data_Entry[Month Name],$C$1,Data_Entry[Year],$D$1,Data_Entry[Major Behavior],\"*\")","v":0},{"$f":"COUNTIFS(Data_Entry[Grade],A6,Data_Entry[Year],$D$1,Data_Entry[Major Behavior],\"*\")","v":0}]
[{"$f":"PermList!A7","v":3},{"$f":"COUNTIFS(Data_Entry[Grade],A7,Data_Entry[Month Name],$C$1,Data_Entry[Year],$D$1,Data_Entry[Major Behavior],\"*\")","v":0},{"$f":"COUNTIFS(Data_Entry[Grade],A7,Data_Entry[Year],$D$1,Data_Entry[Major Behavior],\"*\")","v":0}]
[{"$f":"PermList!A8","v":4},{"$f":"COUNTIFS(Data_Entry[Grade],A8,Data_Entry[Month Name],$C$1,Data_Entry[Year],$D$1,Data_Entry[Major Behavior],\"*\")","v":0},{"$f":"COUNTIFS(Data_Entry[Grade],A8,Data_Entry[Year],$D$1,Data_Entry[Major Behavior],\"*\")","v":0}]
[{"$f":"PermList!A9","v":5},{"$f":"COUNTIFS(Data_Entry[Grade],A9,Data_Entry[Month Name],$C$1,Data_Entry[Year],$D$1,Data_Entry[Major Behavior],\"*\")","v":0},{"$f":"COUNTIFS(Data_Entry[Grade],A9,Data_Entry[Year],$D$1,Data_Entry[Major Behavior],\"*\")","v":0}]
[{"$f":"PermList!A10","v":6},{"$f":"COUNTIFS(Data_Entry[Grade],A10,Data_Entry[Month Name],$C$1,Data_Entry[Year],$D$1,Data_Entry[Major Behavior],\"*\")","v":0},{"$f":"COUNTIFS(Data_Entry[Grade],A10,Data_Entry[Year],$D$1,Data_Entry[Major Behavior],\"*\")","v":0}]
[{"$f":"PermList!A11","v":7},{"$f":"COUNTIFS(Data_Entry[Grade],A11,Data_Entry[Month Name],$C$1,Data_Entry[Year],$D$1,Data_Entry[Major Behavior],\"*\")","v":0},{"$f":"COUNTIFS(Data_Entry[Grade],A11,Data_Entry[Year],$D$1,Data_Entry[Major Behavior],\"*\")","v":0}]
[{"$f":"PermList!A12","v":8},{"$f":"COUNTIFS(Data_Entry[Grade],A12,Data_Entry[Month Name],$C$1,Data_Entry[Year],$D$1,Data_Entry[Major Behavior],\"*\")","v":0},{"$f":"COUNTIFS(Data_Entry[Grade],A12,Data_Entry[Year],$D$1,Data_Entry[Major Behavior],\"*\")","v":0}]
[{"$f":"PermList!A13","v":9},{"$f":"COUNTIFS(Data_Entry[Grade],A13,Data_Entry[Month Name],$C$1,Data_Entry[Year],$D$1,Data_Entry[Major Behavior],\"*\")","v":0},{"$f":"COUNTIFS(Data_Entry[Grade],A13,Data_Entry[Year],$D$1,Data_Entry[Major Behavior],\"*\")","v":0}]
[{"$f":"PermList!A14","v":10},{"$f":"COUNTIFS(Data_Entry[Grade],A14,Data_Entry[Month Name],$C$1,Data_Entry[Year],$D$1,Data_Entry[Major Behavior],\"*\")","v":0},{"$f":"COUNTIFS(Data_Entry[Grade],A14,Data_Entry[Year],$D$1,Data_Entry[Major Behavior],\"*\")","v":0}]
[{"$f":"PermList!A15","v":11},{"$f":"COUNTIFS(Data_Entry[Grade],A15,Data_Entry[Month Name],$C$1,Data_Entry[Year],$D$1,Data_Entry[Major Behavior],\"*\")","v":0},{"$f":"COUNTIFS(Data_Entry[Grade],A15,Data_Entry[Year],$D$1,Data_Entry[Major Behavior],\"*\")","v":0}]
[{"$f":"PermList!A16","v":12},{"$f":"COUNTIFS(Data_Entry[Grade],A16,Data_Entry[Month Name],$C$1,Data_Entry[Year],$D$1,Data_Entry[Major Behavior],\"*\")","v":0},{"$f":"COUNTIFS(Data_Entry[Grade],A16,Data_Entry[Year],$D$1,Data_Entry[Major Behavior],\"*\")","v":0}]
[]
[]
[]
[]
[]
[]
[]
[]
[null,null,null,null,null,null,null,"Cumulative ODRs by Grade Level for ",{"$f":"$D$1","v":"2022"}]

{"sheet":"MajorsOthers","index":10,"n_rows":27,"n_cols":8,"rows_kept":27,"cut":false,"hidden":false,"merged":[]}
["Others ","ODRs for  ",{"$f":"Menu!$I$18","v":"February"},{"$f":"Menu!I16","v":"2022"},"by Others Involved"]
[{"$f":"PermList!I2","v":"None"},{"$f":"COUNTIFS(Data_Entry[Others Involved],A2,Data_Entry[Month Name],$C$1,Data_Entry[Year],$D$1,Data_Entry[Major Behavior],\"*\")","v":0},{"$f":"COUNTIFS(Data_Entry[Others Involved],A2,Data_Entry[Year],$D$1,Data_Entry[Major Behavior],\"*\")","v":0}]
[{"$f":"PermList!I3","v":"Peers"},{"$f":"COUNTIFS(Data_Entry[Others Involved],A3,Data_Entry[Month Name],$C$1,Data_Entry[Year],$D$1,Data_Entry[Major Behavior],\"*\")","v":0},{"$f":"COUNTIFS(Data_Entry[Others Involved],A3,Data_Entry[Year],$D$1,Data_Entry[Major Behavior],\"*\")","v":0}]
[{"$f":"PermList!I4","v":"Staff"},{"$f":"COUNTIFS(Data_Entry[Others Involved],A4,Data_Entry[Month Name],$C$1,Data_Entry[Year],$D$1,Data_Entry[Major Behavior],\"*\")","v":0},{"$f":"COUNTIFS(Data_Entry[Others Involved],A4,Data_Entry[Year],$D$1,Data_Entry[Major Behavior],\"*\")","v":0}]
[{"$f":"PermList!I5","v":"Teacher"},{"$f":"COUNTIFS(Data_Entry[Others Involved],A5,Data_Entry[Month Name],$C$1,Data_Entry[Year],$D$1,Data_Entry[Major Behavior],\"*\")","v":0},{"$f":"COUNTIFS(Data_Entry[Others Involved],A5,Data_Entry[Year],$D$1,Data_Entry[Major Behavior],\"*\")","v":0}]
[{"$f":"PermList!I6","v":"Substitute"},{"$f":"COUNTIFS(Data_Entry[Others Involved],A6,Data_Entry[Month Name],$C$1,Data_Entry[Year],$D$1,Data_Entry[Major Behavior],\"*\")","v":0},{"$f":"COUNTIFS(Data_Entry[Others Involved],A6,Data_Entry[Year],$D$1,Data_Entry[Major Behavior],\"*\")","v":0}]
[{"$f":"PermList!I7","v":"Unknown"},{"$f":"COUNTIFS(Data_Entry[Others Involved],A7,Data_Entry[Month Name],$C$1,Data_Entry[Year],$D$1,Data_Entry[Major Behavior],\"*\")","v":0},{"$f":"COUNTIFS(Data_Entry[Others Involved],A7,Data_Entry[Year],$D$1,Data_Entry[Major Behavior],\"*\")","v":0}]
[{"$f":"PermList!I8","v":"Other"},{"$f":"COUNTIFS(Data_Entry[Others Involved],A8,Data_Entry[Month Name],$C$1,Data_Entry[Year],$D$1,Data_Entry[Major Behavior],\"*\")","v":0},{"$f":"COUNTIFS(Data_Entry[Others Involved],A8,Data_Entry[Year],$D$1,Data_Entry[Major Behavior],\"*\")","v":0}]
[]
[]
[]
[]
[]
[]
[]
[]
[]
[]
[]
[]
[]
[]
[]
[]
[]
[]
[null,null,null,null,null,null,"Cumulative ODRs by Others Involved for ",{"$f":"$D$1","v":"2022"}]

{"sheet":"MajorsAdminDecision","index":11,"n_rows":26,"n_cols":10,"rows_kept":26,"cut":false,"hidden":false,"merged":[]}
["Administrative Decision","ODRs for",{"$f":"Menu!$I$18","v":"February"},{"$f":"Menu!I16","v":"2022"},"by Administrative Decision"]
[{"$f":"PermList!K2","v":"Principal/Student Conference"},{"$f":"COUNTIFS(Data_Entry[Administrative Decision],A2,Data_Entry[Month Name],$C$1,Data_Entry[Year],$D$1,Data_Entry[Major Behavior],\"*\")","v":0},{"$f":"COUNTIFS(Data_Entry[Administrative Decision],A2,Data_Entry[Year],$D$1,Data_Entry[Major Behavior],\"*\")","v":0}]
[{"$f":"PermList!K3","v":"Parent Contact"},{"$f":"COUNTIFS(Data_Entry[Administrative Decision],A3,Data_Entry[Month Name],$C$1,Data_Entry[Year],$D$1,Data_Entry[Major Behavior],\"*\")","v":0},{"$f":"COUNTIFS(Data_Entry[Administrative Decision],A3,Data_Entry[Year],$D$1,Data_Entry[Major Behavior],\"*\")","v":0}]
[{"$f":"PermList!K4","v":"Parent Conference"},{"$f":"COUNTIFS(Data_Entry[Administrative Decision],A4,Data_Entry[Month Name],$C$1,Data_Entry[Year],$D$1,Data_Entry[Major Behavior],\"*\")","v":0},{"$f":"COUNTIFS(Data_Entry[Administrative Decision],A4,Data_Entry[Year],$D$1,Data_Entry[Major Behavior],\"*\")","v":0}]
[{"$f":"PermList!K5","v":"Time out in other class"},{"$f":"COUNTIFS(Data_Entry[Administrative Decision],A5,Data_Entry[Month Name],$C$1,Data_Entry[Year],$D$1,Data_Entry[Major Behavior],\"*\")","v":0},{"$f":"COUNTIFS(Data_Entry[Administrative Decision],A5,Data_Entry[Year],$D$1,Data_Entry[Major Behavior],\"*\")","v":0}]
[{"$f":"PermList!K6","v":"Time out in office"},{"$f":"COUNTIFS(Data_Entry[Administrative Decision],A6,Data_Entry[Month Name],$C$1,Data_Entry[Year],$D$1,Data_Entry[Major Behavior],\"*\")","v":0},{"$f":"COUNTIFS(Data_Entry[Administrative Decision],A6,Data_Entry[Year],$D$1,Data_Entry[Major Behavior],\"*\")","v":0}]
[{"$f":"PermList!K7","v":"Loss of Recess"},{"$f":"COUNTIFS(Data_Entry[Administrative Decision],A7,Data_Entry[Month Name],$C$1,Data_Entry[Year],$D$1,Data_Entry[Major Behavior],\"*\")","v":0},{"$f":"COUNTIFS(Data_Entry[Administrative Decision],A7,Data_Entry[Year],$D$1,Data_Entry[Major Behavior],\"*\")","v":0}]
[{"$f":"PermList!K8","v":"Community Service"},{"$f":"COUNTIFS(Data_Entry[Administrative Decision],A8,Data_Entry[Month Name],$C$1,Data_Entry[Year],$D$1,Data_Entry[Major Behavior],\"*\")","v":0},{"$f":"COUNTIFS(Data_Entry[Administrative Decision],A8,Data_Entry[Year],$D$1,Data_Entry[Major Behavior],\"*\")","v":0}]
[{"$f":"PermList!K9","v":"Detention"},{"$f":"COUNTIFS(Data_Entry[Administrative Decision],A9,Data_Entry[Month Name],$C$1,Data_Entry[Year],$D$1,Data_Entry[Major Behavior],\"*\")","v":0},{"$f":"COUNTIFS(Data_Entry[Administrative Decision],A9,Data_Entry[Year],$D$1,Data_Entry[Major Behavior],\"*\")","v":0}]
[{"$f":"PermList!K10","v":"Counselor Referral"},{"$f":"COUNTIFS(Data_Entry[Administrative Decision],A10,Data_Entry[Month Name],$C$1,Data_Entry[Year],$D$1,Data_Entry[Major Behavior],\"*\")","v":0},{"$f":"COUNTIFS(Data_Entry[Administrative Decision],A10,Data_Entry[Year],$D$1,Data_Entry[Major Behavior],\"*\")","v":0}]
[{"$f":"PermList!K11","v":"Referral to Solutions/Wrap Around"},{"$f":"COUNTIFS(Data_Entry[Administrative Decision],A11,Data_Entry[Month Name],$C$1,Data_Entry[Year],$D$1,Data_Entry[Major Behavior],\"*\")","v":0},{"$f":"COUNTIFS(Data_Entry[Administrative Decision],A11,Data_Entry[Year],$D$1,Data_Entry[Major Behavior],\"*\")","v":0}]
[{"$f":"PermList!K12","v":"Behavior Plan"},{"$f":"COUNTIFS(Data_Entry[Administrative Decision],A12,Data_Entry[Month Name],$C$1,Data_Entry[Year],$D$1,Data_Entry[Major Behavior],\"*\")","v":0},{"$f":"COUNTIFS(Data_Entry[Administrative Decision],A12,Data_Entry[Year],$D$1,Data_Entry[Major Behavior],\"*\")","v":0}]
[{"$f":"PermList!K13","v":"Suspension"},{"$f":"COUNTIFS(Data_Entry[Administrative Decision],A13,Data_Entry[Month Name],$C$1,Data_Entry[Year],$D$1,Data_Entry[Major Behavior],\"*\")","v":0},{"$f":"COUNTIFS(Data_Entry[Administrative Decision],A13,Data_Entry[Year],$D$1,Data_Entry[Major Behavior],\"*\")","v":0}]
[{"$f":"PermList!K14","v":"Suspension and Hearing Office Referral"},{"$f":"COUNTIFS(Data_Entry[Administrative Decision],A14,Data_Entry[Month Name],$C$1,Data_Entry[Year],$D$1,Data_Entry[Major Behavior],\"*\")","v":0},{"$f":"COUNTIFS(Data_Entry[Administrative Decision],A14,Data_Entry[Year],$D$1,Data_Entry[Major Behavior],\"*\")","v":0}]
[{"$f":"PermList!K15","v":"Other"},{"$f":"COUNTIFS(Data_Entry[Administrative Decision],A15,Data_Entry[Month Name],$C$1,Data_Entry[Year],$D$1,Data_Entry[Major Behavior],\"*\")","v":0},{"$f":"COUNTIFS(Data_Entry[Administrative Decision],A15,Data_Entry[Year],$D$1,Data_Entry[Major Behavior],\"*\")","v":0}]
[]
[]
[]
[]
[]
[]
[]
[]
[]
[]
[null,null,null,null,null,null,null,null,"Cumulative Administrative  Decisions for ",{"$f":"$D$1","v":"2022"}]

{"sheet":"TotalPerMonth","index":12,"n_rows":13,"n_cols":3,"rows_kept":13,"cut":false,"hidden":false,"merged":[]}
["Month","Count",{"$f":"Menu!I16","v":"2022"}]
["July",{"$f":"COUNTIFS(Data_Entry[Month Name],A2,Data_Entry[Year],$C$1,Data_Entry[Major Behavior],\"*\")","v":0}]
["August",{"$f":"COUNTIFS(Data_Entry[Month Name],A3,Data_Entry[Year],$C$1,Data_Entry[Major Behavior],\"*\")","v":0}]
["September",{"$f":"COUNTIFS(Data_Entry[Month Name],A4,Data_Entry[Year],$C$1,Data_Entry[Major Behavior],\"*\")","v":0}]
["October",{"$f":"COUNTIFS(Data_Entry[Month Name],A5,Data_Entry[Year],$C$1,Data_Entry[Major Behavior],\"*\")","v":0}]
["November",{"$f":"COUNTIFS(Data_Entry[Month Name],A6,Data_Entry[Year],$C$1,Data_Entry[Major Behavior],\"*\")","v":0}]
["December",{"$f":"COUNTIFS(Data_Entry[Month Name],A7,Data_Entry[Year],$C$1,Data_Entry[Major Behavior],\"*\")","v":0}]
["January",{"$f":"COUNTIFS(Data_Entry[Month Name],A8,Data_Entry[Year],$C$1,Data_Entry[Major Behavior],\"*\")","v":0}]
["February",{"$f":"COUNTIFS(Data_Entry[Month Name],A9,Data_Entry[Year],$C$1,Data_Entry[Major Behavior],\"*\")","v":0}]
["March",{"$f":"COUNTIFS(Data_Entry[Month Name],A10,Data_Entry[Year],$C$1,Data_Entry[Major Behavior],\"*\")","v":0}]
["April",{"$f":"COUNTIFS(Data_Entry[Month Name],A11,Data_Entry[Year],$C$1,Data_Entry[Major Behavior],\"*\")","v":0}]
["May",{"$f":"COUNTIFS(Data_Entry[Month Name],A12,Data_Entry[Year],$C$1,Data_Entry[Major Behavior],\"*\")","v":0}]
["June",{"$f":"COUNTIFS(Data_Entry[Month Name],A13,Data_Entry[Year],$C$1,Data_Entry[Major Behavior],\"*\")","v":0}]

{"sheet":"MotivationStudent","index":13,"n_rows":25,"n_cols":7,"rows_kept":25,"cut":false,"hidden":false,"merged":[]}
["Motivation","ODRs for ",{"$f":"Menu!$I$18","v":"February"},{"$f":"Menu!I16","v":"2022"},"by Possible Motivation"]
[{"$f":"PermList!J2","v":"Gain Peer Attention"},{"$f":"COUNTIFS(Data_Entry[Possible Motivation],A2,Data_Entry[Month Name],$C$1,Data_Entry[Year],$D$1,Data_Entry[Major Behavior],\"*\")","v":0},{"$f":"COUNTIFS(Data_Entry[Possible Motivation],A2,Data_Entry[Year],$D$1,Data_Entry[Major Behavior],\"*\")","v":0}]
[{"$f":"PermList!J3","v":"Gain Adult Attention"},{"$f":"COUNTIFS(Data_Entry[Possible Motivation],A3,Data_Entry[Month Name],$C$1,Data_Entry[Year],$D$1,Data_Entry[Major Behavior],\"*\")","v":0},{"$f":"COUNTIFS(Data_Entry[Possible Motivation],A3,Data_Entry[Year],$D$1,Data_Entry[Major Behavior],\"*\")","v":0}]
[{"$f":"PermList!J4","v":"Gain Object"},{"$f":"COUNTIFS(Data_Entry[Possible Motivation],A4,Data_Entry[Month Name],$C$1,Data_Entry[Year],$D$1,Data_Entry[Major Behavior],\"*\")","v":0},{"$f":"COUNTIFS(Data_Entry[Possible Motivation],A4,Data_Entry[Year],$D$1,Data_Entry[Major Behavior],\"*\")","v":0}]
[{"$f":"PermList!J5","v":"Avoid Peer Attention"},{"$f":"COUNTIFS(Data_Entry[Possible Motivation],A5,Data_Entry[Month Name],$C$1,Data_Entry[Year],$D$1,Data_Entry[Major Behavior],\"*\")","v":0},{"$f":"COUNTIFS(Data_Entry[Possible Motivation],A5,Data_Entry[Year],$D$1,Data_Entry[Major Behavior],\"*\")","v":0}]
[{"$f":"PermList!J6","v":"Avoid Adult Attention"},{"$f":"COUNTIFS(Data_Entry[Possible Motivation],A6,Data_Entry[Month Name],$C$1,Data_Entry[Year],$D$1,Data_Entry[Major Behavior],\"*\")","v":0},{"$f":"COUNTIFS(Data_Entry[Possible Motivation],A6,Data_Entry[Year],$D$1,Data_Entry[Major Behavior],\"*\")","v":0}]
[{"$f":"PermList!J7","v":"Avoid Activity"},{"$f":"COUNTIFS(Data_Entry[Possible Motivation],A7,Data_Entry[Month Name],$C$1,Data_Entry[Year],$D$1,Data_Entry[Major Behavior],\"*\")","v":0},{"$f":"COUNTIFS(Data_Entry[Possible Motivation],A7,Data_Entry[Year],$D$1,Data_Entry[Major Behavior],\"*\")","v":0}]
[]
[]
[]
[]
[]
[]
[]
[]
[]
[]
[]
[]
[]
[]
[]
[]
[]
[null,null,null,null,null,"Cumulative ODRs by Possible Motivation",{"$f":"$D$1","v":"2022"}]

{"sheet":"MajorsGender","index":14,"n_rows":25,"n_cols":7,"rows_kept":25,"cut":false,"hidden":false,"merged":[]}
["Gender","ODRs for ",{"$f":"Menu!$I$18","v":"February"},{"$f":"Menu!I16","v":"2022"},"by Gender"]
[{"$f":"PermList!B2","v":"Female"},{"$f":"COUNTIFS(Data_Entry[Student_Demographics.Gender],A2,Data_Entry[Month Name],$C$1,Data_Entry[Year],$D$1,Data_Entry[Major Behavior],\"*\")","v":0},{"$f":"COUNTIFS(Data_Entry[Student_Demographics.Gender],A2,Data_Entry[Year],$D$1,Data_Entry[Major Behavior],\"*\")","v":0}]
[{"$f":"PermList!B3","v":"Male"},{"$f":"COUNTIFS(Data_Entry[Student_Demographics.Gender],A3,Data_Entry[Month Name],$C$1,Data_Entry[Year],$D$1,Data_Entry[Major Behavior],\"*\")","v":0},{"$f":"COUNTIFS(Data_Entry[Student_Demographics.Gender],A3,Data_Entry[Year],$D$1,Data_Entry[Major Behavior],\"*\")","v":0}]
[]
[]
[]
[]
[]
[]
[]
[]
[]
[]
[]
[]
[]
[]
[]
[]
[]
[]
[]
[]
[]
[null,null,null,null,null,"Cumulative ODRs by Gender for ",{"$f":"D1","v":"2022"}]

{"sheet":"MinorBehaviors","index":15,"n_rows":24,"n_cols":9,"rows_kept":24,"cut":false,"hidden":false,"merged":[]}
["Minors","Count",{"$f":"Menu!I$18","v":"February"},{"$f":"Menu!I16","v":"2022"},"Minor Behaviors"]
[{"$f":"PermList!H2","v":"Defiance/Disrespect/Non-Compliance"},{"$f":"COUNTIFS(Data_Entry[Minor Behavior],A2,Data_Entry[Month Name],$C$1,Data_Entry[Year],$D$1)","v":0},{"$f":"COUNTIFS(Data_Entry[Minor Behavior],A2,Data_Entry[Year],$D$1)","v":0}]
[{"$f":"PermList!H3","v":"Disruption"},{"$f":"COUNTIFS(Data_Entry[Minor Behavior],A3,Data_Entry[Month Name],$C$1,Data_Entry[Year],$D$1)","v":0},{"$f":"COUNTIFS(Data_Entry[Minor Behavior],A3,Data_Entry[Year],$D$1)","v":0}]
[{"$f":"PermList!H4","v":"Dress Code Violation"},{"$f":"COUNTIFS(Data_Entry[Minor Behavior],A4,Data_Entry[Month Name],$C$1,Data_Entry[Year],$D$1)","v":0},{"$f":"COUNTIFS(Data_Entry[Minor Behavior],A4,Data_Entry[Year],$D$1)","v":0}]
[{"$f":"PermList!H5","v":"Inappropriate Language"},{"$f":"COUNTIFS(Data_Entry[Minor Behavior],A5,Data_Entry[Month Name],$C$1,Data_Entry[Year],$D$1)","v":0},{"$f":"COUNTIFS(Data_Entry[Minor Behavior],A5,Data_Entry[Year],$D$1)","v":0}]
[{"$f":"PermList!H6","v":"Other"},{"$f":"COUNTIFS(Data_Entry[Minor Behavior],A6,Data_Entry[Month Name],$C$1,Data_Entry[Year],$D$1)","v":0},{"$f":"COUNTIFS(Data_Entry[Minor Behavior],A6,Data_Entry[Year],$D$1)","v":0}]
[{"$f":"PermList!H7","v":"Physical Contact/Physical Aggression"},{"$f":"COUNTIFS(Data_Entry[Minor Behavior],A7,Data_Entry[Month Name],$C$1,Data_Entry[Year],$D$1)","v":0},{"$f":"COUNTIFS(Data_Entry[Minor Behavior],A7,Data_Entry[Year],$D$1)","v":0}]
[{"$f":"PermList!H8","v":"Property Misuse"},{"$f":"COUNTIFS(Data_Entry[Minor Behavior],A8,Data_Entry[Month Name],$C$1,Data_Entry[Year],$D$1)","v":0},{"$f":"COUNTIFS(Data_Entry[Minor Behavior],A8,Data_Entry[Year],$D$1)","v":0}]
[{"$f":"PermList!H9","v":"Tardy"},{"$f":"COUNTIFS(Data_Entry[Minor Behavior],A9,Data_Entry[Month Name],$C$1,Data_Entry[Year],$D$1)","v":0},{"$f":"COUNTIFS(Data_Entry[Minor Behavior],A9,Data_Entry[Year],$D$1)","v":0}]
[{"$f":"PermList!H10","v":"Technology Violation"},{"$f":"COUNTIFS(Data_Entry[Minor Behavior],A10,Data_Entry[Month Name],$C$1,Data_Entry[Year],$D$1)","v":0},{"$f":"COUNTIFS(Data_Entry[Minor Behavior],A10,Data_Entry[Year],$D$1)","v":0}]
[]
[]
[]
[]
[]
[]
[]
[]
[]
[]
[]
[]
[]
[null,null,null,null,null,null,null,"Cumulative Minor Behaviors for ",{"$f":"D1","v":"2022"}]

{"sheet":"PermList","index":16,"n_rows":46,"n_cols":21,"rows_kept":46,"cut":false,"hidden":false,"merged":[]}
["Grade","Gender","Ethnicity","Race","Time","Location","Majors","Minors","Others ","Motivation","Administrative Decision","Suspension","National Comparisons",null,null,null,null,null,null,null,"IEP"]
["P3","Female","Hispanic/Latino","African American/Black","07:00:00","Classroom","Abusive/Inappropriate Language","Defiance/Disrespect/Non-Compliance","None","Gain Peer Attention","Principal/Student Conference",0,"Early Childhood (13-14 norms)",null,"Early Childhood (13-14 norms)","Grades K-6 ","Grades 6-9 ","Grades 9-12 for ","Grades PK-8","Grades PK-12 (18-19 Norms)","IEP"]
["P4","Male","Non-Hispanic/Latino","Asian","07:15:00","Playground","Arson","Disruption","Peers","Gain Adult Attention","Parent Contact",1,"Grades K-6 ","0-1 Referrals",0.91279999999999994,0.94030000000000002,0.90469999999999995,0.90490000000000004,0.92310000000000003,0.84509999999999996,"Non-IEP"]
["K",null,null,"Native American/Alaskan","07:30:00","Commons/Common Areas","Bomb Threat/False Alarm","Dress Code Violation","Staff","Gain Object","Parent Conference",2,"Grades 6-9 ","2-5 Referrals",4.7800000000000002E-2,4.1500000000000002E-2,7.0400000000000004E-2,7.1099999999999997E-2,5.6099999999999997E-2,8.8999999999999996E-2]
[1,null,null,"Native Hawaiian/Pacific Islander","07:45:00","Hall/Breeze way","Defiance/Disrespect/Insubordination/Non-Compliance","Inappropriate Language","Teacher","Avoid Peer Attention","Time out in other class",3,"Grades 9-12","6+ Referrals",3.9399999999999998E-2,1.8100000000000002E-2,2.4799999999999999E-2,2.4E-2,2.0799999999999999E-2,6.59E-2]
[2,null,null,"Multi-Racial","08:00:00","Cafeteria","Disruption","Other","Substitute","Avoid Adult Attention","Time out in office",4,"Grades K-8",null,null,{"$f":"SUM(P3:P5)","v":0.99990000000000001},{"$f":"SUM(Q3:Q5)","v":0.99990000000000001},{"$f":"SUM(R3:R5)","v":1},{"$f":"SUM(S3:S5)","v":1},{"$f":"SUM(T3:T5)","v":0.99999999999999989}]
[3,null,null,"White","08:15:00","Bathroom/Restroom","Dress Code Violation","Physical Contact/Physical Aggression","Unknown","Avoid Activity","Loss of Recess",5,"Grades PK-12 (18-19 Norms)"]
[4,null,null,null,"08:30:00","Gym","Fighting/Physical Aggression","Property Misuse","Other",null,"Community Service",6]
[5,null,null,null,"08:45:00","Library","Forgery/Theft","Tardy",null,null,"Detention",7]
[6,null,null,null,"09:00:00","Bus Loading Zone","Gang Affiliation Display","Technology Violation",null,null,"Counselor Referral",8]
[7,null,null,null,"09:15:00","Parking Lot","Harassment/Bullying",null,null,null,"Referral to Solutions/Wrap Around",9]
[8,null,null,null,"09:30:00","Bus","Sexual Harassment",null,null,null,"Behavior Plan",10]
[9,null,null,null,"09:45:00","Special Event/Assembly/Field trip","Inappropriate Display of Affection",null,null,null,"Suspension"]
[10,null,null,null,"10:00:00","Other Location","Inappropriate Location/Out of Bounds Area",null,null,null,"Suspension and Hearing Office Referral"]
[11,null,null,null,"10:15:00","Unknown Location","Lying/Cheating",null,null,null,"Other"]
[12,null,null,null,"10:30:00","Office","Other Behavior"]
[null,null,null,null,"10:45:00","Locker Room","Property Damage/Vandalism"]
[null,null,null,null,"11:00:00","Off-Campus","Skip Class"]
[null,null,null,null,"11:15:00","Stadium","Truancy"]
[null,null,null,null,"11:30:00","Music Room","Tardy"]
[null,null,null,null,"11:45:00","Computer Lab","Technology Violation"]
[null,null,null,null,"12:00:00","Art Room","Use/Possession of Alcohol"]
[null,null,null,null,"12:15:00",null,"Use/Possession of Combustibles"]
[null,null,null,null,"12:30:00",null,"Use/Possession of Drugs"]
[null,null,null,null,"12:45:00",null,"Use/Possession of Tobacco"]
[null,null,null,null,"13:00:00",null,"Use/Possession of Weapons"]
[null,null,null,null,"13:15:00"]
[null,null,null,null,"13:30:00"]
[null,null,null,null,"13:45:00"]
[null,null,null,null,"14:00:00"]
[null,null,null,null,"14:15:00"]
[null,null,null,null,"14:30:00"]
[null,null,null,null,"14:45:00"]
[null,null,null,null,"15:00:00"]
[null,null,null,null,"15:15:00"]
[null,null,null,null,"15:30:00"]
[null,null,null,null,"15:45:00"]
[null,null,null,null,"16:00:00"]
[null,null,null,null,"16:15:00"]
[null,null,null,null,"16:30:00"]
[null,null,null,null,"16:45:00"]
[null,null,null,null,"17:00:00"]
[null,null,null,null,"17:15:00"]
[null,null,null,null,"17:30:00"]
[null,null,null,null,"17:45:00"]
[null,null,null,null,"18:00:00"]

{"sheet":"MinorsLocation","index":17,"n_rows":22,"n_cols":9,"rows_kept":22,"cut":false,"hidden":false,"merged":[]}
["Location","Count",{"$f":"Menu!$I$18","v":"February"},{"$f":"Menu!I16","v":"2022"},"Minor ODRs by Location"]
[{"$f":"PermList!F2","v":"Classroom"},{"$f":"COUNTIFS(Data_Entry[Location],A2,Data_Entry[Minor Behavior],\"*\",Data_Entry[Month Name],$C$1,Data_Entry[Year],$D$1)","v":0},{"$f":"COUNTIFS(Data_Entry[Location],A2,Data_Entry[Minor Behavior],\"*\",Data_Entry[Year],$D$1)","v":0}]
[{"$f":"PermList!F3","v":"Playground"},{"$f":"COUNTIFS(Data_Entry[Location],A3,Data_Entry[Minor Behavior],\"*\",Data_Entry[Month Name],$C$1,Data_Entry[Year],$D$1)","v":0},{"$f":"COUNTIFS(Data_Entry[Location],A3,Data_Entry[Minor Behavior],\"*\",Data_Entry[Year],$D$1)","v":0}]
[{"$f":"PermList!F4","v":"Commons/Common Areas"},{"$f":"COUNTIFS(Data_Entry[Location],A4,Data_Entry[Minor Behavior],\"*\",Data_Entry[Month Name],$C$1,Data_Entry[Year],$D$1)","v":0},{"$f":"COUNTIFS(Data_Entry[Location],A4,Data_Entry[Minor Behavior],\"*\",Data_Entry[Year],$D$1)","v":0}]
[{"$f":"PermList!F5","v":"Hall/Breeze way"},{"$f":"COUNTIFS(Data_Entry[Location],A5,Data_Entry[Minor Behavior],\"*\",Data_Entry[Month Name],$C$1,Data_Entry[Year],$D$1)","v":0},{"$f":"COUNTIFS(Data_Entry[Location],A5,Data_Entry[Minor Behavior],\"*\",Data_Entry[Year],$D$1)","v":0}]
[{"$f":"PermList!F6","v":"Cafeteria"},{"$f":"COUNTIFS(Data_Entry[Location],A6,Data_Entry[Minor Behavior],\"*\",Data_Entry[Month Name],$C$1,Data_Entry[Year],$D$1)","v":0},{"$f":"COUNTIFS(Data_Entry[Location],A6,Data_Entry[Minor Behavior],\"*\",Data_Entry[Year],$D$1)","v":0}]
[{"$f":"PermList!F7","v":"Bathroom/Restroom"},{"$f":"COUNTIFS(Data_Entry[Location],A7,Data_Entry[Minor Behavior],\"*\",Data_Entry[Month Name],$C$1,Data_Entry[Year],$D$1)","v":0},{"$f":"COUNTIFS(Data_Entry[Location],A7,Data_Entry[Minor Behavior],\"*\",Data_Entry[Year],$D$1)","v":0}]
[{"$f":"PermList!F8","v":"Gym"},{"$f":"COUNTIFS(Data_Entry[Location],A8,Data_Entry[Minor Behavior],\"*\",Data_Entry[Month Name],$C$1,Data_Entry[Year],$D$1)","v":0},{"$f":"COUNTIFS(Data_Entry[Location],A8,Data_Entry[Minor Behavior],\"*\",Data_Entry[Year],$D$1)","v":0}]
[{"$f":"PermList!F9","v":"Library"},{"$f":"COUNTIFS(Data_Entry[Location],A9,Data_Entry[Minor Behavior],\"*\",Data_Entry[Month Name],$C$1,Data_Entry[Year],$D$1)","v":0},{"$f":"COUNTIFS(Data_Entry[Location],A9,Data_Entry[Minor Behavior],\"*\",Data_Entry[Year],$D$1)","v":0}]
[{"$f":"PermList!F10","v":"Bus Loading Zone"},{"$f":"COUNTIFS(Data_Entry[Location],A10,Data_Entry[Minor Behavior],\"*\",Data_Entry[Month Name],$C$1,Data_Entry[Year],$D$1)","v":0},{"$f":"COUNTIFS(Data_Entry[Location],A10,Data_Entry[Minor Behavior],\"*\",Data_Entry[Year],$D$1)","v":0}]
[{"$f":"PermList!F11","v":"Parking Lot"},{"$f":"COUNTIFS(Data_Entry[Location],A11,Data_Entry[Minor Behavior],\"*\",Data_Entry[Month Name],$C$1,Data_Entry[Year],$D$1)","v":0},{"$f":"COUNTIFS(Data_Entry[Location],A11,Data_Entry[Minor Behavior],\"*\",Data_Entry[Year],$D$1)","v":0}]
[{"$f":"PermList!F12","v":"Bus"},{"$f":"COUNTIFS(Data_Entry[Location],A12,Data_Entry[Minor Behavior],\"*\",Data_Entry[Month Name],$C$1,Data_Entry[Year],$D$1)","v":0},{"$f":"COUNTIFS(Data_Entry[Location],A12,Data_Entry[Minor Behavior],\"*\",Data_Entry[Year],$D$1)","v":0}]
[{"$f":"PermList!F13","v":"Special Event/Assembly/Field trip"},{"$f":"COUNTIFS(Data_Entry[Location],A13,Data_Entry[Minor Behavior],\"*\",Data_Entry[Month Name],$C$1,Data_Entry[Year],$D$1)","v":0},{"$f":"COUNTIFS(Data_Entry[Location],A13,Data_Entry[Minor Behavior],\"*\",Data_Entry[Year],$D$1)","v":0}]
[{"$f":"PermList!F14","v":"Other Location"},{"$f":"COUNTIFS(Data_Entry[Location],A14,Data_Entry[Minor Behavior],\"*\",Data_Entry[Month Name],$C$1,Data_Entry[Year],$D$1)","v":0},{"$f":"COUNTIFS(Data_Entry[Location],A14,Data_Entry[Minor Behavior],\"*\",Data_Entry[Year],$D$1)","v":0}]
[{"$f":"PermList!F15","v":"Unknown Location"},{"$f":"COUNTIFS(Data_Entry[Location],A15,Data_Entry[Minor Behavior],\"*\",Data_Entry[Month Name],$C$1,Data_Entry[Year],$D$1)","v":0},{"$f":"COUNTIFS(Data_Entry[Location],A15,Data_Entry[Minor Behavior],\"*\",Data_Entry[Year],$D$1)","v":0}]
[{"$f":"PermList!F16","v":"Office"},{"$f":"COUNTIFS(Data_Entry[Location],A16,Data_Entry[Minor Behavior],\"*\",Data_Entry[Month Name],$C$1,Data_Entry[Year],$D$1)","v":0},{"$f":"COUNTIFS(Data_Entry[Location],A16,Data_Entry[Minor Behavior],\"*\",Data_Entry[Year],$D$1)","v":0}]
[{"$f":"PermList!F17","v":"Locker Room"},{"$f":"COUNTIFS(Data_Entry[Location],A17,Data_Entry[Minor Behavior],\"*\",Data_Entry[Month Name],$C$1,Data_Entry[Year],$D$1)","v":0},{"$f":"COUNTIFS(Data_Entry[Location],A17,Data_Entry[Minor Behavior],\"*\",Data_Entry[Year],$D$1)","v":0}]
[{"$f":"PermList!F18","v":"Off-Campus"},{"$f":"COUNTIFS(Data_Entry[Location],A18,Data_Entry[Minor Behavior],\"*\",Data_Entry[Month Name],$C$1,Data_Entry[Year],$D$1)","v":0},{"$f":"COUNTIFS(Data_Entry[Location],A18,Data_Entry[Minor Behavior],\"*\",Data_Entry[Year],$D$1)","v":0}]
[{"$f":"PermList!F19","v":"Stadium"},{"$f":"COUNTIFS(Data_Entry[Location],A19,Data_Entry[Minor Behavior],\"*\",Data_Entry[Month Name],$C$1,Data_Entry[Year],$D$1)","v":0},{"$f":"COUNTIFS(Data_Entry[Location],A19,Data_Entry[Minor Behavior],\"*\",Data_Entry[Year],$D$1)","v":0}]
[{"$f":"PermList!F20","v":"Music Room"},{"$f":"COUNTIFS(Data_Entry[Location],A20,Data_Entry[Minor Behavior],\"*\",Data_Entry[Month Name],$C$1,Data_Entry[Year],$D$1)","v":0},{"$f":"COUNTIFS(Data_Entry[Location],A20,Data_Entry[Minor Behavior],\"*\",Data_Entry[Year],$D$1)","v":0}]
[{"$f":"PermList!F21","v":"Computer Lab"},{"$f":"COUNTIFS(Data_Entry[Location],A21,Data_Entry[Minor Behavior],\"*\",Data_Entry[Month Name],$C$1,Data_Entry[Year],$D$1)","v":0},{"$f":"COUNTIFS(Data_Entry[Location],A21,Data_Entry[Minor Behavior],\"*\",Data_Entry[Year],$D$1)","v":0},null,null,null,null,"Cumulative Minor Behaviors by Location for ",{"$f":"$D$1","v":"2022"}]
[{"$f":"PermList!F22","v":"Art Room"},{"$f":"COUNTIFS(Data_Entry[Location],A22,Data_Entry[Minor Behavior],\"*\",Data_Entry[Month Name],$C$1,Data_Entry[Year],$D$1)","v":0},{"$f":"COUNTIFS(Data_Entry[Location],A22,Data_Entry[Minor Behavior],\"*\",Data_Entry[Year],$D$1)","v":0}]

{"sheet":"MinorsTime","index":18,"n_rows":46,"n_cols":7,"rows_kept":46,"cut":false,"hidden":false,"merged":[]}
["Time","Count",{"$f":"Menu!$I$18","v":"February"},{"$f":"Menu!I16","v":"2022"},"Minors by Time of  Day"]
[{"$f":"PermList!E2","v":"07:00:00"},{"$f":"COUNTIFS(Data_Entry[Time],A2,Data_Entry[Minor Behavior],\"*\",Data_Entry[Month Name],$C$1,Data_Entry[Year],$D$1)","v":0},{"$f":"COUNTIFS(Data_Entry[Time],A2,Data_Entry[Minor Behavior],\"*\",Data_Entry[Year],$D$1)","v":0}]
[{"$f":"PermList!E3","v":"07:15:00"},{"$f":"COUNTIFS(Data_Entry[Time],A3,Data_Entry[Minor Behavior],\"*\",Data_Entry[Month Name],$C$1,Data_Entry[Year],$D$1)","v":0},{"$f":"COUNTIFS(Data_Entry[Time],A3,Data_Entry[Minor Behavior],\"*\",Data_Entry[Year],$D$1)","v":0}]
[{"$f":"PermList!E4","v":"07:30:00"},{"$f":"COUNTIFS(Data_Entry[Time],A4,Data_Entry[Minor Behavior],\"*\",Data_Entry[Month Name],$C$1,Data_Entry[Year],$D$1)","v":0},{"$f":"COUNTIFS(Data_Entry[Time],A4,Data_Entry[Minor Behavior],\"*\",Data_Entry[Year],$D$1)","v":0}]
[{"$f":"PermList!E5","v":"07:45:00"},{"$f":"COUNTIFS(Data_Entry[Time],A5,Data_Entry[Minor Behavior],\"*\",Data_Entry[Month Name],$C$1,Data_Entry[Year],$D$1)","v":0},{"$f":"COUNTIFS(Data_Entry[Time],A5,Data_Entry[Minor Behavior],\"*\",Data_Entry[Year],$D$1)","v":0}]
[{"$f":"PermList!E6","v":"08:00:00"},{"$f":"COUNTIFS(Data_Entry[Time],A6,Data_Entry[Minor Behavior],\"*\",Data_Entry[Month Name],$C$1,Data_Entry[Year],$D$1)","v":0},{"$f":"COUNTIFS(Data_Entry[Time],A6,Data_Entry[Minor Behavior],\"*\",Data_Entry[Year],$D$1)","v":0}]
[{"$f":"PermList!E7","v":"08:15:00"},{"$f":"COUNTIFS(Data_Entry[Time],A7,Data_Entry[Minor Behavior],\"*\",Data_Entry[Month Name],$C$1,Data_Entry[Year],$D$1)","v":0},{"$f":"COUNTIFS(Data_Entry[Time],A7,Data_Entry[Minor Behavior],\"*\",Data_Entry[Year],$D$1)","v":0}]
[{"$f":"PermList!E8","v":"08:30:00"},{"$f":"COUNTIFS(Data_Entry[Time],A8,Data_Entry[Minor Behavior],\"*\",Data_Entry[Month Name],$C$1,Data_Entry[Year],$D$1)","v":0},{"$f":"COUNTIFS(Data_Entry[Time],A8,Data_Entry[Minor Behavior],\"*\",Data_Entry[Year],$D$1)","v":0}]
[{"$f":"PermList!E9","v":"08:45:00"},{"$f":"COUNTIFS(Data_Entry[Time],A9,Data_Entry[Minor Behavior],\"*\",Data_Entry[Month Name],$C$1,Data_Entry[Year],$D$1)","v":0},{"$f":"COUNTIFS(Data_Entry[Time],A9,Data_Entry[Minor Behavior],\"*\",Data_Entry[Year],$D$1)","v":0}]
[{"$f":"PermList!E10","v":"09:00:00"},{"$f":"COUNTIFS(Data_Entry[Time],A10,Data_Entry[Minor Behavior],\"*\",Data_Entry[Month Name],$C$1,Data_Entry[Year],$D$1)","v":0},{"$f":"COUNTIFS(Data_Entry[Time],A10,Data_Entry[Minor Behavior],\"*\",Data_Entry[Year],$D$1)","v":0}]
[{"$f":"PermList!E11","v":"09:15:00"},{"$f":"COUNTIFS(Data_Entry[Time],A11,Data_Entry[Minor Behavior],\"*\",Data_Entry[Month Name],$C$1,Data_Entry[Year],$D$1)","v":0},{"$f":"COUNTIFS(Data_Entry[Time],A11,Data_Entry[Minor Behavior],\"*\",Data_Entry[Year],$D$1)","v":0}]
[{"$f":"PermList!E12","v":"09:30:00"},{"$f":"COUNTIFS(Data_Entry[Time],A12,Data_Entry[Minor Behavior],\"*\",Data_Entry[Month Name],$C$1,Data_Entry[Year],$D$1)","v":0},{"$f":"COUNTIFS(Data_Entry[Time],A12,Data_Entry[Minor Behavior],\"*\",Data_Entry[Year],$D$1)","v":0}]
[{"$f":"PermList!E13","v":"09:45:00"},{"$f":"COUNTIFS(Data_Entry[Time],A13,Data_Entry[Minor Behavior],\"*\",Data_Entry[Month Name],$C$1,Data_Entry[Year],$D$1)","v":0},{"$f":"COUNTIFS(Data_Entry[Time],A13,Data_Entry[Minor Behavior],\"*\",Data_Entry[Year],$D$1)","v":0}]
[{"$f":"PermList!E14","v":"10:00:00"},{"$f":"COUNTIFS(Data_Entry[Time],A14,Data_Entry[Minor Behavior],\"*\",Data_Entry[Month Name],$C$1,Data_Entry[Year],$D$1)","v":0},{"$f":"COUNTIFS(Data_Entry[Time],A14,Data_Entry[Minor Behavior],\"*\",Data_Entry[Year],$D$1)","v":0}]
[{"$f":"PermList!E15","v":"10:15:00"},{"$f":"COUNTIFS(Data_Entry[Time],A15,Data_Entry[Minor Behavior],\"*\",Data_Entry[Month Name],$C$1,Data_Entry[Year],$D$1)","v":0},{"$f":"COUNTIFS(Data_Entry[Time],A15,Data_Entry[Minor Behavior],\"*\",Data_Entry[Year],$D$1)","v":0}]
[{"$f":"PermList!E16","v":"10:30:00"},{"$f":"COUNTIFS(Data_Entry[Time],A16,Data_Entry[Minor Behavior],\"*\",Data_Entry[Month Name],$C$1,Data_Entry[Year],$D$1)","v":0},{"$f":"COUNTIFS(Data_Entry[Time],A16,Data_Entry[Minor Behavior],\"*\",Data_Entry[Year],$D$1)","v":0}]
[{"$f":"PermList!E17","v":"10:45:00"},{"$f":"COUNTIFS(Data_Entry[Time],A17,Data_Entry[Minor Behavior],\"*\",Data_Entry[Month Name],$C$1,Data_Entry[Year],$D$1)","v":0},{"$f":"COUNTIFS(Data_Entry[Time],A17,Data_Entry[Minor Behavior],\"*\",Data_Entry[Year],$D$1)","v":0}]
[{"$f":"PermList!E18","v":"11:00:00"},{"$f":"COUNTIFS(Data_Entry[Time],A18,Data_Entry[Minor Behavior],\"*\",Data_Entry[Month Name],$C$1,Data_Entry[Year],$D$1)","v":0},{"$f":"COUNTIFS(Data_Entry[Time],A18,Data_Entry[Minor Behavior],\"*\",Data_Entry[Year],$D$1)","v":0}]
[{"$f":"PermList!E19","v":"11:15:00"},{"$f":"COUNTIFS(Data_Entry[Time],A19,Data_Entry[Minor Behavior],\"*\",Data_Entry[Month Name],$C$1,Data_Entry[Year],$D$1)","v":0},{"$f":"COUNTIFS(Data_Entry[Time],A19,Data_Entry[Minor Behavior],\"*\",Data_Entry[Year],$D$1)","v":0}]
[{"$f":"PermList!E20","v":"11:30:00"},{"$f":"COUNTIFS(Data_Entry[Time],A20,Data_Entry[Minor Behavior],\"*\",Data_Entry[Month Name],$C$1,Data_Entry[Year],$D$1)","v":0},{"$f":"COUNTIFS(Data_Entry[Time],A20,Data_Entry[Minor Behavior],\"*\",Data_Entry[Year],$D$1)","v":0}]
[{"$f":"PermList!E21","v":"11:45:00"},{"$f":"COUNTIFS(Data_Entry[Time],A21,Data_Entry[Minor Behavior],\"*\",Data_Entry[Month Name],$C$1,Data_Entry[Year],$D$1)","v":0},{"$f":"COUNTIFS(Data_Entry[Time],A21,Data_Entry[Minor Behavior],\"*\",Data_Entry[Year],$D$1)","v":0}]
[{"$f":"PermList!E22","v":"12:00:00"},{"$f":"COUNTIFS(Data_Entry[Time],A22,Data_Entry[Minor Behavior],\"*\",Data_Entry[Month Name],$C$1,Data_Entry[Year],$D$1)","v":0},{"$f":"COUNTIFS(Data_Entry[Time],A22,Data_Entry[Minor Behavior],\"*\",Data_Entry[Year],$D$1)","v":0}]
[{"$f":"PermList!E23","v":"12:15:00"},{"$f":"COUNTIFS(Data_Entry[Time],A23,Data_Entry[Minor Behavior],\"*\",Data_Entry[Month Name],$C$1,Data_Entry[Year],$D$1)","v":0},{"$f":"COUNTIFS(Data_Entry[Time],A23,Data_Entry[Minor Behavior],\"*\",Data_Entry[Year],$D$1)","v":0}]
[{"$f":"PermList!E24","v":"12:30:00"},{"$f":"COUNTIFS(Data_Entry[Time],A24,Data_Entry[Minor Behavior],\"*\",Data_Entry[Month Name],$C$1,Data_Entry[Year],$D$1)","v":0},{"$f":"COUNTIFS(Data_Entry[Time],A24,Data_Entry[Minor Behavior],\"*\",Data_Entry[Year],$D$1)","v":0}]
[{"$f":"PermList!E25","v":"12:45:00"},{"$f":"COUNTIFS(Data_Entry[Time],A25,Data_Entry[Minor Behavior],\"*\",Data_Entry[Month Name],$C$1,Data_Entry[Year],$D$1)","v":0},{"$f":"COUNTIFS(Data_Entry[Time],A25,Data_Entry[Minor Behavior],\"*\",Data_Entry[Year],$D$1)","v":0}]
[{"$f":"PermList!E26","v":"13:00:00"},{"$f":"COUNTIFS(Data_Entry[Time],A26,Data_Entry[Minor Behavior],\"*\",Data_Entry[Month Name],$C$1,Data_Entry[Year],$D$1)","v":0},{"$f":"COUNTIFS(Data_Entry[Time],A26,Data_Entry[Minor Behavior],\"*\",Data_Entry[Year],$D$1)","v":0}]
[{"$f":"PermList!E27","v":"13:15:00"},{"$f":"COUNTIFS(Data_Entry[Time],A27,Data_Entry[Minor Behavior],\"*\",Data_Entry[Month Name],$C$1,Data_Entry[Year],$D$1)","v":0},{"$f":"COUNTIFS(Data_Entry[Time],A27,Data_Entry[Minor Behavior],\"*\",Data_Entry[Year],$D$1)","v":0}]
[{"$f":"PermList!E28","v":"13:30:00"},{"$f":"COUNTIFS(Data_Entry[Time],A28,Data_Entry[Minor Behavior],\"*\",Data_Entry[Month Name],$C$1,Data_Entry[Year],$D$1)","v":0},{"$f":"COUNTIFS(Data_Entry[Time],A28,Data_Entry[Minor Behavior],\"*\",Data_Entry[Year],$D$1)","v":0},null,null,"Cumulative Minor Behaviors by Time of  Day for ",{"$f":"$D$1","v":"2022"}]
[{"$f":"PermList!E29","v":"13:45:00"},{"$f":"COUNTIFS(Data_Entry[Time],A29,Data_Entry[Minor Behavior],\"*\",Data_Entry[Month Name],$C$1,Data_Entry[Year],$D$1)","v":0},{"$f":"COUNTIFS(Data_Entry[Time],A29,Data_Entry[Minor Behavior],\"*\",Data_Entry[Year],$D$1)","v":0}]
[{"$f":"PermList!E30","v":"14:00:00"},{"$f":"COUNTIFS(Data_Entry[Time],A30,Data_Entry[Minor Behavior],\"*\",Data_Entry[Month Name],$C$1,Data_Entry[Year],$D$1)","v":0},{"$f":"COUNTIFS(Data_Entry[Time],A30,Data_Entry[Minor Behavior],\"*\",Data_Entry[Year],$D$1)","v":0}]
[{"$f":"PermList!E31","v":"14:15:00"},{"$f":"COUNTIFS(Data_Entry[Time],A31,Data_Entry[Minor Behavior],\"*\",Data_Entry[Month Name],$C$1,Data_Entry[Year],$D$1)","v":0},{"$f":"COUNTIFS(Data_Entry[Time],A31,Data_Entry[Minor Behavior],\"*\",Data_Entry[Year],$D$1)","v":0}]
[{"$f":"PermList!E32","v":"14:30:00"},{"$f":"COUNTIFS(Data_Entry[Time],A32,Data_Entry[Minor Behavior],\"*\",Data_Entry[Month Name],$C$1,Data_Entry[Year],$D$1)","v":0},{"$f":"COUNTIFS(Data_Entry[Time],A32,Data_Entry[Minor Behavior],\"*\",Data_Entry[Year],$D$1)","v":0}]
[{"$f":"PermList!E33","v":"14:45:00"},{"$f":"COUNTIFS(Data_Entry[Time],A33,Data_Entry[Minor Behavior],\"*\",Data_Entry[Month Name],$C$1,Data_Entry[Year],$D$1)","v":0},{"$f":"COUNTIFS(Data_Entry[Time],A33,Data_Entry[Minor Behavior],\"*\",Data_Entry[Year],$D$1)","v":0}]
[{"$f":"PermList!E34","v":"15:00:00"},{"$f":"COUNTIFS(Data_Entry[Time],A34,Data_Entry[Minor Behavior],\"*\",Data_Entry[Month Name],$C$1,Data_Entry[Year],$D$1)","v":0},{"$f":"COUNTIFS(Data_Entry[Time],A34,Data_Entry[Minor Behavior],\"*\",Data_Entry[Year],$D$1)","v":0}]
[{"$f":"PermList!E35","v":"15:15:00"},{"$f":"COUNTIFS(Data_Entry[Time],A35,Data_Entry[Minor Behavior],\"*\",Data_Entry[Month Name],$C$1,Data_Entry[Year],$D$1)","v":0},{"$f":"COUNTIFS(Data_Entry[Time],A35,Data_Entry[Minor Behavior],\"*\",Data_Entry[Year],$D$1)","v":0}]
[{"$f":"PermList!E36","v":"15:30:00"},{"$f":"COUNTIFS(Data_Entry[Time],A36,Data_Entry[Minor Behavior],\"*\",Data_Entry[Month Name],$C$1,Data_Entry[Year],$D$1)","v":0},{"$f":"COUNTIFS(Data_Entry[Time],A36,Data_Entry[Minor Behavior],\"*\",Data_Entry[Year],$D$1)","v":0}]
[{"$f":"PermList!E37","v":"15:45:00"},{"$f":"COUNTIFS(Data_Entry[Time],A37,Data_Entry[Minor Behavior],\"*\",Data_Entry[Month Name],$C$1,Data_Entry[Year],$D$1)","v":0},{"$f":"COUNTIFS(Data_Entry[Time],A37,Data_Entry[Minor Behavior],\"*\",Data_Entry[Year],$D$1)","v":0}]
[{"$f":"PermList!E38","v":"16:00:00"},{"$f":"COUNTIFS(Data_Entry[Time],A38,Data_Entry[Minor Behavior],\"*\",Data_Entry[Month Name],$C$1,Data_Entry[Year],$D$1)","v":0},{"$f":"COUNTIFS(Data_Entry[Time],A38,Data_Entry[Minor Behavior],\"*\",Data_Entry[Year],$D$1)","v":0}]
[{"$f":"PermList!E39","v":"16:15:00"},{"$f":"COUNTIFS(Data_Entry[Time],A39,Data_Entry[Minor Behavior],\"*\",Data_Entry[Month Name],$C$1,Data_Entry[Year],$D$1)","v":0},{"$f":"COUNTIFS(Data_Entry[Time],A39,Data_Entry[Minor Behavior],\"*\",Data_Entry[Year],$D$1)","v":0}]
[{"$f":"PermList!E40","v":"16:30:00"},{"$f":"COUNTIFS(Data_Entry[Time],A40,Data_Entry[Minor Behavior],\"*\",Data_Entry[Month Name],$C$1,Data_Entry[Year],$D$1)","v":0},{"$f":"COUNTIFS(Data_Entry[Time],A40,Data_Entry[Minor Behavior],\"*\",Data_Entry[Year],$D$1)","v":0}]
[{"$f":"PermList!E41","v":"16:45:00"},{"$f":"COUNTIFS(Data_Entry[Time],A41,Data_Entry[Minor Behavior],\"*\",Data_Entry[Month Name],$C$1,Data_Entry[Year],$D$1)","v":0},{"$f":"COUNTIFS(Data_Entry[Time],A41,Data_Entry[Minor Behavior],\"*\",Data_Entry[Year],$D$1)","v":0}]
[{"$f":"PermList!E42","v":"17:00:00"},{"$f":"COUNTIFS(Data_Entry[Time],A42,Data_Entry[Minor Behavior],\"*\",Data_Entry[Month Name],$C$1,Data_Entry[Year],$D$1)","v":0},{"$f":"COUNTIFS(Data_Entry[Time],A42,Data_Entry[Minor Behavior],\"*\",Data_Entry[Year],$D$1)","v":0}]
[{"$f":"PermList!E43","v":"17:15:00"},{"$f":"COUNTIFS(Data_Entry[Time],A43,Data_Entry[Minor Behavior],\"*\",Data_Entry[Month Name],$C$1,Data_Entry[Year],$D$1)","v":0},{"$f":"COUNTIFS(Data_Entry[Time],A43,Data_Entry[Minor Behavior],\"*\",Data_Entry[Year],$D$1)","v":0}]
[{"$f":"PermList!E44","v":"17:30:00"},{"$f":"COUNTIFS(Data_Entry[Time],A44,Data_Entry[Minor Behavior],\"*\",Data_Entry[Month Name],$C$1,Data_Entry[Year],$D$1)","v":0},{"$f":"COUNTIFS(Data_Entry[Time],A44,Data_Entry[Minor Behavior],\"*\",Data_Entry[Year],$D$1)","v":0}]
[{"$f":"PermList!E45","v":"17:45:00"},{"$f":"COUNTIFS(Data_Entry[Time],A45,Data_Entry[Minor Behavior],\"*\",Data_Entry[Month Name],$C$1,Data_Entry[Year],$D$1)","v":0},{"$f":"COUNTIFS(Data_Entry[Time],A45,Data_Entry[Minor Behavior],\"*\",Data_Entry[Year],$D$1)","v":0}]
[{"$f":"PermList!E46","v":"18:00:00"},{"$f":"COUNTIFS(Data_Entry[Time],A46,Data_Entry[Minor Behavior],\"*\",Data_Entry[Month Name],$C$1,Data_Entry[Year],$D$1)","v":0},{"$f":"COUNTIFS(Data_Entry[Time],A46,Data_Entry[Minor Behavior],\"*\",Data_Entry[Year],$D$1)","v":0}]

{"sheet":"MinorsStudent","index":19,"n_rows":11,"n_cols":3,"rows_kept":11,"cut":false,"hidden":false,"merged":[[0,0,0,2]]}
["Look up Student names by entering student number in cell, below."]
[]
["Student Number","First  Name","Last Name"]
[111111,{"$f":"VLOOKUP($A$4,StudentDatabase!A:L,3,FALSE)","v":{"$error":"#N/A"}},{"$f":"VLOOKUP($A$4,StudentDatabase!A:L,2,FALSE)","v":{"$error":"#N/A"}}]
[]
[]
[]
[]
["Row Labels","Count of Minor Behavior"]
["(blank)"]
["Grand Total"]

{"sheet":"MinorsMotivation","index":20,"n_rows":25,"n_cols":8,"rows_kept":25,"cut":false,"hidden":false,"merged":[]}
["Motivation","Count",{"$f":"Menu!$I$18","v":"February"},{"$f":"Menu!I16","v":"2022"},"Minors Possible Motivation"]
[{"$f":"PermList!J2","v":"Gain Peer Attention"},{"$f":"COUNTIFS(Data_Entry[Possible Motivation],A2,Data_Entry[Minor Behavior],\"*\",Data_Entry[Month Name],$C$1,Data_Entry[Year],$D$1)","v":0},{"$f":"COUNTIFS(Data_Entry[Possible Motivation],A2,Data_Entry[Minor Behavior],\"*\",Data_Entry[Year],$D$1)","v":0}]
[{"$f":"PermList!J3","v":"Gain Adult Attention"},{"$f":"COUNTIFS(Data_Entry[Possible Motivation],A3,Data_Entry[Minor Behavior],\"*\",Data_Entry[Month Name],$C$1,Data_Entry[Year],$D$1)","v":0},{"$f":"COUNTIFS(Data_Entry[Possible Motivation],A3,Data_Entry[Minor Behavior],\"*\",Data_Entry[Year],$D$1)","v":0}]
[{"$f":"PermList!J4","v":"Gain Object"},{"$f":"COUNTIFS(Data_Entry[Possible Motivation],A4,Data_Entry[Minor Behavior],\"*\",Data_Entry[Month Name],$C$1,Data_Entry[Year],$D$1)","v":0},{"$f":"COUNTIFS(Data_Entry[Possible Motivation],A4,Data_Entry[Minor Behavior],\"*\",Data_Entry[Year],$D$1)","v":0}]
[{"$f":"PermList!J5","v":"Avoid Peer Attention"},{"$f":"COUNTIFS(Data_Entry[Possible Motivation],A5,Data_Entry[Minor Behavior],\"*\",Data_Entry[Month Name],$C$1,Data_Entry[Year],$D$1)","v":0},{"$f":"COUNTIFS(Data_Entry[Possible Motivation],A5,Data_Entry[Minor Behavior],\"*\",Data_Entry[Year],$D$1)","v":0}]
[{"$f":"PermList!J6","v":"Avoid Adult Attention"},{"$f":"COUNTIFS(Data_Entry[Possible Motivation],A6,Data_Entry[Minor Behavior],\"*\",Data_Entry[Month Name],$C$1,Data_Entry[Year],$D$1)","v":0},{"$f":"COUNTIFS(Data_Entry[Possible Motivation],A6,Data_Entry[Minor Behavior],\"*\",Data_Entry[Year],$D$1)","v":0}]
[{"$f":"PermList!J7","v":"Avoid Activity"},{"$f":"COUNTIFS(Data_Entry[Possible Motivation],A7,Data_Entry[Minor Behavior],\"*\",Data_Entry[Month Name],$C$1,Data_Entry[Year],$D$1)","v":0},{"$f":"COUNTIFS(Data_Entry[Possible Motivation],A7,Data_Entry[Minor Behavior],\"*\",Data_Entry[Year],$D$1)","v":0}]
[]
[]
[]
[]
[]
[]
[]
[]
[]
[]
[]
[]
[]
[]
[]
[]
[]
[null,null,null,null,null,null,"Cumulative Minors by Possible Motivation for ",{"$f":"$D$1","v":"2022"}]

{"sheet":"TotalDaysSusp","index":21,"n_rows":13,"n_cols":6,"rows_kept":13,"cut":false,"hidden":false,"merged":[]}
["Month","Count",{"$f":"Menu!I16","v":"2022"}]
["July",{"$f":"SUMIFS(Data_Entry[Days of Suspension],Data_Entry[Month Name],A2,Data_Entry[Year],$C$1)","v":0}]
["August",{"$f":"SUMIFS(Data_Entry[Days of Suspension],Data_Entry[Month Name],A3,Data_Entry[Year],$C$1)","v":0}]
["September",{"$f":"SUMIFS(Data_Entry[Days of Suspension],Data_Entry[Month Name],A4,Data_Entry[Year],$C$1)","v":0}]
["October",{"$f":"SUMIFS(Data_Entry[Days of Suspension],Data_Entry[Month Name],A5,Data_Entry[Year],$C$1)","v":0}]
["November",{"$f":"SUMIFS(Data_Entry[Days of Suspension],Data_Entry[Month Name],A6,Data_Entry[Year],$C$1)","v":0}]
["December",{"$f":"SUMIFS(Data_Entry[Days of Suspension],Data_Entry[Month Name],A7,Data_Entry[Year],$C$1)","v":0}]
["January",{"$f":"SUMIFS(Data_Entry[Days of Suspension],Data_Entry[Month Name],A8,Data_Entry[Year],$C$1)","v":0}]
["February",{"$f":"SUMIFS(Data_Entry[Days of Suspension],Data_Entry[Month Name],A9,Data_Entry[Year],$C$1)","v":0},null,null,"Total Days of Supension per Month for",{"$f":"$C$1","v":"2022"}]
["March",{"$f":"SUMIFS(Data_Entry[Days of Suspension],Data_Entry[Month Name],A10,Data_Entry[Year],$C$1)","v":0}]
["April",{"$f":"SUMIFS(Data_Entry[Days of Suspension],Data_Entry[Month Name],A11,Data_Entry[Year],$C$1)","v":0}]
["May",{"$f":"SUMIFS(Data_Entry[Days of Suspension],Data_Entry[Month Name],A12,Data_Entry[Year],$C$1)","v":0}]
["June",{"$f":"SUMIFS(Data_Entry[Days of Suspension],Data_Entry[Month Name],A13,Data_Entry[Year],$C$1)","v":0}]

{"sheet":"DrillDown","index":22,"n_rows":25,"n_cols":1,"rows_kept":25,"cut":false,"hidden":false,"merged":[[0,0,18,7]]}
["Pivot tables are relatively easy to use once you understand how they work. They allow users to filter different types of data, and customize reports. To get started, click on the graph. A table called \"Pivot Table Fields\" will appear. (If it does not appear when you have clicked on the graph, select \"PivotChart Analyze from the menu ribbon, then select \"FieldList\"). \n\nValues: What is being counted; the table defaults to counting the number of majors ODRs.\nAxis Categories: Counts the number of major ODRs by a specific category, like locations. Drag and drop the category that you want to count by into the \"Axis Categories\" Box; The categories will appear on the x axis (bottom of the graph); For example, if you want to see how many ODRs are occurring in different locations in the building, drag and drop \"Locations\" into the \"Axis Categories\" Box.\nSlicers: Slicers appear just under the graph. Slicers are filters that you can use to look at a specific category. Any subcategory in a slicer that you click on will filter out all data for all of the other subcategories in that slicer. For example, if you have locations in the \"Axis Categories,\" you can click on a specific behavior in the \"Major Behavior\" slicer, such as \"Disruption.\" The graph will chart the location where disruption is occurring. To select a slicer, just click on it. The Slicer you select will be the onl.y one that is not greyed out. To remove a slicer, click on the funnel icon with the x beneath it in the upper right hand corner. This will remove all filters in that slicer."]
[]
[]
[]
[]
[]
[]
[]
[]
[]
[]
[]
[]
[]
[]
[]
[]
[]
[]
[]
[]
[]
[]
[]
["Count of Major Behavior"]

{"sheet":"BehaviorStudent","index":23,"n_rows":12,"n_cols":3,"rows_kept":12,"cut":false,"hidden":false,"merged":[[0,0,1,2]]}
["Enter Student Number, below, to  look up student's name"]
[]
["Student Number","First  Name","Last Name"]
[null,{"$f":"VLOOKUP($A$4,StudentDatabase!A:L,3,FALSE)","v":{"$error":"#N/A"}},{"$f":"VLOOKUP($A$4,StudentDatabase!A:L,2,FALSE)","v":{"$error":"#N/A"}}]
[]
[]
[]
[]
[]
["Row Labels","Count of Student_Demographics.Enter a unique student number, below."]
["(blank)"]
["Grand Total"]

{"sheet":"DaysRaceEthnic","index":24,"n_rows":23,"n_cols":9,"rows_kept":23,"cut":false,"hidden":false,"merged":[]}
[null,"Monthly Days Suspended for",{"$f":"Menu!$I$18","v":"February"},{"$f":"Menu!I16","v":"2022"}]
["Race and  Ethnicity & IEP","Monthly Days Suspended"," Cumulative Days Suspended"]
[{"$f":"PermList!C2","v":"Hispanic/Latino"},{"$f":"SUMIFS(Data_Entry[Days of Suspension],Data_Entry[Student_Demographics.Ethnicity],A3,Data_Entry[Month Name],$C$1,Data_Entry[Year],$D$1)","v":0},{"$f":"SUMIFS(Data_Entry[Days of Suspension],Data_Entry[Student_Demographics.Ethnicity],A3,Data_Entry[Year],$D$1)","v":0}]
[{"$f":"PermList!C3","v":"Non-Hispanic/Latino"},{"$f":"SUMIFS(Data_Entry[Days of Suspension],Data_Entry[Student_Demographics.Ethnicity],A4,Data_Entry[Month Name],$C$1,Data_Entry[Year],$D$1)","v":0},{"$f":"SUMIFS(Data_Entry[Days of Suspension],Data_Entry[Student_Demographics.Ethnicity],A4,Data_Entry[Year],$D$1)","v":0}]
[{"$f":"PermList!D2","v":"African American/Black"},{"$f":"SUMIFS(Data_Entry[Days of Suspension],Data_Entry[Student_Demographics.Race],$A5,Data_Entry[Student_Demographics.Ethnicity],$A$4,Data_Entry[Month Name],$C$1,Data_Entry[Year],$D$1)","v":0},{"$f":"SUMIFS(Data_Entry[Days of Suspension],Data_Entry[Student_Demographics.Race],A5,Data_Entry[Student_Demographics.Ethnicity],$A$4,Data_Entry[Year],$D$1)","v":0}]
[{"$f":"PermList!D3","v":"Asian"},{"$f":"SUMIFS(Data_Entry[Days of Suspension],Data_Entry[Student_Demographics.Race],$A6,Data_Entry[Student_Demographics.Ethnicity],$A$4,Data_Entry[Month Name],$C$1,Data_Entry[Year],$D$1)","v":0},{"$f":"SUMIFS(Data_Entry[Days of Suspension],Data_Entry[Student_Demographics.Race],$A6,Data_Entry[Student_Demographics.Ethnicity],$A$4,Data_Entry[Year],$D$1)","v":0}]
[{"$f":"PermList!D4","v":"Native American/Alaskan"},{"$f":"SUMIFS(Data_Entry[Days of Suspension],Data_Entry[Student_Demographics.Race],$A7,Data_Entry[Student_Demographics.Ethnicity],$A$4,Data_Entry[Month Name],$C$1,Data_Entry[Year],$D$1)","v":0},{"$f":"SUMIFS(Data_Entry[Days of Suspension],Data_Entry[Student_Demographics.Race],$A7,Data_Entry[Student_Demographics.Ethnicity],$A$4,Data_Entry[Year],$D$1)","v":0}]
[{"$f":"PermList!D5","v":"Native Hawaiian/Pacific Islander"},{"$f":"SUMIFS(Data_Entry[Days of Suspension],Data_Entry[Student_Demographics.Race],$A8,Data_Entry[Student_Demographics.Ethnicity],$A$4,Data_Entry[Month Name],$C$1,Data_Entry[Year],$D$1)","v":0},{"$f":"SUMIFS(Data_Entry[Days of Suspension],Data_Entry[Student_Demographics.Race],$A8,Data_Entry[Student_Demographics.Ethnicity],$A$4,Data_Entry[Year],$D$1)","v":0}]
[{"$f":"PermList!D6","v":"Multi-Racial"},{"$f":"SUMIFS(Data_Entry[Days of Suspension],Data_Entry[Student_Demographics.Race],$A9,Data_Entry[Student_Demographics.Ethnicity],$A$4,Data_Entry[Month Name],$C$1,Data_Entry[Year],$D$1)","v":0},{"$f":"SUMIFS(Data_Entry[Days of Suspension],Data_Entry[Student_Demographics.Race],$A9,Data_Entry[Student_Demographics.Ethnicity],$A$4,Data_Entry[Year],$D$1)","v":0}]
[{"$f":"PermList!D7","v":"White"},{"$f":"SUMIFS(Data_Entry[Days of Suspension],Data_Entry[Student_Demographics.Race],$A10,Data_Entry[Student_Demographics.Ethnicity],$A$4,Data_Entry[Month Name],$C$1,Data_Entry[Year],$D$1)","v":0},{"$f":"SUMIFS(Data_Entry[Days of Suspension],Data_Entry[Student_Demographics.Race],$A10,Data_Entry[Student_Demographics.Ethnicity],$A$4,Data_Entry[Year],$D$1)","v":0}]
["IEP",{"$f":"SUMIFS(Data_Entry[Days of Suspension],Data_Entry[Student_Demographics.IEP],$A11,Data_Entry[Month Name],$C$1,Data_Entry[Year],$D$1)","v":0},{"$f":"SUMIFS(Data_Entry[Days of Suspension],Data_Entry[Student_Demographics.IEP],$A11,Data_Entry[Year],$D$1)","v":0}]
[]
[]
[]
[]
[]
[]
[]
[]
[]
[]
[]
[null,null,null,null,null,null,null,"Cumulative  Days of  Suspension for ",{"$f":"$D$1","v":"2022"}]

{"sheet":"FluidList","index":25,"n_rows":102,"n_cols":53,"rows_kept":102,"cut":false,"hidden":false,"merged":[[19,42,19,44],[11,32,11,34],[19,32,19,34],[12,52,12,54],[13,52,13,54],[12,40,12,41],[13,40,13,41],[14,40,14,41],[12,50,12,51],[13,50,13,51],[14,50,14,51],[17,40,17,41],[15,50,15,51],[16,50,16,51],[17,50,17,51],[16,40,16,41],[13,32,13,34],[14,32,14,34],[27,2,27,4],[28,2,28,4],[29,2,29,4],[4,2,4,4],[12,2,12,4],[15,2,15,4],[14,2,14,4],[16,2,16,4],[10,2,10,4],[11,2,11,4],[20,2,20,4],[21,2,21,4],[22,2,22,4],[23,2,23,4],[24,2,24,4],[25,2,25,4],[24,0,24,1],[25,0,25,1],[15,0,15,1],[16,0,16,1],[20,0,20,1],[21,0,21,1],[22,0,22,1],[1,2,1,4],[7,2,7,4],[2,2,2,4],[8,2,8,4],[9,2,9,4],[19,22,19,24],[12,20,12,21],[13,20,13,21],[14,20,14,21],[15,20,15,21],[16,20,16,21],[17,20,17,21],[12,30,12,31],[13,30,13,31],[14,30,14,31],[15,30,15,31],[17,30,17,31],[16,30,16,31],[20,32,20,34],[23,0,23,1],[21,22,21,24],[15,22,15,24],[16,22,16,24],[17,22,17,24],[19,2,19,4],[20,22,20,24],[0,49,0,51],[7,22,7,24],[3,22,3,24],[4,22,4,24],[21,32,21,34],[15,32,15,34],[16,32,16,34],[17,32,17,34],[15,40,15,41],[8,32,8,34],[0,12,0,16],[6,22,6,24],[8,22,8,24],[13,22,13,24],[14,22,14,24],[12,22,12,24],[21,52,21,54],[3,52,3,54],[4,52,4,54],[21,42,21,44],[15,42,15,44],[16,42,16,44],[17,42,17,44],[3,42,3,44],[4,42,4,44],[6,52,6,54],[7,52,7,54],[8,52,8,54],[20,42,20,44],[20,52,20,54],[14,52,14,54],[15,52,15,54],[16,52,16,54],[17,52,17,54],[8,42,8,44],[12,42,12,44],[13,42,13,44],[14,42,14,44],[11,52,11,54],[19,52,19,54],[7,32,7,34],[12,32,12,34],[6,42,6,44],[7,42,7,44],[0,19,0,21],[0,29,0,31],[0,39,0,41],[3,32,3,34],[4,32,4,34],[6,32,6,34],[11,22,11,24],[11,42,11,44]]}
[null,null,null,null,null,null,null,null,null,null,null,null,"Note: Undoing School Year reset will cause  you  to lose  data from 5 years out. This cannot be recovered unless you close the spreadsheet without saving.",null,null,null,null,null,null,"School Year",null,null,null,null,null,null,null,null,null,"School Year",null,null,null,null,null,null,null,null,null,"School Year",null,null,null,null,null,null,null,null,null,"School Year"]
[null,null,"School Name",null,null,null,"Staff Number","Staff Member:                 Last name, First Intial (i.e., Dewey, J)",null,"Month","Days in session/ Month",null,null,null,null,null,null,null,null,2019,"/",2020,null,null,null,null,null,null,null,2018,"/",2019,null,null,null,null,null,null,null,2017,"/",2018,null,null,null,null,null,null,null,null,"/"]
[null,null,null,null,null,null,1,null,null,"July"]
[null,null,null,null,null,null,2,null,null,"August",null,null,null,null,null,null,null,"Month","Days in session/ Month",null,null,null,"Student Enrollment",null,null,null,null,"Month","Days in session/ Month",null,null,null,"Student Enrollment",null,null,null,null,"Month","Days in session/ Month",null,null,null,"Student Enrollment",null,null,null,null,"Month","Days in session/ Month",null,null,null,"Student Enrollment"]
[null,null,"School Year",null,null,null,3,null,null,"September",null,null,null,null,null,null,null,"July",null,null,null,null,null,null,null,null,null,"July",null,null,null,null,null,null,null,null,null,"July",null,null,null,null,null,null,null,null,null,"July"]
[null,null,null,"/",null,null,4,null,null,"October",null,null,null,null,null,null,null,"August",null,null,null,null,null,null,null,null,null,"August",null,null,null,null,null,null,null,null,null,"August",null,null,null,null,null,null,null,null,null,"August"]
[null,null,null,null,null,null,5,null,null,"November",null,null,null,null,null,null,null,"September",null,null,null,null,"Enrollment by Ethnicity",null,null,null,null,"September",null,null,null,null,"Enrollment by Ethnicity",null,null,null,null,"September",null,null,null,null,"Enrollment by Ethnicity",null,null,null,null,"September",null,null,null,null,"Enrollment by Ethnicity"]
[null,null,"Student Enrollment",null,null,null,6,null,null,"December",null,null,null,null,null,null,null,"October",null,null,"Hispanic/Latino",null,null,null,null,null,null,"October",null,null,"Hispanic/Latino",null,null,null,null,null,null,"October",null,null,"Hispanic/Latino",null,null,null,null,null,null,"October",null,null,"Hispanic/Latino"]
[null,{"$f":"CONCATENATE(C6,D6,E6)","v":"/"},null,null,null,null,7,null,null,"January",null,null,null,null,null,null,null,"November",null,null,"Non-Hispanic/Latino",null,null,null,null,null,null,"November",null,null,"Non-Hispanic/Latino",null,null,null,null,null,null,"November",null,null,"Non-Hispanic/Latino",null,null,null,null,null,null,"November",null,null,"Non-Hispanic/Latino"]
[null,{"$f":"($C$6-1)&($D$6)&($E$6-1)","v":"-1/-1"},null,null,null,null,8,null,null,"February",null,null,null,null,null,null,null,"December",null,null,null,null,null,null,null,null,null,"December",null,null,null,null,null,null,null,null,null,"December",null,null,null,null,null,null,null,null,null,"December"]
[null,{"$f":"($C$6-2)&($D$6)&($E$6-2)","v":"-2/-2"},null,null,null,null,9,null,null,"March",null,null,null,null,null,null,null,"January",null,null,null,null,null,null,null,null,null,"January",null,null,null,null,null,null,null,null,null,"January",null,null,null,null,null,null,null,null,null,"January"]
[null,{"$f":"($C$6-3)&($D$6)&($E$6-3)","v":"-3/-3"},null,null,null,null,10,null,null,"April",null,null,null,null,null,null,null,"February",null,null,null,null,"Enrollment by Race",null,null,null,null,"February",null,null,null,null,"Enrollment by Race",null,null,null,null,"February",null,null,null,null,"Enrollment by Race",null,null,null,null,"February",null,null,null,null,"Enrollment by Race"]
[null,{"$f":"($C$6-4)&($D$6)&($E$6-4)","v":"-4/-4"},null,null,null,null,11,null,null,"May",null,null,null,null,null,null,null,"March",null,null,"African American/Black",null,null,null,null,null,null,"March",null,null,"African American/Black",null,null,null,null,null,null,"March",null,null,"African American/Black",null,null,null,null,null,null,"March",null,null,"African American/Black"]
[null,null,null,null,null,null,12,null,null,"June",null,null,null,null,null,null,null,"April",null,null,"Asian",null,null,null,null,null,null,"April",null,null,"Asian",null,null,null,null,null,null,"April",null,null,"Asian",null,null,null,null,null,null,"April",null,null,"Asian"]
[null,null,"Enrollment by Ethnicity",null,null,null,13,null,null,null,null,null,null,null,null,null,null,"May",null,null,"Native American/Alaskan",null,null,null,null,null,null,"May",null,null,"Native American/Alaskan",null,null,null,null,null,null,"May",null,null,"Native American/Alaskan",null,null,null,null,null,null,"May",null,null,"Native American/Alaskan"]
["Hispanic/Latino",null,null,null,null,null,14,null,null,null,null,null,null,null,null,null,null,"June",null,null,"Native Hawaiian/Pacific Islander",null,null,null,null,null,null,"June",null,null,"Native Hawaiian/Pacific Islander",null,null,null,null,null,null,"June",null,null,"Native Hawaiian/Pacific Islander",null,null,null,null,null,null,"June",null,null,"Native Hawaiian/Pacific Islander"]
["Non-Hispanic/Latino",null,null,null,null,null,15,null,null,null,null,null,null,null,null,null,null,null,null,null,"Multi-Racial",null,null,null,null,null,null,null,null,null,"Multi-Racial",null,null,null,null,null,null,null,null,null,"Multi-Racial",null,null,null,null,null,null,null,null,null,"Multi-Racial"]
[null,null,null,null,null,null,16,null,null,null,null,null,null,null,null,null,null,null,null,null,"White",null,null,null,null,null,null,null,null,null,"White",null,null,null,null,null,null,null,null,null,"White",null,null,null,null,null,null,null,null,null,"White"]
[null,null,null,null,null,null,17]
[null,null,"Enrollment by Race",null,null,null,18,null,null,null,null,null,null,null,null,null,null,null,null,null,null,null,"Number with IEPs",null,null,null,null,null,null,null,null,null,"Number with IEPs",null,null,null,null,null,null,null,null,null,"Number with IEPs",null,null,null,null,null,null,null,null,null,"Number with IEPs"]
["African American/Black",null,null,null,null,null,19,null,null,null,null,null,null,null,null,null,null,null,null,null,null,"With IEPs",null,null,null,null,null,null,null,null,null,"With IEPs",null,null,null,null,null,null,null,null,null,"With IEPs",null,null,null,null,null,null,null,null,null,"With IEPs"]
["Asian",null,null,null,null,null,20,null,null,null,null,null,null,null,null,null,null,null,null,null,null,"Without IEPs",{"$f":"W5-W21","v":0},null,null,null,null,null,null,null,null,"Without IEPs",{"$f":"AG5-AG21","v":0},null,null,null,null,null,null,null,null,"Without IEPs",{"$f":"AQ5-AQ21","v":0},null,null,null,null,null,null,null,null,"Without IEPs",{"$f":"BA5-BA21","v":0}]
["Native American/Alaskan",null,null,null,null,null,21]
["Native Hawaiian/Pacific Islander",null,null,null,null,null,22]
["Multi-Racial",null,null,null,null,null,23,null,null,null,null,null,null,null,null,null,null,null,1]
["White",null,null,null,null,null,24]
[null,null,null,null,null,null,25]
[null,null,"Number with IEPs",null,null,null,26]
[null,"With IEPs",null,null,null,null,27]
[null,"Without IEPs",{"$f":"C9-C29","v":0},null,null,null,28]
[null,null,null,null,null,null,29]
[null,null,null,null,null,null,30]
[null,null,null,null,null,null,31]
[null,null,null,null,null,null,32]
[null,null,null,null,null,null,33]
[null,null,null,null,null,null,34]
[null,null,null,null,null,null,35]
[null,null,null,null,null,null,36]
[null,null,null,null,null,null,37]
[null,null,null,null,null,null,38]
[null,null,null,null,null,null,39]
[null,null,null,null,null,null,40]
[null,null,null,null,null,null,41]
[null,null,null,null,null,null,42]
[null,null,null,null,null,null,43]
[null,null,null,null,null,null,44]
[null,null,null,null,null,null,45]
[null,null,null,null,null,null,46]
[null,null,null,null,null,null,47]
[null,null,null,null,null,null,48]
[null,null,null,null,null,null,49]
[null,null,null,null,null,null,50]
[null,null,null,null,null,null,51]
[null,null,null,null,null,null,52]
[null,null,null,null,null,null,53]
[null,null,null,null,null,null,54]
[null,null,null,null,null,null,55]
[null,null,null,null,null,null,56]
[null,null,null,null,null,null,57]
[null,null,null,null,null,null,58]
[null,null,null,null,null,null,59]
[null,null,null,null,null,null,60]
[null,null,null,null,null,null,61]
[null,null,null,null,null,null,62]
[null,null,null,null,null,null,63]
[null,null,null,null,null,null,64]
[null,null,null,null,null,null,65]
[null,null,null,null,null,null,66]
[null,null,null,null,null,null,67]
[null,null,null,null,null,null,68]
[null,null,null,null,null,null,69]
[null,null,null,null,null,null,70]
[null,null,null,null,null,null,71]
[null,null,null,null,null,null,72]
[null,null,null,null,null,null,73]
[null,null,null,null,null,null,74]
[null,null,null,null,null,null,75]
[null,null,null,null,null,null,76]
[null,null,null,null,null,null,77]
[null,null,null,null,null,null,78]
[null,null,null,null,null,null,79]
[null,null,null,null,null,null,80]
[null,null,null,null,null,null,81]
[null,null,null,null,null,null,82]
[null,null,null,null,null,null,83]
[null,null,null,null,null,null,84]
[null,null,null,null,null,null,85]
[null,null,null,null,null,null,86]
[null,null,null,null,null,null,87]
[null,null,null,null,null,null,88]
[null,null,null,null,null,null,89]
[null,null,null,null,null,null,90]
[null,null,null,null,null,null,91]
[null,null,null,null,null,null,92]
[null,null,null,null,null,null,93]
[null,null,null,null,null,null,94]
[null,null,null,null,null,null,95]
[null,null,null,null,null,null,96]
[null,null,null,null,null,null,97]
[null,null,null,null,null,null,98]
[null,null,null,null,null,null,99]
[null,null,null,null,null,null,100]

{"sheet":"TablesPerDayRace","index":26,"n_rows":37,"n_cols":28,"rows_kept":37,"cut":false,"hidden":false,"merged":[[1,7,2,7],[1,9,2,9],[1,2,2,2],[1,3,2,3],[1,4,2,4],[1,5,2,5],[1,6,2,6],[1,8,2,8]]}
[]
[null,null,{"$f":"PermList!D2","v":"African American/Black"},{"$f":"PermList!D3","v":"Asian"},{"$f":"PermList!D4","v":"Native American/Alaskan"},{"$f":"PermList!D5","v":"Native Hawaiian/Pacific Islander"},{"$f":"PermList!D6","v":"Multi-Racial"},{"$f":"PermList!D7","v":"White"},{"$f":"PermList!C2","v":"Hispanic/Latino"},{"$f":"PermList!C3","v":"Non-Hispanic/Latino"},null,null,null,null,null,"Year",null,{"$f":"PermList!D2","v":"African American/Black"},{"$f":"PermList!$D3","v":"Asian"},{"$f":"PermList!D4","v":"Native American/Alaskan"},{"$f":"PermList!$D5","v":"Native Hawaiian/Pacific Islander"},{"$f":"PermList!D6","v":"Multi-Racial"},{"$f":"PermList!$D7","v":"White"},{"$f":"PermList!C2","v":"Hispanic/Latino"},{"$f":"PermList!U2","v":"IEP"},{"$f":"PermList!U3","v":"Non-IEP"},{"$f":"PermList!C3","v":"Non-Hispanic/Latino"},"Sum"]
[null,null,null,null,null,null,null,null,null,null,null,null,null,null,null,{"$f":"FluidList!$AZ$2","v":0},"Count",{"$f":"SUMIFS(Data_Entry[At Least 1 ODR for Year],Data_Entry[Student_Demographics.Race],R$2,Data_Entry[Student_Demographics.Ethnicity],$AA$2,Data_Entry[Year],$P3)","v":0},{"$f":"SUMIFS(Data_Entry[At Least 1 ODR for Year],Data_Entry[Student_Demographics.Race],S$2,Data_Entry[Student_Demographics.Ethnicity],$AA$2,Data_Entry[Year],$P3)","v":0},{"$f":"SUMIFS(Data_Entry[At Least 1 ODR for Year],Data_Entry[Student_Demographics.Race],T$2,Data_Entry[Student_Demographics.Ethnicity],$AA$2,Data_Entry[Year],$P3)","v":0},{"$f":"SUMIFS(Data_Entry[At Least 1 ODR for Year],Data_Entry[Student_Demographics.Race],U$2,Data_Entry[Student_Demographics.Ethnicity],$AA$2,Data_Entry[Year],$P3)","v":0},{"$f":"SUMIFS(Data_Entry[At Least 1 ODR for Year],Data_Entry[Student_Demographics.Race],V$2,Data_Entry[Student_Demographics.Ethnicity],$AA$2,Data_Entry[Year],$P3)","v":0},{"$f":"SUMIFS(Data_Entry[At Least 1 ODR for Year],Data_Entry[Student_Demographics.Race],W$2,Data_Entry[Student_Demographics.Ethnicity],$AA$2,Data_Entry[Year],$P3)","v":0},{"$f":"SUMIFS(Data_Entry[At Least 1 ODR for Year],Data_Entry[Student_Demographics.Ethnicity],X$2,Data_Entry[Year],$P3)","v":0},{"$f":"SUMIFS(Data_Entry[At Least 1 ODR for Year],Data_Entry[Student_Demographics.IEP],Y$2,Data_Entry[Year],$P3)","v":0},{"$f":"SUMIFS(Data_Entry[At Least 1 ODR for Year],Data_Entry[Student_Demographics.IEP],Z$2,Data_Entry[Year],$P3)","v":0},null,{"$f":"SUM(R3:X3)","v":0}]
[null,"Percentage of ODR's",{"$f":"(COUNTIFS(Data_Entry[Student_Demographics.Race],C2,Data_Entry[Student_Demographics.Ethnicity],$J$2,Data_Entry[Major Behavior],\"*\",Data_Entry[Year],$B$37))/(COUNTIFS(Data_Entry[Major Behavior],\"*\",Data_Entry[Year],$B$37))","v":{"$error":"#DIV/0!"}},{"$f":"(COUNTIFS(Data_Entry[Student_Demographics.Race],D2,Data_Entry[Student_Demographics.Ethnicity],$J$2,Data_Entry[Major Behavior],\"*\",Data_Entry[Year],$B$37))/(COUNTIFS(Data_Entry[Major Behavior],\"*\",Data_Entry[Year],$B$37))","v":{"$error":"#DIV/0!"}},{"$f":"(COUNTIFS(Data_Entry[Student_Demographics.Race],E2,Data_Entry[Student_Demographics.Ethnicity],$J$2,Data_Entry[Major Behavior],\"*\",Data_Entry[Year],$B$37))/(COUNTIFS(Data_Entry[Major Behavior],\"*\",Data_Entry[Year],$B$37))","v":{"$error":"#DIV/0!"}},{"$f":"(COUNTIFS(Data_Entry[Student_Demographics.Race],F2,Data_Entry[Student_Demographics.Ethnicity],$J$2,Data_Entry[Major Behavior],\"*\",Data_Entry[Year],$B$37))/(COUNTIFS(Data_Entry[Major Behavior],\"*\",Data_Entry[Year],$B$37))","v":{"$error":"#DIV/0!"}},{"$f":"(COUNTIFS(Data_Entry[Student_Demographics.Race],G2,Data_Entry[Student_Demographics.Ethnicity],$J$2,Data_Entry[Major Behavior],\"*\",Data_Entry[Year],$B$37))/(COUNTIFS(Data_Entry[Major Behavior],\"*\",Data_Entry[Year],$B$37))","v":{"$error":"#DIV/0!"}},{"$f":"(COUNTIFS(Data_Entry[Student_Demographics.Race],H2,Data_Entry[Student_Demographics.Ethnicity],$J$2,Data_Entry[Major Behavior],\"*\",Data_Entry[Year],$B$37))/(COUNTIFS(Data_Entry[Major Behavior],\"*\",Data_Entry[Year],$B$37))","v":{"$error":"#DIV/0!"}},{"$f":"COUNTIFS(Data_Entry[Student_Demographics.Ethnicity],I2,Data_Entry[Major Behavior],\"*\",Data_Entry[Year],$B$37)/COUNTIFS(Data_Entry[Major Behavior],\"*\",Data_Entry[Year],$B$37)","v":{"$error":"#DIV/0!"}},{"$f":"COUNTIFS(Data_Entry[Student_Demographics.Ethnicity],J2,Data_Entry[Major Behavior],\"*\",Data_Entry[Year],$B$37)/COUNTIFS(Data_Entry[Major Behavior],\"*\",Data_Entry[Year],$B$37)","v":{"$error":"#DIV/0!"}},{"$f":"SUM(C4:I4)","v":{"$error":"#DIV/0!"}},null,null,null,null,{"$f":"FluidList!$AZ$2","v":0},"Enrollment",{"$f":"FluidList!BA13","v":0},{"$f":"FluidList!BA14","v":0},{"$f":"FluidList!BA15","v":0},{"$f":"FluidList!BA16","v":0},{"$f":"FluidList!BA17","v":0},{"$f":"FluidList!BA18","v":0},{"$f":"FluidList!BA8","v":0},{"$f":"FluidList!BA21","v":0},{"$f":"FluidList!BA22","v":0},null,{"$f":"SUM(R4:W4)","v":0}]
[null,"Percentage of Enrollment",{"$f":"(FluidList!$C21)/SUM(FluidList!$C$9)","v":{"$error":"#DIV/0!"}},{"$f":"(FluidList!$C22)/SUM(FluidList!$C$9)","v":{"$error":"#DIV/0!"}},{"$f":"(FluidList!$C23)/SUM(FluidList!$C$9)","v":{"$error":"#DIV/0!"}},{"$f":"(FluidList!$C24)/SUM(FluidList!$C$9)","v":{"$error":"#DIV/0!"}},{"$f":"(FluidList!$C25)/SUM(FluidList!$C$9)","v":{"$error":"#DIV/0!"}},{"$f":"(FluidList!$C26)/SUM(FluidList!$C$9)","v":{"$error":"#DIV/0!"}},{"$f":"(FluidList!$C16)/SUM(FluidList!C9)","v":{"$error":"#DIV/0!"}},{"$f":"(FluidList!$C17)/SUM(FluidList!C9)","v":{"$error":"#DIV/0!"}},{"$f":"SUM(C5:I5)","v":{"$error":"#DIV/0!"}},null,null,null,null,{"$f":"FluidList!$AZ$2","v":0},"Risk Index",{"$f":"R3/R4","v":{"$error":"#DIV/0!"}},{"$f":"S3/S4","v":{"$error":"#DIV/0!"}},{"$error":"#DIV/0!"},{"$error":"#DIV/0!"},{"$error":"#DIV/0!"},{"$error":"#DIV/0!"},{"$error":"#DIV/0!"},{"$error":"#DIV/0!"},{"$error":"#DIV/0!"}]
[null,null,null,null,null,null,null,null,null,null,null,null,null,null,null,{"$f":"FluidList!$AZ$2","v":0},"Risk Ratio (Comparison: All other groups)",{"$f":"R5/(($AB$3-R3)/($AB$4-R4))","v":{"$error":"#DIV/0!"}},{"$f":"S5/(($AB$3-S3)/($AB$4-S4))","v":{"$error":"#DIV/0!"}},{"$error":"#DIV/0!"},{"$error":"#DIV/0!"},{"$error":"#DIV/0!"},{"$error":"#DIV/0!"},{"$error":"#DIV/0!"},{"$f":"Y5/Z5","v":{"$error":"#DIV/0!"}},{"$f":"Z5/Y5","v":{"$error":"#DIV/0!"}}]
[null,null,null,null,null,null,null,null,null,null,null,null,null,null,null,{"$f":"FluidList!$AZ$2","v":0},"Raw Differential Representation",{"$f":"R4*(R5-(($AB3-R3)/($AB4-R4)))","v":{"$error":"#DIV/0!"}},{"$f":"S4*(S5-(($AB3-S3)/($AB4-S4)))","v":{"$error":"#DIV/0!"}},{"$error":"#DIV/0!"},{"$error":"#DIV/0!"},{"$error":"#DIV/0!"},{"$error":"#DIV/0!"},{"$error":"#DIV/0!"},{"$error":"#DIV/0!"},{"$error":"#DIV/0!"}]
[null,null,null,null,null,null,null,null,null,null,null,null,null,null,null,{"$f":"FluidList!$AP$2","v":2018},"Count",{"$f":"SUMIFS(Data_Entry[At Least 1 ODR for Year],Data_Entry[Student_Demographics.Race],R$2,Data_Entry[Student_Demographics.Ethnicity],$AA$2,Data_Entry[Year],$P8)","v":0},{"$f":"SUMIFS(Data_Entry[At Least 1 ODR for Year],Data_Entry[Student_Demographics.Race],S$2,Data_Entry[Student_Demographics.Ethnicity],$AA$2,Data_Entry[Year],$P8)","v":0},{"$f":"SUMIFS(Data_Entry[At Least 1 ODR for Year],Data_Entry[Student_Demographics.Race],T$2,Data_Entry[Student_Demographics.Ethnicity],$AA$2,Data_Entry[Year],$P8)","v":0},{"$f":"SUMIFS(Data_Entry[At Least 1 ODR for Year],Data_Entry[Student_Demographics.Race],U$2,Data_Entry[Student_Demographics.Ethnicity],$AA$2,Data_Entry[Year],$P8)","v":0},{"$f":"SUMIFS(Data_Entry[At Least 1 ODR for Year],Data_Entry[Student_Demographics.Race],V$2,Data_Entry[Student_Demographics.Ethnicity],$AA$2,Data_Entry[Year],$P8)","v":0},{"$f":"SUMIFS(Data_Entry[At Least 1 ODR for Year],Data_Entry[Student_Demographics.Race],W$2,Data_Entry[Student_Demographics.Ethnicity],$AA$2,Data_Entry[Year],$P8)","v":0},{"$f":"SUMIFS(Data_Entry[At Least 1 ODR for Year],Data_Entry[Student_Demographics.Ethnicity],X$2,Data_Entry[Year],$P8)","v":0},{"$f":"SUMIFS(Data_Entry[At Least 1 ODR for Year],Data_Entry[Student_Demographics.IEP],Y$2,Data_Entry[Year],$P8)","v":0},{"$f":"SUMIFS(Data_Entry[At Least 1 ODR for Year],Data_Entry[Student_Demographics.IEP],Z$2,Data_Entry[Year],$P8)","v":0},null,{"$f":"SUM(R8:X8)","v":0}]
[null,null,null,null,null,null,null,null,null,null,null,null,null,null,null,{"$f":"FluidList!$AP$2","v":2018},"Enrollment",{"$f":"FluidList!AQ13","v":0},{"$f":"FluidList!AQ14","v":0},{"$f":"FluidList!AQ15","v":0},{"$f":"FluidList!AQ16","v":0},{"$f":"FluidList!AQ17","v":0},{"$f":"FluidList!AQ18","v":0},{"$f":"FluidList!AQ8","v":0},{"$f":"FluidList!AQ21","v":0},{"$f":"FluidList!AQ22","v":0},null,{"$f":"SUM(R9:W9)","v":0}]
[null,null,null,null,null,null,null,null,null,null,null,null,null,null,null,{"$f":"FluidList!$AP$2","v":2018},"Risk Index",{"$f":"R8/R9","v":{"$error":"#DIV/0!"}},{"$f":"S8/S9","v":{"$error":"#DIV/0!"}},{"$error":"#DIV/0!"},{"$error":"#DIV/0!"},{"$error":"#DIV/0!"},{"$error":"#DIV/0!"},{"$error":"#DIV/0!"},{"$error":"#DIV/0!"},{"$error":"#DIV/0!"}]
[null,null,null,null,null,null,null,null,null,null,null,null,null,null,null,{"$f":"FluidList!$AP$2","v":2018},"Risk Ratio (Comparison: All other groups)",{"$f":"R10/(($AB$8-R8)/($AB$9-R9))","v":{"$error":"#DIV/0!"}},{"$f":"S10/(($AB$8-S8)/($AB$9-S9))","v":{"$error":"#DIV/0!"}},{"$error":"#DIV/0!"},{"$error":"#DIV/0!"},{"$error":"#DIV/0!"},{"$error":"#DIV/0!"},{"$error":"#DIV/0!"},{"$f":"Y10/Z10","v":{"$error":"#DIV/0!"}},{"$f":"Z10/Y10","v":{"$error":"#DIV/0!"}}]
[null,null,null,null,null,null,null,null,null,null,null,null,null,null,null,{"$f":"FluidList!$AP$2","v":2018},"Raw Differential Representation",{"$f":"R9*(R10-(($AB8-R8)/($AB9-R9)))","v":{"$error":"#DIV/0!"}},{"$f":"S9*(S10-(($AB8-S8)/($AB9-S9)))","v":{"$error":"#DIV/0!"}},{"$error":"#DIV/0!"},{"$error":"#DIV/0!"},{"$error":"#DIV/0!"},{"$error":"#DIV/0!"},{"$error":"#DIV/0!"},{"$error":"#DIV/0!"},{"$error":"#DIV/0!"}]
[null,null,null,null,null,null,null,null,null,null,null,null,null,null,null,{"$f":"FluidList!$AF$2","v":2019},"Count",{"$f":"SUMIFS(Data_Entry[At Least 1 ODR for Year],Data_Entry[Student_Demographics.Race],R$2,Data_Entry[Student_Demographics.Ethnicity],$AA$2,Data_Entry[Year],$P13)","v":0},{"$f":"SUMIFS(Data_Entry[At Least 1 ODR for Year],Data_Entry[Student_Demographics.Race],S$2,Data_Entry[Student_Demographics.Ethnicity],$AA$2,Data_Entry[Year],$P13)","v":0},{"$f":"SUMIFS(Data_Entry[At Least 1 ODR for Year],Data_Entry[Student_Demographics.Race],T$2,Data_Entry[Student_Demographics.Ethnicity],$AA$2,Data_Entry[Year],$P13)","v":0},{"$f":"SUMIFS(Data_Entry[At Least 1 ODR for Year],Data_Entry[Student_Demographics.Race],U$2,Data_Entry[Student_Demographics.Ethnicity],$AA$2,Data_Entry[Year],$P13)","v":0},{"$f":"SUMIFS(Data_Entry[At Least 1 ODR for Year],Data_Entry[Student_Demographics.Race],V$2,Data_Entry[Student_Demographics.Ethnicity],$AA$2,Data_Entry[Year],$P13)","v":0},{"$f":"SUMIFS(Data_Entry[At Least 1 ODR for Year],Data_Entry[Student_Demographics.Race],W$2,Data_Entry[Student_Demographics.Ethnicity],$AA$2,Data_Entry[Year],$P13)","v":0},{"$f":"SUMIFS(Data_Entry[At Least 1 ODR for Year],Data_Entry[Student_Demographics.Ethnicity],X$2,Data_Entry[Year],$P13)","v":0},{"$f":"SUMIFS(Data_Entry[At Least 1 ODR for Year],Data_Entry[Student_Demographics.IEP],Y$2,Data_Entry[Year],$P13)","v":0},{"$f":"SUMIFS(Data_Entry[At Least 1 ODR for Year],Data_Entry[Student_Demographics.IEP],Z$2,Data_Entry[Year],$P13)","v":0},null,{"$f":"SUM(R13:X13)","v":0}]
[null,null,null,null,null,null,null,null,null,null,null,null,null,null,null,{"$f":"FluidList!$AF$2","v":2019},"Enrollment",{"$f":"FluidList!AG13","v":0},{"$f":"FluidList!AG14","v":0},{"$f":"FluidList!AG15","v":0},{"$f":"FluidList!AG16","v":0},{"$f":"FluidList!AG17","v":0},{"$f":"FluidList!AG18","v":0},{"$f":"FluidList!AG8","v":0},{"$f":"FluidList!AG21","v":0},{"$f":"FluidList!AG22","v":0},null,{"$f":"SUM(R14:W14)","v":0}]
[null,null,null,null,null,null,null,null,null,null,null,null,null,null,null,{"$f":"FluidList!$AF$2","v":2019},"Risk Index",{"$f":"R13/R14","v":{"$error":"#DIV/0!"}},{"$f":"S13/S14","v":{"$error":"#DIV/0!"}},{"$error":"#DIV/0!"},{"$error":"#DIV/0!"},{"$error":"#DIV/0!"},{"$error":"#DIV/0!"},{"$error":"#DIV/0!"},{"$error":"#DIV/0!"},{"$error":"#DIV/0!"}]
[null,null,null,null,null,null,null,null,null,null,null,null,null,null,null,{"$f":"FluidList!$AF$2","v":2019},"Risk Ratio (Comparison: All other groups)",{"$f":"R15/(($AB$13-R13)/($AB$14-R14))","v":{"$error":"#DIV/0!"}},{"$f":"S15/(($AB$13-S13)/($AB$14-S14))","v":{"$error":"#DIV/0!"}},{"$error":"#DIV/0!"},{"$error":"#DIV/0!"},{"$error":"#DIV/0!"},{"$error":"#DIV/0!"},{"$error":"#DIV/0!"},{"$f":"Y15/Z15","v":{"$error":"#DIV/0!"}},{"$f":"Z15/Y15","v":{"$error":"#DIV/0!"}}]
[null,null,null,null,null,null,null,null,null,null,null,null,null,null,null,{"$f":"FluidList!$AF$2","v":2019},"Raw Differential Representation",{"$f":"R14*(R15-(($AB13-R13)/($AB14-R14)))","v":{"$error":"#DIV/0!"}},{"$f":"S14*(S15-(($AB13-S13)/($AB14-S14)))","v":{"$error":"#DIV/0!"}},{"$error":"#DIV/0!"},{"$error":"#DIV/0!"},{"$error":"#DIV/0!"},{"$error":"#DIV/0!"},{"$error":"#DIV/0!"},{"$error":"#DIV/0!"},{"$error":"#DIV/0!"}]
[null,null,null,null,null,null,null,null,null,null,null,null,null,null,null,{"$f":"FluidList!$V$2","v":2020},"Count",{"$f":"SUMIFS(Data_Entry[At Least 1 ODR for Year],Data_Entry[Student_Demographics.Race],R$2,Data_Entry[Student_Demographics.Ethnicity],$AA$2,Data_Entry[Year],$P18)","v":0},{"$f":"SUMIFS(Data_Entry[At Least 1 ODR for Year],Data_Entry[Student_Demographics.Race],S$2,Data_Entry[Student_Demographics.Ethnicity],$AA$2,Data_Entry[Year],$P18)","v":0},{"$f":"SUMIFS(Data_Entry[At Least 1 ODR for Year],Data_Entry[Student_Demographics.Race],T$2,Data_Entry[Student_Demographics.Ethnicity],$AA$2,Data_Entry[Year],$P18)","v":0},{"$f":"SUMIFS(Data_Entry[At Least 1 ODR for Year],Data_Entry[Student_Demographics.Race],U$2,Data_Entry[Student_Demographics.Ethnicity],$AA$2,Data_Entry[Year],$P18)","v":0},{"$f":"SUMIFS(Data_Entry[At Least 1 ODR for Year],Data_Entry[Student_Demographics.Race],V$2,Data_Entry[Student_Demographics.Ethnicity],$AA$2,Data_Entry[Year],$P18)","v":0},{"$f":"SUMIFS(Data_Entry[At Least 1 ODR for Year],Data_Entry[Student_Demographics.Race],W$2,Data_Entry[Student_Demographics.Ethnicity],$AA$2,Data_Entry[Year],$P18)","v":0},{"$f":"SUMIFS(Data_Entry[At Least 1 ODR for Year],Data_Entry[Student_Demographics.Ethnicity],X$2,Data_Entry[Year],$P18)","v":0},{"$f":"SUMIFS(Data_Entry[At Least 1 ODR for Year],Data_Entry[Student_Demographics.IEP],Y$2,Data_Entry[Year],$P18)","v":0},{"$f":"SUMIFS(Data_Entry[At Least 1 ODR for Year],Data_Entry[Student_Demographics.IEP],Z$2,Data_Entry[Year],$P18)","v":0},null,{"$f":"SUM(R18:X18)","v":0}]
[null,null,null,null,null,null,null,null,null,null,null,null,null,null,null,{"$f":"FluidList!$V$2","v":2020},"Enrollment",{"$f":"FluidList!W13","v":0},{"$f":"FluidList!W14","v":0},{"$f":"FluidList!W15","v":0},{"$f":"FluidList!W16","v":0},{"$f":"FluidList!W17","v":0},{"$f":"FluidList!W18","v":0},{"$f":"FluidList!W8","v":0},{"$f":"FluidList!W21","v":0},{"$f":"FluidList!W22","v":0},null,{"$f":"SUM(R19:W19)","v":0}]
[null,null,null,null,null,null,null,null,null,null,null,null,null,null,null,{"$f":"FluidList!$V$2","v":2020},"Risk Index",{"$f":"R18/R19","v":{"$error":"#DIV/0!"}},{"$f":"S18/S19","v":{"$error":"#DIV/0!"}},{"$error":"#DIV/0!"},{"$error":"#DIV/0!"},{"$error":"#DIV/0!"},{"$error":"#DIV/0!"},{"$error":"#DIV/0!"},{"$error":"#DIV/0!"},{"$error":"#DIV/0!"}]
[null,null,null,null,null,null,null,null,null,null,null,null,null,null,null,{"$f":"FluidList!$V$2","v":2020},"Risk Ratio (Comparison: All other groups)",{"$f":"R20/(($AB$18-R18)/($AB$19-R19))","v":{"$error":"#DIV/0!"}},{"$f":"S20/(($AB$18-S18)/($AB$19-S19))","v":{"$error":"#DIV/0!"}},{"$error":"#DIV/0!"},{"$error":"#DIV/0!"},{"$error":"#DIV/0!"},{"$error":"#DIV/0!"},{"$error":"#DIV/0!"},{"$f":"Y20/Z20","v":{"$error":"#DIV/0!"}},{"$f":"Z20/Y20","v":{"$error":"#DIV/0!"}}]
[null,null,null,null,null,null,null,null,null,null,null,null,null,null,null,{"$f":"FluidList!$V$2","v":2020},"Raw Differential Representation",{"$f":"R19*(R20-(($AB18-R18)/($AB19-R19)))","v":{"$error":"#DIV/0!"}},{"$f":"S19*(S20-(($AB18-S18)/($AB19-S19)))","v":{"$error":"#DIV/0!"}},{"$error":"#DIV/0!"},{"$error":"#DIV/0!"},{"$error":"#DIV/0!"},{"$error":"#DIV/0!"},{"$error":"#DIV/0!"},{"$error":"#DIV/0!"},{"$error":"#DIV/0!"}]
[null,null,null,null,null,null,null,null,null,null,null,null,null,null,null,{"$f":"FluidList!$E$6","v":0},"Count",{"$f":"SUMIFS(Data_Entry[At Least 1 ODR for Year],Data_Entry[Student_Demographics.Race],R$2,Data_Entry[Student_Demographics.Ethnicity],$AA$2,Data_Entry[Year],$P23)","v":0},{"$f":"SUMIFS(Data_Entry[At Least 1 ODR for Year],Data_Entry[Student_Demographics.Race],S$2,Data_Entry[Student_Demographics.Ethnicity],$AA$2,Data_Entry[Year],$P23)","v":0},{"$f":"SUMIFS(Data_Entry[At Least 1 ODR for Year],Data_Entry[Student_Demographics.Race],T$2,Data_Entry[Student_Demographics.Ethnicity],$AA$2,Data_Entry[Year],$P23)","v":0},{"$f":"SUMIFS(Data_Entry[At Least 1 ODR for Year],Data_Entry[Student_Demographics.Race],U$2,Data_Entry[Student_Demographics.Ethnicity],$AA$2,Data_Entry[Year],$P23)","v":0},{"$f":"SUMIFS(Data_Entry[At Least 1 ODR for Year],Data_Entry[Student_Demographics.Race],V$2,Data_Entry[Student_Demographics.Ethnicity],$AA$2,Data_Entry[Year],$P23)","v":0},{"$f":"SUMIFS(Data_Entry[At Least 1 ODR for Year],Data_Entry[Student_Demographics.Race],W$2,Data_Entry[Student_Demographics.Ethnicity],$AA$2,Data_Entry[Year],$P23)","v":0},{"$f":"SUMIFS(Data_Entry[At Least 1 ODR for Year],Data_Entry[Student_Demographics.Ethnicity],X$2,Data_Entry[Year],$P23)","v":0},{"$f":"SUMIFS(Data_Entry[At Least 1 ODR for Year],Data_Entry[Student_Demographics.IEP],Y$2,Data_Entry[Year],$P23)","v":0},{"$f":"SUMIFS(Data_Entry[At Least 1 ODR for Year],Data_Entry[Student_Demographics.IEP],Z$2,Data_Entry[Year],$P23)","v":0},null,{"$f":"SUM(R23:X23)","v":0}]
[null,null,null,null,null,null,null,null,null,null,null,null,null,null,null,{"$f":"FluidList!$E$6","v":0},"Enrollment",{"$f":"FluidList!C21","v":0},{"$f":"FluidList!C22","v":0},{"$f":"FluidList!C23","v":0},{"$f":"FluidList!C24","v":0},{"$f":"FluidList!C25","v":0},{"$f":"FluidList!C26","v":0},{"$f":"FluidList!C16","v":0},{"$f":"FluidList!C29","v":0},{"$f":"FluidList!C30","v":0},null,{"$f":"SUM(R24:W24)","v":0}]
[null,null,"IEP",null,null,null,null,null,null,null,null,null,null,null,null,{"$f":"FluidList!$E$6","v":0},"Risk Index",{"$f":"R23/R24","v":{"$error":"#DIV/0!"}},{"$f":"S23/S24","v":{"$error":"#DIV/0!"}},{"$error":"#DIV/0!"},{"$error":"#DIV/0!"},{"$error":"#DIV/0!"},{"$error":"#DIV/0!"},{"$error":"#DIV/0!"},{"$error":"#DIV/0!"},{"$error":"#DIV/0!"}]
[null,null,{"$f":"B33","v":0},{"$f":"B34","v":2018},{"$f":"B35","v":2019},{"$f":"B36","v":2020},{"$f":"B37","v":0},null,null,null,null,null,null,null,null,{"$f":"FluidList!$E$6","v":0},"Risk Ratio (Comparison: All other groups)",{"$f":"R25/(($AB$23-R23)/($AB$24-R24))","v":{"$error":"#DIV/0!"}},{"$f":"S25/(($AB$23-S23)/($AB$24-S24))","v":{"$error":"#DIV/0!"}},{"$error":"#DIV/0!"},{"$error":"#DIV/0!"},{"$error":"#DIV/0!"},{"$error":"#DIV/0!"},{"$error":"#DIV/0!"},{"$error":"#DIV/0!"},{"$error":"#DIV/0!"}]
[null,"Percent of Students with IEPs who have ODRs",{"$f":"COUNTIFS(Data_Entry[Student_Demographics.IEP],$C$25,Data_Entry[Major Behavior],\"*\",Data_Entry[Year],C26)/COUNTIFS(Data_Entry[Major Behavior],\"*\",Data_Entry[Year],C26)","v":{"$error":"#DIV/0!"}},{"$f":"COUNTIFS(Data_Entry[Student_Demographics.IEP],$C$25,Data_Entry[Major Behavior],\"*\",Data_Entry[Year],D26)/COUNTIFS(Data_Entry[Major Behavior],\"*\",Data_Entry[Year],D26)","v":{"$error":"#DIV/0!"}},{"$f":"COUNTIFS(Data_Entry[Student_Demographics.IEP],$C$25,Data_Entry[Major Behavior],\"*\",Data_Entry[Year],E26)/COUNTIFS(Data_Entry[Major Behavior],\"*\",Data_Entry[Year],E26)","v":{"$error":"#DIV/0!"}},{"$f":"COUNTIFS(Data_Entry[Student_Demographics.IEP],$C$25,Data_Entry[Major Behavior],\"*\",Data_Entry[Year],F26)/COUNTIFS(Data_Entry[Major Behavior],\"*\",Data_Entry[Year],F26)","v":{"$error":"#DIV/0!"}},{"$f":"COUNTIFS(Data_Entry[Student_Demographics.IEP],$C$25,Data_Entry[Major Behavior],\"*\",Data_Entry[Year],G26)/COUNTIFS(Data_Entry[Major Behavior],\"*\",Data_Entry[Year],G26)","v":{"$error":"#DIV/0!"}},null,null,null,null,null,null,null,null,{"$f":"FluidList!$E$6","v":0},"Raw Differential Representation",{"$f":"R24*(R25-(($AB23-R23)/($AB24-R24)))","v":{"$error":"#DIV/0!"}},{"$f":"S24*(S25-(($AB23-S23)/($AB24-S24)))","v":{"$error":"#DIV/0!"}},{"$error":"#DIV/0!"},{"$error":"#DIV/0!"},{"$error":"#DIV/0!"},{"$error":"#DIV/0!"},{"$error":"#DIV/0!"},{"$error":"#DIV/0!"},{"$error":"#DIV/0!"}]
[null,"Enrollment of Students  with IEPs",{"$f":"(FluidList!$BA$21)/(FluidList!$BA$22)","v":{"$error":"#DIV/0!"}},{"$f":"(FluidList!AQ21)/(FluidList!AQ22)","v":{"$error":"#DIV/0!"}},{"$f":"(FluidList!AG21)/(FluidList!AG22)","v":{"$error":"#DIV/0!"}},{"$f":"(FluidList!W21)/(FluidList!W22)","v":{"$error":"#DIV/0!"}},{"$f":"(FluidList!C29)/(FluidList!C30)","v":{"$error":"#DIV/0!"}}]
["Proportion of Referrals by Race/Ethnicity"]
[null,null,null,null,"Per Day Per Month for  Fiscal Years ",{"$f":"B33","v":0}," through ",{"$f":"B37","v":0}]
[]
[null,"FY","July","August","September","October","November","December","January","February","March","April","May","June"]
[null,{"$f":"FluidList!AZ2","v":0},{"$f":"COUNTIFS(Data_Entry[Month Name],C$32,Data_Entry[Year],$B$33,Data_Entry[Major Behavior],\"*\")/FluidList!$AW5","v":{"$error":"#DIV/0!"}},{"$f":"COUNTIFS(Data_Entry[Month Name],D$32,Data_Entry[Year],$B$33,Data_Entry[Major Behavior],\"*\")/FluidList!$AW6","v":{"$error":"#DIV/0!"}},{"$f":"COUNTIFS(Data_Entry[Month Name],E$32,Data_Entry[Year],$B$33,Data_Entry[Major Behavior],\"*\")/FluidList!$AW7","v":{"$error":"#DIV/0!"}},{"$f":"COUNTIFS(Data_Entry[Month Name],E$32,Data_Entry[Year],$B$33,Data_Entry[Major Behavior],\"*\")/FluidList!$AW8","v":{"$error":"#DIV/0!"}},{"$f":"COUNTIFS(Data_Entry[Month Name],G$32,Data_Entry[Year],$B$33,Data_Entry[Major Behavior],\"*\")/FluidList!$AW9","v":{"$error":"#DIV/0!"}},{"$f":"COUNTIFS(Data_Entry[Month Name],H$32,Data_Entry[Year],$B$33,Data_Entry[Major Behavior],\"*\")/FluidList!$AW10","v":{"$error":"#DIV/0!"}},{"$f":"COUNTIFS(Data_Entry[Month Name],I$32,Data_Entry[Year],$B$33,Data_Entry[Major Behavior],\"*\")/FluidList!$AW11","v":{"$error":"#DIV/0!"}},{"$f":"COUNTIFS(Data_Entry[Month Name],J$32,Data_Entry[Year],$B$33,Data_Entry[Major Behavior],\"*\")/FluidList!$AW12","v":{"$error":"#DIV/0!"}},{"$f":"COUNTIFS(Data_Entry[Month Name],K$32,Data_Entry[Year],$B$33,Data_Entry[Major Behavior],\"*\")/FluidList!$AW13","v":{"$error":"#DIV/0!"}},{"$f":"COUNTIFS(Data_Entry[Month Name],L$32,Data_Entry[Year],$B$33,Data_Entry[Major Behavior],\"*\")/FluidList!$AW14","v":{"$error":"#DIV/0!"}},{"$f":"COUNTIFS(Data_Entry[Month Name],M$32,Data_Entry[Year],$B$33,Data_Entry[Major Behavior],\"*\")/FluidList!$AW15","v":{"$error":"#DIV/0!"}},{"$f":"COUNTIFS(Data_Entry[Month Name],N$32,Data_Entry[Year],$B$33,Data_Entry[Major Behavior],\"*\")/FluidList!$AW16","v":{"$error":"#DIV/0!"}}]
[null,{"$f":"FluidList!AP2","v":2018},{"$f":"COUNTIFS(Data_Entry[Month Name],C$32,Data_Entry[Year],$B$34,Data_Entry[Major Behavior],\"*\")/FluidList!$AM5","v":{"$error":"#DIV/0!"}},{"$f":"COUNTIFS(Data_Entry[Month Name],D$32,Data_Entry[Year],$B$34,Data_Entry[Major Behavior],\"*\")/FluidList!$AM6","v":{"$error":"#DIV/0!"}},{"$f":"COUNTIFS(Data_Entry[Month Name],E$32,Data_Entry[Year],$B$34,Data_Entry[Major Behavior],\"*\")/FluidList!$AM7","v":{"$error":"#DIV/0!"}},{"$f":"COUNTIFS(Data_Entry[Month Name],E$32,Data_Entry[Year],$B$34,Data_Entry[Major Behavior],\"*\")/FluidList!$AM8","v":{"$error":"#DIV/0!"}},{"$f":"COUNTIFS(Data_Entry[Month Name],G$32,Data_Entry[Year],$B$34,Data_Entry[Major Behavior],\"*\")/FluidList!$AM9","v":{"$error":"#DIV/0!"}},{"$f":"COUNTIFS(Data_Entry[Month Name],H$32,Data_Entry[Year],$B$34,Data_Entry[Major Behavior],\"*\")/FluidList!$AM10","v":{"$error":"#DIV/0!"}},{"$f":"COUNTIFS(Data_Entry[Month Name],I$32,Data_Entry[Year],$B$34,Data_Entry[Major Behavior],\"*\")/FluidList!$AM11","v":{"$error":"#DIV/0!"}},{"$f":"COUNTIFS(Data_Entry[Month Name],J$32,Data_Entry[Year],$B$34,Data_Entry[Major Behavior],\"*\")/FluidList!$AM12","v":{"$error":"#DIV/0!"}},{"$f":"COUNTIFS(Data_Entry[Month Name],K$32,Data_Entry[Year],$B$34,Data_Entry[Major Behavior],\"*\")/FluidList!$AM13","v":{"$error":"#DIV/0!"}},{"$f":"COUNTIFS(Data_Entry[Month Name],L$32,Data_Entry[Year],$B$34,Data_Entry[Major Behavior],\"*\")/FluidList!$AM14","v":{"$error":"#DIV/0!"}},{"$f":"COUNTIFS(Data_Entry[Month Name],M$32,Data_Entry[Year],$B$34,Data_Entry[Major Behavior],\"*\")/FluidList!$AM15","v":{"$error":"#DIV/0!"}},{"$f":"COUNTIFS(Data_Entry[Month Name],N$32,Data_Entry[Year],$B$34,Data_Entry[Major Behavior],\"*\")/FluidList!$AM16","v":{"$error":"#DIV/0!"}}]
[null,{"$f":"FluidList!AF2","v":2019},{"$f":"COUNTIFS(Data_Entry[Month Name],C$32,Data_Entry[Year],$B$35,Data_Entry[Major Behavior],\"*\")/FluidList!$AC5","v":{"$error":"#DIV/0!"}},{"$f":"COUNTIFS(Data_Entry[Month Name],D$32,Data_Entry[Year],$B$35,Data_Entry[Major Behavior],\"*\")/FluidList!$AC6","v":{"$error":"#DIV/0!"}},{"$f":"COUNTIFS(Data_Entry[Month Name],E$32,Data_Entry[Year],$B$35,Data_Entry[Major Behavior],\"*\")/FluidList!$AC7","v":{"$error":"#DIV/0!"}},{"$f":"COUNTIFS(Data_Entry[Month Name],E$35,Data_Entry[Year],$B$37,Data_Entry[Major Behavior],\"*\")/FluidList!$AC8","v":{"$error":"#DIV/0!"}},{"$f":"COUNTIFS(Data_Entry[Month Name],G$32,Data_Entry[Year],$B$35,Data_Entry[Major Behavior],\"*\")/FluidList!$AC9","v":{"$error":"#DIV/0!"}},{"$f":"COUNTIFS(Data_Entry[Month Name],H$32,Data_Entry[Year],$B$35,Data_Entry[Major Behavior],\"*\")/FluidList!$AC10","v":{"$error":"#DIV/0!"}},{"$f":"COUNTIFS(Data_Entry[Month Name],I$32,Data_Entry[Year],$B$35,Data_Entry[Major Behavior],\"*\")/FluidList!$AC11","v":{"$error":"#DIV/0!"}},{"$f":"COUNTIFS(Data_Entry[Month Name],J$32,Data_Entry[Year],$B$35,Data_Entry[Major Behavior],\"*\")/FluidList!$AC12","v":{"$error":"#DIV/0!"}},{"$f":"COUNTIFS(Data_Entry[Month Name],K$32,Data_Entry[Year],$B$35,Data_Entry[Major Behavior],\"*\")/FluidList!$AC13","v":{"$error":"#DIV/0!"}},{"$f":"COUNTIFS(Data_Entry[Month Name],L$32,Data_Entry[Year],$B$35,Data_Entry[Major Behavior],\"*\")/FluidList!$AC14","v":{"$error":"#DIV/0!"}},{"$f":"COUNTIFS(Data_Entry[Month Name],M$32,Data_Entry[Year],$B$35,Data_Entry[Major Behavior],\"*\")/FluidList!$AC15","v":{"$error":"#DIV/0!"}},{"$f":"COUNTIFS(Data_Entry[Month Name],N$32,Data_Entry[Year],$B$35,Data_Entry[Major Behavior],\"*\")/FluidList!$AC16","v":{"$error":"#DIV/0!"}}]
[null,{"$f":"FluidList!V2","v":2020},{"$f":"COUNTIFS(Data_Entry[Month Name],C$32,Data_Entry[Year],$B$36,Data_Entry[Major Behavior],\"*\")/FluidList!$S5","v":{"$error":"#DIV/0!"}},{"$f":"COUNTIFS(Data_Entry[Month Name],D$32,Data_Entry[Year],$B$36,Data_Entry[Major Behavior],\"*\")/FluidList!$S6","v":{"$error":"#DIV/0!"}},{"$f":"COUNTIFS(Data_Entry[Month Name],E$32,Data_Entry[Year],$B$36,Data_Entry[Major Behavior],\"*\")/FluidList!$S7","v":{"$error":"#DIV/0!"}},{"$f":"COUNTIFS(Data_Entry[Month Name],E$32,Data_Entry[Year],$B$36,Data_Entry[Major Behavior],\"*\")/FluidList!$S8","v":{"$error":"#DIV/0!"}},{"$f":"COUNTIFS(Data_Entry[Month Name],G$32,Data_Entry[Year],$B$36,Data_Entry[Major Behavior],\"*\")/FluidList!$S9","v":{"$error":"#DIV/0!"}},{"$f":"COUNTIFS(Data_Entry[Month Name],H$32,Data_Entry[Year],$B$36,Data_Entry[Major Behavior],\"*\")/FluidList!$S10","v":{"$error":"#DIV/0!"}},{"$f":"COUNTIFS(Data_Entry[Month Name],I$32,Data_Entry[Year],$B$36,Data_Entry[Major Behavior],\"*\")/FluidList!$S11","v":{"$error":"#DIV/0!"}},{"$f":"COUNTIFS(Data_Entry[Month Name],J$32,Data_Entry[Year],$B$36,Data_Entry[Major Behavior],\"*\")/FluidList!$S12","v":{"$error":"#DIV/0!"}},{"$f":"COUNTIFS(Data_Entry[Month Name],K$32,Data_Entry[Year],$B$36,Data_Entry[Major Behavior],\"*\")/FluidList!$S13","v":{"$error":"#DIV/0!"}},{"$f":"COUNTIFS(Data_Entry[Month Name],L$32,Data_Entry[Year],$B$36,Data_Entry[Major Behavior],\"*\")/FluidList!$S14","v":{"$error":"#DIV/0!"}},{"$f":"COUNTIFS(Data_Entry[Month Name],M$32,Data_Entry[Year],$B$36,Data_Entry[Major Behavior],\"*\")/FluidList!$S15","v":{"$error":"#DIV/0!"}},{"$f":"COUNTIFS(Data_Entry[Month Name],N$32,Data_Entry[Year],$B$36,Data_Entry[Major Behavior],\"*\")/FluidList!$S16","v":{"$error":"#DIV/0!"}}]
[null,{"$f":"FluidList!E6","v":0},{"$f":"COUNTIFS(Data_Entry[Month Name],C$32,Data_Entry[Year],$B$37,Data_Entry[Major Behavior],\"*\")/FluidList!$K3","v":{"$error":"#DIV/0!"}},{"$f":"COUNTIFS(Data_Entry[Month Name],D$32,Data_Entry[Year],$B$37,Data_Entry[Major Behavior],\"*\")/FluidList!$K4","v":{"$error":"#DIV/0!"}},{"$f":"COUNTIFS(Data_Entry[Month Name],E$32,Data_Entry[Year],$B$37,Data_Entry[Major Behavior],\"*\")/FluidList!$K5","v":{"$error":"#DIV/0!"}},{"$f":"COUNTIFS(Data_Entry[Month Name],F$32,Data_Entry[Year],$B$37,Data_Entry[Major Behavior],\"*\")/FluidList!$K6","v":{"$error":"#DIV/0!"}},{"$f":"COUNTIFS(Data_Entry[Month Name],G$32,Data_Entry[Year],$B$37,Data_Entry[Major Behavior],\"*\")/FluidList!$K7","v":{"$error":"#DIV/0!"}},{"$f":"COUNTIFS(Data_Entry[Month Name],H$32,Data_Entry[Year],$B$37,Data_Entry[Major Behavior],\"*\")/FluidList!$K8","v":{"$error":"#DIV/0!"}},{"$f":"COUNTIFS(Data_Entry[Month Name],I$32,Data_Entry[Year],$B$37,Data_Entry[Major Behavior],\"*\")/FluidList!$K9","v":{"$error":"#DIV/0!"}},{"$f":"COUNTIFS(Data_Entry[Month Name],J$32,Data_Entry[Year],$B$37,Data_Entry[Major Behavior],\"*\")/FluidList!$K10","v":{"$error":"#DIV/0!"}},{"$f":"COUNTIFS(Data_Entry[Month Name],K$32,Data_Entry[Year],$B$37,Data_Entry[Major Behavior],\"*\")/FluidList!$K11","v":{"$error":"#DIV/0!"}},{"$f":"COUNTIFS(Data_Entry[Month Name],L$32,Data_Entry[Year],$B$37,Data_Entry[Major Behavior],\"*\")/FluidList!$K12","v":{"$error":"#DIV/0!"}},{"$f":"COUNTIFS(Data_Entry[Month Name],M$32,Data_Entry[Year],$B$37,Data_Entry[Major Behavior],\"*\")/FluidList!$K13","v":{"$error":"#DIV/0!"}},{"$f":"COUNTIFS(Data_Entry[Month Name],N$32,Data_Entry[Year],$B$37,Data_Entry[Major Behavior],\"*\")/FluidList!$K14","v":{"$error":"#DIV/0!"}}]

{"sheet":"MajorsStaff","index":27,"n_rows":102,"n_cols":13,"rows_kept":102,"cut":false,"hidden":false,"merged":[]}
[null,"ODRs Per Month by Staff for",{"$f":"Menu!$I$18","v":"February"},{"$f":"Menu!I16","v":"2022"}]
[null,"Staff Member","Count per Month","Cumulative"]
[1,{"$f":"FluidList!H3","v":0},{"$f":"COUNTIFS(Data_Entry[Referring Staff Member],$A3,Data_Entry[Month Name],$C$1,Data_Entry[Major Behavior],\"*\",Data_Entry[Year],$D$1)","v":0},{"$f":"COUNTIFS(Data_Entry[Referring Staff Member],$A3,Data_Entry[Major Behavior],\"*\",Data_Entry[Year],$D$1)","v":0}]
[2,{"$f":"FluidList!H4","v":0},{"$f":"COUNTIFS(Data_Entry[Referring Staff Member],$A4,Data_Entry[Month Name],$C$1,Data_Entry[Major Behavior],\"*\",Data_Entry[Year],$D$1)","v":0},{"$f":"COUNTIFS(Data_Entry[Referring Staff Member],$A4,Data_Entry[Major Behavior],\"*\",Data_Entry[Year],$D$1)","v":0}]
[3,{"$f":"FluidList!H5","v":0},{"$f":"COUNTIFS(Data_Entry[Referring Staff Member],$A5,Data_Entry[Month Name],$C$1,Data_Entry[Major Behavior],\"*\",Data_Entry[Year],$D$1)","v":0},{"$f":"COUNTIFS(Data_Entry[Referring Staff Member],$A5,Data_Entry[Major Behavior],\"*\",Data_Entry[Year],$D$1)","v":0}]
[4,{"$f":"FluidList!H6","v":0},{"$f":"COUNTIFS(Data_Entry[Referring Staff Member],$A6,Data_Entry[Month Name],$C$1,Data_Entry[Major Behavior],\"*\",Data_Entry[Year],$D$1)","v":0},{"$f":"COUNTIFS(Data_Entry[Referring Staff Member],$A6,Data_Entry[Major Behavior],\"*\",Data_Entry[Year],$D$1)","v":0}]
[5,{"$f":"FluidList!H7","v":0},{"$f":"COUNTIFS(Data_Entry[Referring Staff Member],$A7,Data_Entry[Month Name],$C$1,Data_Entry[Major Behavior],\"*\",Data_Entry[Year],$D$1)","v":0},{"$f":"COUNTIFS(Data_Entry[Referring Staff Member],$A7,Data_Entry[Major Behavior],\"*\",Data_Entry[Year],$D$1)","v":0}]
[6,{"$f":"FluidList!H8","v":0},{"$f":"COUNTIFS(Data_Entry[Referring Staff Member],$A8,Data_Entry[Month Name],$C$1,Data_Entry[Major Behavior],\"*\",Data_Entry[Year],$D$1)","v":0},{"$f":"COUNTIFS(Data_Entry[Referring Staff Member],$A8,Data_Entry[Major Behavior],\"*\",Data_Entry[Year],$D$1)","v":0}]
[7,{"$f":"FluidList!H9","v":0},{"$f":"COUNTIFS(Data_Entry[Referring Staff Member],$A9,Data_Entry[Month Name],$C$1,Data_Entry[Major Behavior],\"*\",Data_Entry[Year],$D$1)","v":0},{"$f":"COUNTIFS(Data_Entry[Referring Staff Member],$A9,Data_Entry[Major Behavior],\"*\",Data_Entry[Year],$D$1)","v":0}]
[8,{"$f":"FluidList!H10","v":0},{"$f":"COUNTIFS(Data_Entry[Referring Staff Member],$A10,Data_Entry[Month Name],$C$1,Data_Entry[Major Behavior],\"*\",Data_Entry[Year],$D$1)","v":0},{"$f":"COUNTIFS(Data_Entry[Referring Staff Member],$A10,Data_Entry[Major Behavior],\"*\",Data_Entry[Year],$D$1)","v":0}]
[9,{"$f":"FluidList!H11","v":0},{"$f":"COUNTIFS(Data_Entry[Referring Staff Member],$A11,Data_Entry[Month Name],$C$1,Data_Entry[Major Behavior],\"*\",Data_Entry[Year],$D$1)","v":0},{"$f":"COUNTIFS(Data_Entry[Referring Staff Member],$A11,Data_Entry[Major Behavior],\"*\",Data_Entry[Year],$D$1)","v":0}]
[10,{"$f":"FluidList!H12","v":0},{"$f":"COUNTIFS(Data_Entry[Referring Staff Member],$A12,Data_Entry[Month Name],$C$1,Data_Entry[Major Behavior],\"*\",Data_Entry[Year],$D$1)","v":0},{"$f":"COUNTIFS(Data_Entry[Referring Staff Member],$A12,Data_Entry[Major Behavior],\"*\",Data_Entry[Year],$D$1)","v":0}]
[11,{"$f":"FluidList!H13","v":0},{"$f":"COUNTIFS(Data_Entry[Referring Staff Member],$A13,Data_Entry[Month Name],$C$1,Data_Entry[Major Behavior],\"*\",Data_Entry[Year],$D$1)","v":0},{"$f":"COUNTIFS(Data_Entry[Referring Staff Member],$A13,Data_Entry[Major Behavior],\"*\",Data_Entry[Year],$D$1)","v":0}]
[12,{"$f":"FluidList!H14","v":0},{"$f":"COUNTIFS(Data_Entry[Referring Staff Member],$A14,Data_Entry[Month Name],$C$1,Data_Entry[Major Behavior],\"*\",Data_Entry[Year],$D$1)","v":0},{"$f":"COUNTIFS(Data_Entry[Referring Staff Member],$A14,Data_Entry[Major Behavior],\"*\",Data_Entry[Year],$D$1)","v":0}]
[13,{"$f":"FluidList!H15","v":0},{"$f":"COUNTIFS(Data_Entry[Referring Staff Member],$A15,Data_Entry[Month Name],$C$1,Data_Entry[Major Behavior],\"*\",Data_Entry[Year],$D$1)","v":0},{"$f":"COUNTIFS(Data_Entry[Referring Staff Member],$A15,Data_Entry[Major Behavior],\"*\",Data_Entry[Year],$D$1)","v":0}]
[14,{"$f":"FluidList!H16","v":0},{"$f":"COUNTIFS(Data_Entry[Referring Staff Member],$A16,Data_Entry[Month Name],$C$1,Data_Entry[Major Behavior],\"*\",Data_Entry[Year],$D$1)","v":0},{"$f":"COUNTIFS(Data_Entry[Referring Staff Member],$A16,Data_Entry[Major Behavior],\"*\",Data_Entry[Year],$D$1)","v":0}]
[15,{"$f":"FluidList!H17","v":0},{"$f":"COUNTIFS(Data_Entry[Referring Staff Member],$A17,Data_Entry[Month Name],$C$1,Data_Entry[Major Behavior],\"*\",Data_Entry[Year],$D$1)","v":0},{"$f":"COUNTIFS(Data_Entry[Referring Staff Member],$A17,Data_Entry[Major Behavior],\"*\",Data_Entry[Year],$D$1)","v":0}]
[16,{"$f":"FluidList!H18","v":0},{"$f":"COUNTIFS(Data_Entry[Referring Staff Member],$A18,Data_Entry[Month Name],$C$1,Data_Entry[Major Behavior],\"*\",Data_Entry[Year],$D$1)","v":0},{"$f":"COUNTIFS(Data_Entry[Referring Staff Member],$A18,Data_Entry[Major Behavior],\"*\",Data_Entry[Year],$D$1)","v":0}]
[17,{"$f":"FluidList!H19","v":0},{"$f":"COUNTIFS(Data_Entry[Referring Staff Member],$A19,Data_Entry[Month Name],$C$1,Data_Entry[Major Behavior],\"*\",Data_Entry[Year],$D$1)","v":0},{"$f":"COUNTIFS(Data_Entry[Referring Staff Member],$A19,Data_Entry[Major Behavior],\"*\",Data_Entry[Year],$D$1)","v":0}]
[18,{"$f":"FluidList!H20","v":0},{"$f":"COUNTIFS(Data_Entry[Referring Staff Member],$A20,Data_Entry[Month Name],$C$1,Data_Entry[Major Behavior],\"*\",Data_Entry[Year],$D$1)","v":0},{"$f":"COUNTIFS(Data_Entry[Referring Staff Member],$A20,Data_Entry[Major Behavior],\"*\",Data_Entry[Year],$D$1)","v":0}]
[19,{"$f":"FluidList!H21","v":0},{"$f":"COUNTIFS(Data_Entry[Referring Staff Member],$A21,Data_Entry[Month Name],$C$1,Data_Entry[Major Behavior],\"*\",Data_Entry[Year],$D$1)","v":0},{"$f":"COUNTIFS(Data_Entry[Referring Staff Member],$A21,Data_Entry[Major Behavior],\"*\",Data_Entry[Year],$D$1)","v":0}]
[20,{"$f":"FluidList!H22","v":0},{"$f":"COUNTIFS(Data_Entry[Referring Staff Member],$A22,Data_Entry[Month Name],$C$1,Data_Entry[Major Behavior],\"*\",Data_Entry[Year],$D$1)","v":0},{"$f":"COUNTIFS(Data_Entry[Referring Staff Member],$A22,Data_Entry[Major Behavior],\"*\",Data_Entry[Year],$D$1)","v":0}]
[21,{"$f":"FluidList!H23","v":0},{"$f":"COUNTIFS(Data_Entry[Referring Staff Member],$A23,Data_Entry[Month Name],$C$1,Data_Entry[Major Behavior],\"*\",Data_Entry[Year],$D$1)","v":0},{"$f":"COUNTIFS(Data_Entry[Referring Staff Member],$A23,Data_Entry[Major Behavior],\"*\",Data_Entry[Year],$D$1)","v":0}]
[22,{"$f":"FluidList!H24","v":0},{"$f":"COUNTIFS(Data_Entry[Referring Staff Member],$A24,Data_Entry[Month Name],$C$1,Data_Entry[Major Behavior],\"*\",Data_Entry[Year],$D$1)","v":0},{"$f":"COUNTIFS(Data_Entry[Referring Staff Member],$A24,Data_Entry[Major Behavior],\"*\",Data_Entry[Year],$D$1)","v":0}]
[23,{"$f":"FluidList!H25","v":0},{"$f":"COUNTIFS(Data_Entry[Referring Staff Member],$A25,Data_Entry[Month Name],$C$1,Data_Entry[Major Behavior],\"*\",Data_Entry[Year],$D$1)","v":0},{"$f":"COUNTIFS(Data_Entry[Referring Staff Member],$A25,Data_Entry[Major Behavior],\"*\",Data_Entry[Year],$D$1)","v":0},null,null,null,null,null,null,null,"Cumulative ODRs by Staff Member for ",{"$f":"$D$1","v":"2022"}]
[24,{"$f":"FluidList!H26","v":0},{"$f":"COUNTIFS(Data_Entry[Referring Staff Member],$A26,Data_Entry[Month Name],$C$1,Data_Entry[Major Behavior],\"*\",Data_Entry[Year],$D$1)","v":0},{"$f":"COUNTIFS(Data_Entry[Referring Staff Member],$A26,Data_Entry[Major Behavior],\"*\",Data_Entry[Year],$D$1)","v":0}]
[25,{"$f":"FluidList!H27","v":0},{"$f":"COUNTIFS(Data_Entry[Referring Staff Member],$A27,Data_Entry[Month Name],$C$1,Data_Entry[Major Behavior],\"*\",Data_Entry[Year],$D$1)","v":0},{"$f":"COUNTIFS(Data_Entry[Referring Staff Member],$A27,Data_Entry[Major Behavior],\"*\",Data_Entry[Year],$D$1)","v":0}]
[26,{"$f":"FluidList!H28","v":0},{"$f":"COUNTIFS(Data_Entry[Referring Staff Member],$A28,Data_Entry[Month Name],$C$1,Data_Entry[Major Behavior],\"*\",Data_Entry[Year],$D$1)","v":0},{"$f":"COUNTIFS(Data_Entry[Referring Staff Member],$A28,Data_Entry[Major Behavior],\"*\",Data_Entry[Year],$D$1)","v":0}]
[27,{"$f":"FluidList!H29","v":0},{"$f":"COUNTIFS(Data_Entry[Referring Staff Member],$A29,Data_Entry[Month Name],$C$1,Data_Entry[Major Behavior],\"*\",Data_Entry[Year],$D$1)","v":0},{"$f":"COUNTIFS(Data_Entry[Referring Staff Member],$A29,Data_Entry[Major Behavior],\"*\",Data_Entry[Year],$D$1)","v":0}]
[28,{"$f":"FluidList!H30","v":0},{"$f":"COUNTIFS(Data_Entry[Referring Staff Member],$A30,Data_Entry[Month Name],$C$1,Data_Entry[Major Behavior],\"*\",Data_Entry[Year],$D$1)","v":0},{"$f":"COUNTIFS(Data_Entry[Referring Staff Member],$A30,Data_Entry[Major Behavior],\"*\",Data_Entry[Year],$D$1)","v":0}]
[29,{"$f":"FluidList!H31","v":0},{"$f":"COUNTIFS(Data_Entry[Referring Staff Member],$A31,Data_Entry[Month Name],$C$1,Data_Entry[Major Behavior],\"*\",Data_Entry[Year],$D$1)","v":0},{"$f":"COUNTIFS(Data_Entry[Referring Staff Member],$A31,Data_Entry[Major Behavior],\"*\",Data_Entry[Year],$D$1)","v":0}]
[30,{"$f":"FluidList!H32","v":0},{"$f":"COUNTIFS(Data_Entry[Referring Staff Member],$A32,Data_Entry[Month Name],$C$1,Data_Entry[Major Behavior],\"*\",Data_Entry[Year],$D$1)","v":0},{"$f":"COUNTIFS(Data_Entry[Referring Staff Member],$A32,Data_Entry[Major Behavior],\"*\",Data_Entry[Year],$D$1)","v":0}]
[31,{"$f":"FluidList!H33","v":0},{"$f":"COUNTIFS(Data_Entry[Referring Staff Member],$A33,Data_Entry[Month Name],$C$1,Data_Entry[Major Behavior],\"*\",Data_Entry[Year],$D$1)","v":0},{"$f":"COUNTIFS(Data_Entry[Referring Staff Member],$A33,Data_Entry[Major Behavior],\"*\",Data_Entry[Year],$D$1)","v":0}]
[32,{"$f":"FluidList!H34","v":0},{"$f":"COUNTIFS(Data_Entry[Referring Staff Member],$A34,Data_Entry[Month Name],$C$1,Data_Entry[Major Behavior],\"*\",Data_Entry[Year],$D$1)","v":0},{"$f":"COUNTIFS(Data_Entry[Referring Staff Member],$A34,Data_Entry[Major Behavior],\"*\",Data_Entry[Year],$D$1)","v":0}]
[33,{"$f":"FluidList!H35","v":0},{"$f":"COUNTIFS(Data_Entry[Referring Staff Member],$A35,Data_Entry[Month Name],$C$1,Data_Entry[Major Behavior],\"*\",Data_Entry[Year],$D$1)","v":0},{"$f":"COUNTIFS(Data_Entry[Referring Staff Member],$A35,Data_Entry[Major Behavior],\"*\",Data_Entry[Year],$D$1)","v":0}]
[34,{"$f":"FluidList!H36","v":0},{"$f":"COUNTIFS(Data_Entry[Referring Staff Member],$A36,Data_Entry[Month Name],$C$1,Data_Entry[Major Behavior],\"*\",Data_Entry[Year],$D$1)","v":0},{"$f":"COUNTIFS(Data_Entry[Referring Staff Member],$A36,Data_Entry[Major Behavior],\"*\",Data_Entry[Year],$D$1)","v":0}]
[35,{"$f":"FluidList!H37","v":0},{"$f":"COUNTIFS(Data_Entry[Referring Staff Member],$A37,Data_Entry[Month Name],$C$1,Data_Entry[Major Behavior],\"*\",Data_Entry[Year],$D$1)","v":0},{"$f":"COUNTIFS(Data_Entry[Referring Staff Member],$A37,Data_Entry[Major Behavior],\"*\",Data_Entry[Year],$D$1)","v":0}]
[36,{"$f":"FluidList!H38","v":0},{"$f":"COUNTIFS(Data_Entry[Referring Staff Member],$A38,Data_Entry[Month Name],$C$1,Data_Entry[Major Behavior],\"*\",Data_Entry[Year],$D$1)","v":0},{"$f":"COUNTIFS(Data_Entry[Referring Staff Member],$A38,Data_Entry[Major Behavior],\"*\",Data_Entry[Year],$D$1)","v":0}]
[37,{"$f":"FluidList!H39","v":0},{"$f":"COUNTIFS(Data_Entry[Referring Staff Member],$A39,Data_Entry[Month Name],$C$1,Data_Entry[Major Behavior],\"*\",Data_Entry[Year],$D$1)","v":0},{"$f":"COUNTIFS(Data_Entry[Referring Staff Member],$A39,Data_Entry[Major Behavior],\"*\",Data_Entry[Year],$D$1)","v":0}]
[38,{"$f":"FluidList!H40","v":0},{"$f":"COUNTIFS(Data_Entry[Referring Staff Member],$A40,Data_Entry[Month Name],$C$1,Data_Entry[Major Behavior],\"*\",Data_Entry[Year],$D$1)","v":0},{"$f":"COUNTIFS(Data_Entry[Referring Staff Member],$A40,Data_Entry[Major Behavior],\"*\",Data_Entry[Year],$D$1)","v":0}]
[39,{"$f":"FluidList!H41","v":0},{"$f":"COUNTIFS(Data_Entry[Referring Staff Member],$A41,Data_Entry[Month Name],$C$1,Data_Entry[Major Behavior],\"*\",Data_Entry[Year],$D$1)","v":0},{"$f":"COUNTIFS(Data_Entry[Referring Staff Member],$A41,Data_Entry[Major Behavior],\"*\",Data_Entry[Year],$D$1)","v":0}]
[40,{"$f":"FluidList!H42","v":0},{"$f":"COUNTIFS(Data_Entry[Referring Staff Member],$A42,Data_Entry[Month Name],$C$1,Data_Entry[Major Behavior],\"*\",Data_Entry[Year],$D$1)","v":0},{"$f":"COUNTIFS(Data_Entry[Referring Staff Member],$A42,Data_Entry[Major Behavior],\"*\",Data_Entry[Year],$D$1)","v":0}]
[41,{"$f":"FluidList!H43","v":0},{"$f":"COUNTIFS(Data_Entry[Referring Staff Member],$A43,Data_Entry[Month Name],$C$1,Data_Entry[Major Behavior],\"*\",Data_Entry[Year],$D$1)","v":0},{"$f":"COUNTIFS(Data_Entry[Referring Staff Member],$A43,Data_Entry[Major Behavior],\"*\",Data_Entry[Year],$D$1)","v":0}]
[42,{"$f":"FluidList!H44","v":0},{"$f":"COUNTIFS(Data_Entry[Referring Staff Member],$A44,Data_Entry[Month Name],$C$1,Data_Entry[Major Behavior],\"*\",Data_Entry[Year],$D$1)","v":0},{"$f":"COUNTIFS(Data_Entry[Referring Staff Member],$A44,Data_Entry[Major Behavior],\"*\",Data_Entry[Year],$D$1)","v":0}]
[43,{"$f":"FluidList!H45","v":0},{"$f":"COUNTIFS(Data_Entry[Referring Staff Member],$A45,Data_Entry[Month Name],$C$1,Data_Entry[Major Behavior],\"*\",Data_Entry[Year],$D$1)","v":0},{"$f":"COUNTIFS(Data_Entry[Referring Staff Member],$A45,Data_Entry[Major Behavior],\"*\",Data_Entry[Year],$D$1)","v":0}]
[44,{"$f":"FluidList!H46","v":0},{"$f":"COUNTIFS(Data_Entry[Referring Staff Member],$A46,Data_Entry[Month Name],$C$1,Data_Entry[Major Behavior],\"*\",Data_Entry[Year],$D$1)","v":0},{"$f":"COUNTIFS(Data_Entry[Referring Staff Member],$A46,Data_Entry[Major Behavior],\"*\",Data_Entry[Year],$D$1)","v":0}]
[45,{"$f":"FluidList!H47","v":0},{"$f":"COUNTIFS(Data_Entry[Referring Staff Member],$A47,Data_Entry[Month Name],$C$1,Data_Entry[Major Behavior],\"*\",Data_Entry[Year],$D$1)","v":0},{"$f":"COUNTIFS(Data_Entry[Referring Staff Member],$A47,Data_Entry[Major Behavior],\"*\",Data_Entry[Year],$D$1)","v":0}]
[46,{"$f":"FluidList!H48","v":0},{"$f":"COUNTIFS(Data_Entry[Referring Staff Member],$A48,Data_Entry[Month Name],$C$1,Data_Entry[Major Behavior],\"*\",Data_Entry[Year],$D$1)","v":0},{"$f":"COUNTIFS(Data_Entry[Referring Staff Member],$A48,Data_Entry[Major Behavior],\"*\",Data_Entry[Year],$D$1)","v":0}]
[47,{"$f":"FluidList!H49","v":0},{"$f":"COUNTIFS(Data_Entry[Referring Staff Member],$A49,Data_Entry[Month Name],$C$1,Data_Entry[Major Behavior],\"*\",Data_Entry[Year],$D$1)","v":0},{"$f":"COUNTIFS(Data_Entry[Referring Staff Member],$A49,Data_Entry[Major Behavior],\"*\",Data_Entry[Year],$D$1)","v":0}]
[48,{"$f":"FluidList!H50","v":0},{"$f":"COUNTIFS(Data_Entry[Referring Staff Member],$A50,Data_Entry[Month Name],$C$1,Data_Entry[Major Behavior],\"*\",Data_Entry[Year],$D$1)","v":0},{"$f":"COUNTIFS(Data_Entry[Referring Staff Member],$A50,Data_Entry[Major Behavior],\"*\",Data_Entry[Year],$D$1)","v":0}]
[49,{"$f":"FluidList!H51","v":0},{"$f":"COUNTIFS(Data_Entry[Referring Staff Member],$A51,Data_Entry[Month Name],$C$1,Data_Entry[Major Behavior],\"*\",Data_Entry[Year],$D$1)","v":0},{"$f":"COUNTIFS(Data_Entry[Referring Staff Member],$A51,Data_Entry[Major Behavior],\"*\",Data_Entry[Year],$D$1)","v":0}]
[50,{"$f":"FluidList!H52","v":0},{"$f":"COUNTIFS(Data_Entry[Referring Staff Member],$A52,Data_Entry[Month Name],$C$1,Data_Entry[Major Behavior],\"*\",Data_Entry[Year],$D$1)","v":0},{"$f":"COUNTIFS(Data_Entry[Referring Staff Member],$A52,Data_Entry[Major Behavior],\"*\",Data_Entry[Year],$D$1)","v":0}]
[51,{"$f":"FluidList!H53","v":0},{"$f":"COUNTIFS(Data_Entry[Referring Staff Member],$A53,Data_Entry[Month Name],$C$1,Data_Entry[Major Behavior],\"*\",Data_Entry[Year],$D$1)","v":0},{"$f":"COUNTIFS(Data_Entry[Referring Staff Member],$A53,Data_Entry[Major Behavior],\"*\",Data_Entry[Year],$D$1)","v":0}]
[52,{"$f":"FluidList!H54","v":0},{"$f":"COUNTIFS(Data_Entry[Referring Staff Member],$A54,Data_Entry[Month Name],$C$1,Data_Entry[Major Behavior],\"*\",Data_Entry[Year],$D$1)","v":0},{"$f":"COUNTIFS(Data_Entry[Referring Staff Member],$A54,Data_Entry[Major Behavior],\"*\",Data_Entry[Year],$D$1)","v":0}]
[53,{"$f":"FluidList!H55","v":0},{"$f":"COUNTIFS(Data_Entry[Referring Staff Member],$A55,Data_Entry[Month Name],$C$1,Data_Entry[Major Behavior],\"*\",Data_Entry[Year],$D$1)","v":0},{"$f":"COUNTIFS(Data_Entry[Referring Staff Member],$A55,Data_Entry[Major Behavior],\"*\",Data_Entry[Year],$D$1)","v":0}]
[54,{"$f":"FluidList!H56","v":0},{"$f":"COUNTIFS(Data_Entry[Referring Staff Member],$A56,Data_Entry[Month Name],$C$1,Data_Entry[Major Behavior],\"*\",Data_Entry[Year],$D$1)","v":0},{"$f":"COUNTIFS(Data_Entry[Referring Staff Member],$A56,Data_Entry[Major Behavior],\"*\",Data_Entry[Year],$D$1)","v":0}]
[55,{"$f":"FluidList!H57","v":0},{"$f":"COUNTIFS(Data_Entry[Referring Staff Member],$A57,Data_Entry[Month Name],$C$1,Data_Entry[Major Behavior],\"*\",Data_Entry[Year],$D$1)","v":0},{"$f":"COUNTIFS(Data_Entry[Referring Staff Member],$A57,Data_Entry[Major Behavior],\"*\",Data_Entry[Year],$D$1)","v":0}]
[56,{"$f":"FluidList!H58","v":0},{"$f":"COUNTIFS(Data_Entry[Referring Staff Member],$A58,Data_Entry[Month Name],$C$1,Data_Entry[Major Behavior],\"*\",Data_Entry[Year],$D$1)","v":0},{"$f":"COUNTIFS(Data_Entry[Referring Staff Member],$A58,Data_Entry[Major Behavior],\"*\",Data_Entry[Year],$D$1)","v":0}]
[57,{"$f":"FluidList!H59","v":0},{"$f":"COUNTIFS(Data_Entry[Referring Staff Member],$A59,Data_Entry[Month Name],$C$1,Data_Entry[Major Behavior],\"*\",Data_Entry[Year],$D$1)","v":0},{"$f":"COUNTIFS(Data_Entry[Referring Staff Member],$A59,Data_Entry[Major Behavior],\"*\",Data_Entry[Year],$D$1)","v":0}]
[58,{"$f":"FluidList!H60","v":0},{"$f":"COUNTIFS(Data_Entry[Referring Staff Member],$A60,Data_Entry[Month Name],$C$1,Data_Entry[Major Behavior],\"*\",Data_Entry[Year],$D$1)","v":0},{"$f":"COUNTIFS(Data_Entry[Referring Staff Member],$A60,Data_Entry[Major Behavior],\"*\",Data_Entry[Year],$D$1)","v":0}]
[59,{"$f":"FluidList!H61","v":0},{"$f":"COUNTIFS(Data_Entry[Referring Staff Member],$A61,Data_Entry[Month Name],$C$1,Data_Entry[Major Behavior],\"*\",Data_Entry[Year],$D$1)","v":0},{"$f":"COUNTIFS(Data_Entry[Referring Staff Member],$A61,Data_Entry[Major Behavior],\"*\",Data_Entry[Year],$D$1)","v":0}]
[60,{"$f":"FluidList!H62","v":0},{"$f":"COUNTIFS(Data_Entry[Referring Staff Member],$A62,Data_Entry[Month Name],$C$1,Data_Entry[Major Behavior],\"*\",Data_Entry[Year],$D$1)","v":0},{"$f":"COUNTIFS(Data_Entry[Referring Staff Member],$A62,Data_Entry[Major Behavior],\"*\",Data_Entry[Year],$D$1)","v":0}]
[61,{"$f":"FluidList!H63","v":0},{"$f":"COUNTIFS(Data_Entry[Referring Staff Member],$A63,Data_Entry[Month Name],$C$1,Data_Entry[Major Behavior],\"*\",Data_Entry[Year],$D$1)","v":0},{"$f":"COUNTIFS(Data_Entry[Referring Staff Member],$A63,Data_Entry[Major Behavior],\"*\",Data_Entry[Year],$D$1)","v":0}]
[62,{"$f":"FluidList!H64","v":0},{"$f":"COUNTIFS(Data_Entry[Referring Staff Member],$A64,Data_Entry[Month Name],$C$1,Data_Entry[Major Behavior],\"*\",Data_Entry[Year],$D$1)","v":0},{"$f":"COUNTIFS(Data_Entry[Referring Staff Member],$A64,Data_Entry[Major Behavior],\"*\",Data_Entry[Year],$D$1)","v":0}]
[63,{"$f":"FluidList!H65","v":0},{"$f":"COUNTIFS(Data_Entry[Referring Staff Member],$A65,Data_Entry[Month Name],$C$1,Data_Entry[Major Behavior],\"*\",Data_Entry[Year],$D$1)","v":0},{"$f":"COUNTIFS(Data_Entry[Referring Staff Member],$A65,Data_Entry[Major Behavior],\"*\",Data_Entry[Year],$D$1)","v":0}]
[64,{"$f":"FluidList!H66","v":0},{"$f":"COUNTIFS(Data_Entry[Referring Staff Member],$A66,Data_Entry[Month Name],$C$1,Data_Entry[Major Behavior],\"*\",Data_Entry[Year],$D$1)","v":0},{"$f":"COUNTIFS(Data_Entry[Referring Staff Member],$A66,Data_Entry[Major Behavior],\"*\",Data_Entry[Year],$D$1)","v":0}]
[65,{"$f":"FluidList!H67","v":0},{"$f":"COUNTIFS(Data_Entry[Referring Staff Member],$A67,Data_Entry[Month Name],$C$1,Data_Entry[Major Behavior],\"*\",Data_Entry[Year],$D$1)","v":0},{"$f":"COUNTIFS(Data_Entry[Referring Staff Member],$A67,Data_Entry[Major Behavior],\"*\",Data_Entry[Year],$D$1)","v":0}]
[66,{"$f":"FluidList!H68","v":0},{"$f":"COUNTIFS(Data_Entry[Referring Staff Member],$A68,Data_Entry[Month Name],$C$1,Data_Entry[Major Behavior],\"*\",Data_Entry[Year],$D$1)","v":0},{"$f":"COUNTIFS(Data_Entry[Referring Staff Member],$A68,Data_Entry[Major Behavior],\"*\",Data_Entry[Year],$D$1)","v":0}]
[67,{"$f":"FluidList!H69","v":0},{"$f":"COUNTIFS(Data_Entry[Referring Staff Member],$A69,Data_Entry[Month Name],$C$1,Data_Entry[Major Behavior],\"*\",Data_Entry[Year],$D$1)","v":0},{"$f":"COUNTIFS(Data_Entry[Referring Staff Member],$A69,Data_Entry[Major Behavior],\"*\",Data_Entry[Year],$D$1)","v":0}]
[68,{"$f":"FluidList!H70","v":0},{"$f":"COUNTIFS(Data_Entry[Referring Staff Member],$A70,Data_Entry[Month Name],$C$1,Data_Entry[Major Behavior],\"*\",Data_Entry[Year],$D$1)","v":0},{"$f":"COUNTIFS(Data_Entry[Referring Staff Member],$A70,Data_Entry[Major Behavior],\"*\",Data_Entry[Year],$D$1)","v":0}]
[69,{"$f":"FluidList!H71","v":0},{"$f":"COUNTIFS(Data_Entry[Referring Staff Member],$A71,Data_Entry[Month Name],$C$1,Data_Entry[Major Behavior],\"*\",Data_Entry[Year],$D$1)","v":0},{"$f":"COUNTIFS(Data_Entry[Referring Staff Member],$A71,Data_Entry[Major Behavior],\"*\",Data_Entry[Year],$D$1)","v":0}]
[70,{"$f":"FluidList!H72","v":0},{"$f":"COUNTIFS(Data_Entry[Referring Staff Member],$A72,Data_Entry[Month Name],$C$1,Data_Entry[Major Behavior],\"*\",Data_Entry[Year],$D$1)","v":0},{"$f":"COUNTIFS(Data_Entry[Referring Staff Member],$A72,Data_Entry[Major Behavior],\"*\",Data_Entry[Year],$D$1)","v":0}]
[71,{"$f":"FluidList!H73","v":0},{"$f":"COUNTIFS(Data_Entry[Referring Staff Member],$A73,Data_Entry[Month Name],$C$1,Data_Entry[Major Behavior],\"*\",Data_Entry[Year],$D$1)","v":0},{"$f":"COUNTIFS(Data_Entry[Referring Staff Member],$A73,Data_Entry[Major Behavior],\"*\",Data_Entry[Year],$D$1)","v":0}]
[72,{"$f":"FluidList!H74","v":0},{"$f":"COUNTIFS(Data_Entry[Referring Staff Member],$A74,Data_Entry[Month Name],$C$1,Data_Entry[Major Behavior],\"*\",Data_Entry[Year],$D$1)","v":0},{"$f":"COUNTIFS(Data_Entry[Referring Staff Member],$A74,Data_Entry[Major Behavior],\"*\",Data_Entry[Year],$D$1)","v":0}]
[73,{"$f":"FluidList!H75","v":0},{"$f":"COUNTIFS(Data_Entry[Referring Staff Member],$A75,Data_Entry[Month Name],$C$1,Data_Entry[Major Behavior],\"*\",Data_Entry[Year],$D$1)","v":0},{"$f":"COUNTIFS(Data_Entry[Referring Staff Member],$A75,Data_Entry[Major Behavior],\"*\",Data_Entry[Year],$D$1)","v":0}]
[74,{"$f":"FluidList!H76","v":0},{"$f":"COUNTIFS(Data_Entry[Referring Staff Member],$A76,Data_Entry[Month Name],$C$1,Data_Entry[Major Behavior],\"*\",Data_Entry[Year],$D$1)","v":0},{"$f":"COUNTIFS(Data_Entry[Referring Staff Member],$A76,Data_Entry[Major Behavior],\"*\",Data_Entry[Year],$D$1)","v":0}]
[75,{"$f":"FluidList!H77","v":0},{"$f":"COUNTIFS(Data_Entry[Referring Staff Member],$A77,Data_Entry[Month Name],$C$1,Data_Entry[Major Behavior],\"*\",Data_Entry[Year],$D$1)","v":0},{"$f":"COUNTIFS(Data_Entry[Referring Staff Member],$A77,Data_Entry[Major Behavior],\"*\",Data_Entry[Year],$D$1)","v":0}]
[76,{"$f":"FluidList!H78","v":0},{"$f":"COUNTIFS(Data_Entry[Referring Staff Member],$A78,Data_Entry[Month Name],$C$1,Data_Entry[Major Behavior],\"*\",Data_Entry[Year],$D$1)","v":0},{"$f":"COUNTIFS(Data_Entry[Referring Staff Member],$A78,Data_Entry[Major Behavior],\"*\",Data_Entry[Year],$D$1)","v":0}]
[77,{"$f":"FluidList!H79","v":0},{"$f":"COUNTIFS(Data_Entry[Referring Staff Member],$A79,Data_Entry[Month Name],$C$1,Data_Entry[Major Behavior],\"*\",Data_Entry[Year],$D$1)","v":0},{"$f":"COUNTIFS(Data_Entry[Referring Staff Member],$A79,Data_Entry[Major Behavior],\"*\",Data_Entry[Year],$D$1)","v":0}]
[78,{"$f":"FluidList!H80","v":0},{"$f":"COUNTIFS(Data_Entry[Referring Staff Member],$A80,Data_Entry[Month Name],$C$1,Data_Entry[Major Behavior],\"*\",Data_Entry[Year],$D$1)","v":0},{"$f":"COUNTIFS(Data_Entry[Referring Staff Member],$A80,Data_Entry[Major Behavior],\"*\",Data_Entry[Year],$D$1)","v":0}]
[79,{"$f":"FluidList!H81","v":0},{"$f":"COUNTIFS(Data_Entry[Referring Staff Member],$A81,Data_Entry[Month Name],$C$1,Data_Entry[Major Behavior],\"*\",Data_Entry[Year],$D$1)","v":0},{"$f":"COUNTIFS(Data_Entry[Referring Staff Member],$A81,Data_Entry[Major Behavior],\"*\",Data_Entry[Year],$D$1)","v":0}]
[80,{"$f":"FluidList!H82","v":0},{"$f":"COUNTIFS(Data_Entry[Referring Staff Member],$A82,Data_Entry[Month Name],$C$1,Data_Entry[Major Behavior],\"*\",Data_Entry[Year],$D$1)","v":0},{"$f":"COUNTIFS(Data_Entry[Referring Staff Member],$A82,Data_Entry[Major Behavior],\"*\",Data_Entry[Year],$D$1)","v":0}]
[81,{"$f":"FluidList!H83","v":0},{"$f":"COUNTIFS(Data_Entry[Referring Staff Member],$A83,Data_Entry[Month Name],$C$1,Data_Entry[Major Behavior],\"*\",Data_Entry[Year],$D$1)","v":0},{"$f":"COUNTIFS(Data_Entry[Referring Staff Member],$A83,Data_Entry[Major Behavior],\"*\",Data_Entry[Year],$D$1)","v":0}]
[82,{"$f":"FluidList!H84","v":0},{"$f":"COUNTIFS(Data_Entry[Referring Staff Member],$A84,Data_Entry[Month Name],$C$1,Data_Entry[Major Behavior],\"*\",Data_Entry[Year],$D$1)","v":0},{"$f":"COUNTIFS(Data_Entry[Referring Staff Member],$A84,Data_Entry[Major Behavior],\"*\",Data_Entry[Year],$D$1)","v":0}]
[83,{"$f":"FluidList!H85","v":0},{"$f":"COUNTIFS(Data_Entry[Referring Staff Member],$A85,Data_Entry[Month Name],$C$1,Data_Entry[Major Behavior],\"*\",Data_Entry[Year],$D$1)","v":0},{"$f":"COUNTIFS(Data_Entry[Referring Staff Member],$A85,Data_Entry[Major Behavior],\"*\",Data_Entry[Year],$D$1)","v":0}]
[84,{"$f":"FluidList!H86","v":0},{"$f":"COUNTIFS(Data_Entry[Referring Staff Member],$A86,Data_Entry[Month Name],$C$1,Data_Entry[Major Behavior],\"*\",Data_Entry[Year],$D$1)","v":0},{"$f":"COUNTIFS(Data_Entry[Referring Staff Member],$A86,Data_Entry[Major Behavior],\"*\",Data_Entry[Year],$D$1)","v":0}]
[85,{"$f":"FluidList!H87","v":0},{"$f":"COUNTIFS(Data_Entry[Referring Staff Member],$A87,Data_Entry[Month Name],$C$1,Data_Entry[Major Behavior],\"*\",Data_Entry[Year],$D$1)","v":0},{"$f":"COUNTIFS(Data_Entry[Referring Staff Member],$A87,Data_Entry[Major Behavior],\"*\",Data_Entry[Year],$D$1)","v":0}]
[86,{"$f":"FluidList!H88","v":0},{"$f":"COUNTIFS(Data_Entry[Referring Staff Member],$A88,Data_Entry[Month Name],$C$1,Data_Entry[Major Behavior],\"*\",Data_Entry[Year],$D$1)","v":0},{"$f":"COUNTIFS(Data_Entry[Referring Staff Member],$A88,Data_Entry[Major Behavior],\"*\",Data_Entry[Year],$D$1)","v":0}]
[87,{"$f":"FluidList!H89","v":0},{"$f":"COUNTIFS(Data_Entry[Referring Staff Member],$A89,Data_Entry[Month Name],$C$1,Data_Entry[Major Behavior],\"*\",Data_Entry[Year],$D$1)","v":0},{"$f":"COUNTIFS(Data_Entry[Referring Staff Member],$A89,Data_Entry[Major Behavior],\"*\",Data_Entry[Year],$D$1)","v":0}]
[88,{"$f":"FluidList!H90","v":0},{"$f":"COUNTIFS(Data_Entry[Referring Staff Member],$A90,Data_Entry[Month Name],$C$1,Data_Entry[Major Behavior],\"*\",Data_Entry[Year],$D$1)","v":0},{"$f":"COUNTIFS(Data_Entry[Referring Staff Member],$A90,Data_Entry[Major Behavior],\"*\",Data_Entry[Year],$D$1)","v":0}]
[89,{"$f":"FluidList!H91","v":0},{"$f":"COUNTIFS(Data_Entry[Referring Staff Member],$A91,Data_Entry[Month Name],$C$1,Data_Entry[Major Behavior],\"*\",Data_Entry[Year],$D$1)","v":0},{"$f":"COUNTIFS(Data_Entry[Referring Staff Member],$A91,Data_Entry[Major Behavior],\"*\",Data_Entry[Year],$D$1)","v":0}]
[90,{"$f":"FluidList!H92","v":0},{"$f":"COUNTIFS(Data_Entry[Referring Staff Member],$A92,Data_Entry[Month Name],$C$1,Data_Entry[Major Behavior],\"*\",Data_Entry[Year],$D$1)","v":0},{"$f":"COUNTIFS(Data_Entry[Referring Staff Member],$A92,Data_Entry[Major Behavior],\"*\",Data_Entry[Year],$D$1)","v":0}]
[91,{"$f":"FluidList!H93","v":0},{"$f":"COUNTIFS(Data_Entry[Referring Staff Member],$A93,Data_Entry[Month Name],$C$1,Data_Entry[Major Behavior],\"*\",Data_Entry[Year],$D$1)","v":0},{"$f":"COUNTIFS(Data_Entry[Referring Staff Member],$A93,Data_Entry[Major Behavior],\"*\",Data_Entry[Year],$D$1)","v":0}]
[92,{"$f":"FluidList!H94","v":0},{"$f":"COUNTIFS(Data_Entry[Referring Staff Member],$A94,Data_Entry[Month Name],$C$1,Data_Entry[Major Behavior],\"*\",Data_Entry[Year],$D$1)","v":0},{"$f":"COUNTIFS(Data_Entry[Referring Staff Member],$A94,Data_Entry[Major Behavior],\"*\",Data_Entry[Year],$D$1)","v":0}]
[93,{"$f":"FluidList!H95","v":0},{"$f":"COUNTIFS(Data_Entry[Referring Staff Member],$A95,Data_Entry[Month Name],$C$1,Data_Entry[Major Behavior],\"*\",Data_Entry[Year],$D$1)","v":0},{"$f":"COUNTIFS(Data_Entry[Referring Staff Member],$A95,Data_Entry[Major Behavior],\"*\",Data_Entry[Year],$D$1)","v":0}]
[94,{"$f":"FluidList!H96","v":0},{"$f":"COUNTIFS(Data_Entry[Referring Staff Member],$A96,Data_Entry[Month Name],$C$1,Data_Entry[Major Behavior],\"*\",Data_Entry[Year],$D$1)","v":0},{"$f":"COUNTIFS(Data_Entry[Referring Staff Member],$A96,Data_Entry[Major Behavior],\"*\",Data_Entry[Year],$D$1)","v":0}]
[95,{"$f":"FluidList!H97","v":0},{"$f":"COUNTIFS(Data_Entry[Referring Staff Member],$A97,Data_Entry[Month Name],$C$1,Data_Entry[Major Behavior],\"*\",Data_Entry[Year],$D$1)","v":0},{"$f":"COUNTIFS(Data_Entry[Referring Staff Member],$A97,Data_Entry[Major Behavior],\"*\",Data_Entry[Year],$D$1)","v":0}]
[96,{"$f":"FluidList!H98","v":0},{"$f":"COUNTIFS(Data_Entry[Referring Staff Member],$A98,Data_Entry[Month Name],$C$1,Data_Entry[Major Behavior],\"*\",Data_Entry[Year],$D$1)","v":0},{"$f":"COUNTIFS(Data_Entry[Referring Staff Member],$A98,Data_Entry[Major Behavior],\"*\",Data_Entry[Year],$D$1)","v":0}]
[97,{"$f":"FluidList!H99","v":0},{"$f":"COUNTIFS(Data_Entry[Referring Staff Member],$A99,Data_Entry[Month Name],$C$1,Data_Entry[Major Behavior],\"*\",Data_Entry[Year],$D$1)","v":0},{"$f":"COUNTIFS(Data_Entry[Referring Staff Member],$A99,Data_Entry[Major Behavior],\"*\",Data_Entry[Year],$D$1)","v":0}]
[98,{"$f":"FluidList!H100","v":0},{"$f":"COUNTIFS(Data_Entry[Referring Staff Member],$A100,Data_Entry[Month Name],$C$1,Data_Entry[Major Behavior],\"*\",Data_Entry[Year],$D$1)","v":0},{"$f":"COUNTIFS(Data_Entry[Referring Staff Member],$A100,Data_Entry[Major Behavior],\"*\",Data_Entry[Year],$D$1)","v":0}]
[99,{"$f":"FluidList!H101","v":0},{"$f":"COUNTIFS(Data_Entry[Referring Staff Member],$A101,Data_Entry[Month Name],$C$1,Data_Entry[Major Behavior],\"*\",Data_Entry[Year],$D$1)","v":0},{"$f":"COUNTIFS(Data_Entry[Referring Staff Member],$A101,Data_Entry[Major Behavior],\"*\",Data_Entry[Year],$D$1)","v":0}]
[100,{"$f":"FluidList!H102","v":0},{"$f":"COUNTIFS(Data_Entry[Referring Staff Member],$A102,Data_Entry[Month Name],$C$1,Data_Entry[Major Behavior],\"*\",Data_Entry[Year],$D$1)","v":0},{"$f":"COUNTIFS(Data_Entry[Referring Staff Member],$A102,Data_Entry[Major Behavior],\"*\",Data_Entry[Year],$D$1)","v":0}]

{"sheet":"StudentDatabase","index":31,"n_rows":2,"n_cols":12,"rows_kept":2,"cut":false,"hidden":false,"merged":[[0,1,0,3]]}
[null,"Student Demographics",null,null,null,null,null,{"$f":"FluidList!AZ2","v":0},{"$f":"FluidList!AP2","v":2018},{"$f":"FluidList!AF2","v":2019},{"$f":"FluidList!V2","v":2020},{"$f":"FluidList!E6","v":0}]
["Enter a unique student number, below.","Last Name","First Name","Gender","IEP","Ethnicity","Race","Year_5","Year_4","Year_3","Year_2","Year_1"]

{"sheet":"Triangle","index":32,"n_rows":85,"n_cols":10,"rows_kept":85,"cut":false,"hidden":false,"merged":[[62,2,62,3],[32,2,32,4],[3,0,7,1],[10,0,14,1],[18,0,20,1],[9,3,9,4]]}
[]
[]
[]
["Step 1: Choose the closest grade configuration for your school from drop down; Norms are based on 2016-2017 SWIS data"]
[null,null,"Choose Grade Configuration"]
[null,null,"Early Childhood (13-14 norms)"]
[]
[]
[]
[null,null,"Table 4A","Enter data below"]
["Step 2: Using the \"Major Behaviors by Students\" graph to the right, enter the number of students with 2-5 and 6+ ODR's for correct year.",null,"Fiscal Year","2-5 Office Referrals","6 or more office referrals"]
[null,null,{"$f":"StudentDatabase!H1","v":0},{"$f":"COUNTIFS(Student_Demographics[Year_5],\">=2\",Student_Demographics[Year_5],\"<=5\")","v":0},{"$f":"COUNTIF(Student_Demographics[Year_5],\">=6\")","v":0}]
[null,null,{"$f":"StudentDatabase!I1","v":2018},{"$f":"COUNTIFS(Student_Demographics[Year_4],\">=2\",Student_Demographics[Year_4],\"<=5\")","v":0},{"$f":"COUNTIF(Student_Demographics[Year_4],\">=6\")","v":0}]
[null,null,{"$f":"StudentDatabase!J1","v":2019},{"$f":"COUNTIFS(Student_Demographics[Year_3],\">=2\",Student_Demographics[Year_3],\"<=5\")","v":0},{"$f":"COUNTIF(Student_Demographics[Year_3],\">=6\")","v":0}]
[null,null,{"$f":"StudentDatabase!K1","v":2020},{"$f":"COUNTIFS(Student_Demographics[Year_2],\">=2\",Student_Demographics[Year_2],\"<=5\")","v":0},{"$f":"COUNTIF(Student_Demographics[Year_2],\">=6\")","v":0}]
[null,null,{"$f":"StudentDatabase!L1","v":0},{"$f":"COUNTIFS(Student_Demographics[Year_1],\">=2\",Student_Demographics[Year_1],\"<=5\")","v":0},{"$f":"COUNTIF(Student_Demographics[Year_1],\">=6\")","v":0}]
[]
[]
["Step 3: Click off of the graphs, then print"]
[]
[]
[]
[]
[]
[]
[]
[]
[]
[]
[null,null,null,null,null,null,null,null,null," "]
[]
[]
[null,null,"National Comparisons based upon SWIS Data 2015-2016"]
[]
[]
[]
[]
[]
[]
[]
[]
[]
[]
[]
[]
[]
[]
[]
[]
[]
[]
[]
[]
[]
[]
[]
[]
[]
[]
[]
[]
[]
[null,{"$f":"FluidList!C3","v":0},"Triangle Graph Over Time",null,{"$f":"C16","v":0},null,{"$f":"FluidList!C3","v":0}]
[null,"National averages",{"$f":"C6","v":"Early Childhood (13-14 norms)"},{"$f":"C12","v":0},{"$f":"C13","v":2018},{"$f":"C14","v":2019},{"$f":"C15","v":2020},{"$f":"C16","v":0}]
[null,"0-1 Referrals",{"$f":"IF($C$6=PermList!$M$2,PermList!$O3,IF($C$6=PermList!$M$3,PermList!$P3,IF($C$6=PermList!$M$4,PermList!$Q3,IF($C$6=PermList!$M$5,PermList!$R3,IF($C$6=PermList!$M$6,PermList!$S3,IF($C$6=PermList!$M$7,PermList!$T3))))))","v":0.91279999999999994},{"$f":"D77","v":{"$error":"#DIV/0!"}},{"$f":"D79","v":{"$error":"#DIV/0!"}},{"$f":"D81","v":{"$error":"#DIV/0!"}},{"$f":"D83","v":{"$error":"#DIV/0!"}},{"$f":"D85","v":{"$error":"#DIV/0!"}}]
[null,"2-5 Referrals",{"$f":"IF($C$6=PermList!$M$2,PermList!$O4,IF($C$6=PermList!$M$3,PermList!$P4,IF($C$6=PermList!$M$4,PermList!$Q4,IF($C$6=PermList!$M$5,PermList!$R4,IF($C$6=PermList!$M$6,PermList!$S4,IF($C$6=PermList!$M$7,PermList!$T4))))))","v":4.7800000000000002E-2},{"$f":"E77","v":{"$error":"#DIV/0!"}},{"$f":"E79","v":{"$error":"#DIV/0!"}},{"$f":"E81","v":{"$error":"#DIV/0!"}},{"$f":"E83","v":{"$error":"#DIV/0!"}},{"$f":"E85","v":{"$error":"#DIV/0!"}}]
[null,"6+ Referrals",{"$f":"IF($C$6=PermList!$M$2,PermList!$O5,IF($C$6=PermList!$M$3,PermList!$P5,IF($C$6=PermList!$M$4,PermList!$Q5,IF($C$6=PermList!$M$5,PermList!$R5,IF($C$6=PermList!$M$6,PermList!$S5,IF($C$6=PermList!$M$7,PermList!$T5))))))","v":3.9399999999999998E-2},{"$f":"F77","v":{"$error":"#DIV/0!"}},{"$f":"F79","v":{"$error":"#DIV/0!"}},{"$f":"F81","v":{"$error":"#DIV/0!"}},{"$f":"F83","v":{"$error":"#DIV/0!"}},{"$f":"F85","v":{"$error":"#DIV/0!"}}]
[]
[]
[]
[]
[]
[]
[null,{"$f":"FluidList!C3","v":0},{"$f":"C6","v":"Early Childhood (13-14 norms)"},"Triangle Graph",{"$f":"C16","v":0}]
[null,null,"Total Student Population in Aqua box below","Total Students with  0-1 Office Disciplinary Referrals into box below","Total Students with  2-5 Office Disciplinary Referrals into box below","Total Students with 6+ Office Disciplinary Referrals into box below."]
[null,{"$f":"C12","v":0},{"$f":"FluidList!BA5","v":0},{"$f":"C76-(E76+F76)","v":0},{"$f":"D12","v":0},{"$f":"E12","v":0}]
[null,"Percentages >>>>>>>>>>>",null,{"$f":"SUM(D76/C76)","v":{"$error":"#DIV/0!"}},{"$f":"SUM(E76/C76)","v":{"$error":"#DIV/0!"}},{"$f":"SUM(F76/C76)","v":{"$error":"#DIV/0!"}}]
[null,{"$f":"C13","v":2018},{"$f":"FluidList!AQ5","v":0},{"$f":"C78-(E78+F78)","v":0},{"$f":"D13","v":0},{"$f":"E13","v":0}]
[null,"Percentages >>>>>>>>>>>",null,{"$f":"SUM(D78/C78)","v":{"$error":"#DIV/0!"}},{"$f":"SUM(E78/C78)","v":{"$error":"#DIV/0!"}},{"$f":"SUM(F78/C78)","v":{"$error":"#DIV/0!"}}]
[null,{"$f":"C14","v":2019},{"$f":"FluidList!AG5","v":0},{"$f":"C80-(E80+F80)","v":0},{"$f":"D14","v":0},{"$f":"E14","v":0}]
[null,"Percentages >>>>>>>>>>>",null,{"$f":"SUM(D80/C80)","v":{"$error":"#DIV/0!"}},{"$f":"SUM(E80/C80)","v":{"$error":"#DIV/0!"}},{"$f":"SUM(F80/C80)","v":{"$error":"#DIV/0!"}}]
[null,{"$f":"C15","v":2020},{"$f":"FluidList!W5","v":0},{"$f":"C82-(E82+F82)","v":0},{"$f":"D15","v":0},{"$f":"E15","v":0}]
[null,"Percentages >>>>>>>>>>>",null,{"$f":"SUM(D82/C82)","v":{"$error":"#DIV/0!"}},{"$f":"SUM(E82/C82)","v":{"$error":"#DIV/0!"}},{"$f":"SUM(F82/C82)","v":{"$error":"#DIV/0!"}}]
[null,{"$f":"C16","v":0},{"$f":"FluidList!C9","v":0},{"$f":"C84-(E84+F84)","v":0},{"$f":"D16","v":0},{"$f":"E16","v":0}]
[null,"Percentages >>>>>>>>>>>",null,{"$f":"SUM(D84/C84)","v":{"$error":"#DIV/0!"}},{"$f":"SUM(E84/C84)","v":{"$error":"#DIV/0!"}},{"$f":"SUM(F84/C84)","v":{"$error":"#DIV/0!"}}]

{"sheet":"QuickBig5","index":36,"n_rows":31,"n_cols":21,"rows_kept":31,"cut":false,"hidden":false,"merged":[[29,19,29,22],[3,7,4,18],[29,4,29,7],[30,20,30,21]]}
[]
[]
[]
[null,null,null,null,null,null,null,{"$f":"FluidList!C3","v":0}]
[]
[]
[]
[]
[]
[]
[]
[]
[]
[]
[]
[]
[]
[]
[]
[]
[]
[]
[]
[]
[]
[]
[]
[]
[]
[null,null,null,null,"Monthly Charts",null,null,null,null,null,null,null,null,null,null,null,null,null,null,"Cumulative Charts"]
[null,null,null,null,{"$f":"Menu!I18","v":"February"},{"$f":"Menu!I16","v":"2022"},null,null,null,null,null,null,null,null,null,null,null,null,null,null,{"$f":"Menu!I16","v":"2022"}]

{"sheet":"MinorPerDayTable","index":38,"n_rows":3,"n_cols":15,"rows_kept":3,"cut":false,"hidden":false,"merged":[]}
[null,"July","August","September","October","November","December","January","February","March","April","May","June",null,{"$f":"Menu!$I$16","v":"2022"}]
["Total",{"$f":"COUNTIFS(Data_Entry[Month Name],B1,Data_Entry[Year],Menu!$I$16,Data_Entry[Minor Behavior],\"*\")","v":0},{"$f":"COUNTIFS(Data_Entry[Month Name],C1,Data_Entry[Year],Menu!$I$16,Data_Entry[Minor Behavior],\"*\")","v":0},{"$f":"COUNTIFS(Data_Entry[Month Name],D1,Data_Entry[Year],Menu!$I$16,Data_Entry[Minor Behavior],\"*\")","v":0},{"$f":"COUNTIFS(Data_Entry[Month Name],E1,Data_Entry[Year],Menu!$I$16,Data_Entry[Minor Behavior],\"*\")","v":0},{"$f":"COUNTIFS(Data_Entry[Month Name],F1,Data_Entry[Year],Menu!$I$16,Data_Entry[Minor Behavior],\"*\")","v":0},{"$f":"COUNTIFS(Data_Entry[Month Name],G1,Data_Entry[Year],Menu!$I$16,Data_Entry[Minor Behavior],\"*\")","v":0},{"$f":"COUNTIFS(Data_Entry[Month Name],H1,Data_Entry[Year],Menu!$I$16,Data_Entry[Minor Behavior],\"*\")","v":0},{"$f":"COUNTIFS(Data_Entry[Month Name],I1,Data_Entry[Year],Menu!$I$16,Data_Entry[Minor Behavior],\"*\")","v":0},{"$f":"COUNTIFS(Data_Entry[Month Name],J1,Data_Entry[Year],Menu!$I$16,Data_Entry[Minor Behavior],\"*\")","v":0},{"$f":"COUNTIFS(Data_Entry[Month Name],K1,Data_Entry[Year],Menu!$I$16,Data_Entry[Minor Behavior],\"*\")","v":0},{"$f":"COUNTIFS(Data_Entry[Month Name],L1,Data_Entry[Year],Menu!$I$16,Data_Entry[Minor Behavior],\"*\")","v":0},{"$f":"COUNTIFS(Data_Entry[Month Name],M1,Data_Entry[Year],Menu!$I$16,Data_Entry[Minor Behavior],\"*\")","v":0}]
["PerDay/Month",{"$f":"IF(B2=0,\"\",B2/(FluidList!K3))","v":""},{"$f":"IF(C2=0,\"\",C2/(FluidList!K4))","v":""},{"$f":"IF(D2=0,\"\",D2/(FluidList!K5))","v":""},{"$f":"IF(E2=0,\"\",E2/(FluidList!K6))","v":""},{"$f":"IF(F2=0,\"\",F2/(FluidList!K7))","v":""},{"$f":"IF(G2=0,\"\",G2/(FluidList!K8))","v":""},{"$f":"IF(H2=0,\"\",H2/(FluidList!K9))","v":""},{"$f":"IF(I2=0,\"\",I2/(FluidList!K10))","v":""},{"$f":"IF(J2=0,\"\",J2/(FluidList!K11))","v":""},{"$f":"IF(K2=0,\"\",K2/(FluidList!K12))","v":""},{"$f":"IF(L2=0,\"\",L2/(FluidList!K13))","v":""},{"$f":"IF(M2=0,\"\",M2/(FluidList!K14))","v":""}]

{"sheet":"MinorQuickBig5","index":39,"n_rows":87,"n_cols":20,"rows_kept":87,"cut":false,"hidden":false,"merged":[[3,7,3,13],[24,4,24,5],[24,16,24,18],[25,6,25,7]]}
[]
[]
[]
[null,null,null,null,null,null,null,{"$f":"FluidList!C3","v":0}]
[]
[]
[]
[]
[]
[]
[]
[]
[]
[]
[]
[]
[]
[]
[]
[]
[]
[]
[]
[]
[null,null,null,null,"Monthly",null,null,null,null,null,null,null,null,null,null,null,"Cumulative",null,null,{"$f":"Menu!I16","v":"2022"}]
[null,null,null,null,"Month and Year:",{"$f":"Menu!$I$18","v":"February"},{"$f":"Menu!I16","v":"2022"}]
[]
[]
[]
[]
[]
[]
[]
[]
[]
[]
[]
[]
[]
[]
[]
[]
[]
[]
[]
[]
[]
[]
[]
[]
[]
[]
[]
[]
[]
[]
[]
[]
[]
[]
[]
[]
[]
[]
[]
[]
[]
[]
[]
[]
[]
[]
[]
[]
[]
[]
[]
[]
[]
[]
[]
[]
[]
[]
[]
[]
[null,null,null,null,null,null,null,null,"Minors by Student"]

{"sheet":"Minor_Student","index":40,"n_rows":4,"n_cols":2,"rows_kept":4,"cut":false,"hidden":false,"merged":[]}
[]
["Row Labels","Count of Student_Demographics.Enter a unique student number, below."]
["(blank)"]
["Grand Total"]